Service Area,Service Division,Expense Type,Expense Code,Detailed Expense Type,Payment Date,Transaction Number,Amount Exc Vat,Supplier Name
Dedicated Schools Grant,Dedicated Schools Grant,Central Support and Capital,689996,Unclassified,03-May-2016,3121704-CAS-04-2016-218,"11,491.70",ACRE RIGG ACADEMY.
Dedicated Schools Grant,Dedicated Schools Grant,Central Support and Capital,689996,Unclassified,03-May-2016,3121767-CAS-04-2016-220,"14,531.77",CLEVES CROSS ACADEMY.
Dedicated Schools Grant,Dedicated Schools Grant,Central Support and Capital,689996,Unclassified,03-May-2016,3121796-CAS-04-2016-215,"3,490.18",DENE HOUSE PRIMARY SCHOOL (ACADEMY).
Dedicated Schools Grant,Dedicated Schools Grant,Central Support and Capital,689996,Unclassified,03-May-2016,3121810-CAS-04-2016-224,"1,678.78",EASINGTON ACADEMY.
Dedicated Schools Grant,Dedicated Schools Grant,Central Support and Capital,689996,Unclassified,03-May-2016,3121823-CAS-04-2016-226,"2,651.13",EXCEL ACADEMY PARTNERSHIP T/A FRAMWELLGATE SCH DURHAM.
Dedicated Schools Grant,Dedicated Schools Grant,Central Support and Capital,689996,Unclassified,03-May-2016,3121867-CAS-04-2016-231,"9,276.22",HERMITAGE ACADEMY.
Dedicated Schools Grant,Dedicated Schools Grant,Central Support and Capital,689996,Unclassified,03-May-2016,3121906-CAS-04-2016-227,"8,585.96",KING JAMES I ACADEMY.
Dedicated Schools Grant,Dedicated Schools Grant,Central Support and Capital,689996,Unclassified,03-May-2016,3121959-CAS-04-2016-233,"1,678.79",NEW COLLEGE ACADEMIES TRUST - CONSETT ACADEMY.
Dedicated Schools Grant,Dedicated Schools Grant,Central Support and Capital,689996,Unclassified,03-May-2016,3121989-CAS-04-2016-232,"3,437.94",PARK VIEW ACADEMY.
Dedicated Schools Grant,Dedicated Schools Grant,Central Support and Capital,689996,Unclassified,03-May-2016,3121990-CAS-04-2016-230,"1,301.52",PARKSIDE SPORTS COLLEGE ACADEMY.
Dedicated Schools Grant,Dedicated Schools Grant,Central Support and Capital,689996,Unclassified,03-May-2016,3122033-CAS-04-2016-235,"19,076.77",RIBBON ACADEMY TRUST.
Dedicated Schools Grant,Dedicated Schools Grant,Central Support and Capital,689996,Unclassified,03-May-2016,3122081-CAS-04-2016-222,"4,774.21",ST BEDES CATHOLIC ACADEMY (LANCHESTER).
Dedicated Schools Grant,Dedicated Schools Grant,Central Support and Capital,689996,Unclassified,03-May-2016,3122082-CAS-04-2016-223,989.57,ST JOHN`S SCHOOL & SIXTH FORM COLLEGE A CATHOLIC ACADEMY.
Dedicated Schools Grant,Dedicated Schools Grant,Central Support and Capital,689996,Unclassified,03-May-2016,3122083-CAS-04-2016-229,908.10,STAINDROP SCHOOL.
Dedicated Schools Grant,Dedicated Schools Grant,Central Support and Capital,689996,Unclassified,03-May-2016,3122088-CAS-04-2016-216,"9,079.18",STEPHENSON WAY COMMUNITY PRIMARY SCHOOL.
Dedicated Schools Grant,Dedicated Schools Grant,Central Support and Capital,689996,Unclassified,03-May-2016,3122104-CAS-04-2016-219,560.74,TEESDALE EDUCATION TRUST.
Children and Adult Services,Education,Employees,040001,Recruitment Instruction and Training,03-May-2016,3122107-TARVIN/15422090,710.10,TES GLOBAL LTD.
Dedicated Schools Grant,Dedicated Schools Grant,Central Support and Capital,689996,Unclassified,03-May-2016,3122109-CAS-04-2016-225,"3,087.16",THE ACADEMY AT SHOTTON HALL.
Dedicated Schools Grant,Dedicated Schools Grant,Central Support and Capital,689996,Unclassified,03-May-2016,3122116-CAS-04-2016-221,"4,780.70",THE SHOTTON HALL LEARNING TRUST.
Dedicated Schools Grant,Dedicated Schools Grant,Central Support and Capital,689996,Unclassified,03-May-2016,3122142-CAS-04-2016-217,"7,356.25",VICTORIA LANE ACADEMY.
Dedicated Schools Grant,Dedicated Schools Grant,Central Support and Capital,689996,Unclassified,03-May-2016,3122159-CAS-04-2016-228,908.10,WOODHAM ACADEMY.
Children and Adult Services,Education,Supplies and Services,384302,Miscellaneous Expenses,03-May-2016,3122159-WA/4175/188,"5,000.00",WOODHAM ACADEMY.
Children and Adult Services,Education,Supplies and Services,384302,Miscellaneous Expenses,03-May-2016,3122159-WA/4175/189,"3,434.00",WOODHAM ACADEMY.
Children and Adult Services,Planning & Service Strategy,Supplies and Services,338089,Services,03-May-2016,3121724-0000002156,"5,326.35",ASPIRE-I LTD.
Children and Adult Services,Childrens Services,Third Party Payments,425023,Rendered by Voluntary Organisations,03-May-2016,3121970-0000024323,"37,156.03",NORTH EAST AUTISM SOCIETY.
Children and Adult Services,Head of Adults,Third Party Payments,470101,Purchase of Care,03-May-2016,3121970-0000024346,"50,162.18",NORTH EAST AUTISM SOCIETY.
Children and Adult Services,Head of Adults,Third Party Payments,479101,Purchase of Care,03-May-2016,3122054-6030023130,602.73,SANCTUARY HOUSING.
Children and Adult Services,Head of Adults,Third Party Payments,479101,Purchase of Care,03-May-2016,3122054-6030023139,629.37,SANCTUARY HOUSING.
Children and Adult Services,Head of Adults,Third Party Payments,479101,Purchase of Care,03-May-2016,3122054-6030023158,692.64,SANCTUARY HOUSING.
Children and Adult Services,Head of Adults,Supplies and Services,338365,Services,03-May-2016,3121857-SIN459845,895.00,HANDICARE ACCESSIBILITY LTD.
Children and Adult Services,Childrens Services,Premises,108099,Service Repairs and Maintenance,03-May-2016,3121988-XL168498,670.00,PARK ELECTRICAL DISTRIBUTORS LTD.
Children and Adult Services,Education,Supplies and Services,304259,Equipment and Materials,03-May-2016,3121853-3027618,504.00,GRESSWELL.
Children and Adult Services,Childrens Services,Third Party Payments,425040,Rendered by Voluntary Organisations,03-May-2016,3121831-126170,"1,180.00",FOSTER CARES LTD.
Children and Adult Services,Childrens Services,Third Party Payments,425040,Rendered by Voluntary Organisations,03-May-2016,3121831-126173,820.00,FOSTER CARES LTD.
Children and Adult Services,Childrens Services,Third Party Payments,425040,Rendered by Voluntary Organisations,03-May-2016,3121831-126174,730.00,FOSTER CARES LTD.
Children and Adult Services,Childrens Services,Third Party Payments,425040,Rendered by Voluntary Organisations,03-May-2016,3121831-126180,730.00,FOSTER CARES LTD.
Children and Adult Services,Childrens Services,Third Party Payments,425040,Rendered by Voluntary Organisations,03-May-2016,3121831-126191,730.00,FOSTER CARES LTD.
Children and Adult Services,Childrens Services,Third Party Payments,425040,Rendered by Voluntary Organisations,03-May-2016,3121831-126202,542.86,FOSTER CARES LTD.
Dedicated Schools Grant,Dedicated Schools Grant,Third Party Payments,440080,Other Third Party Payments,03-May-2016,3121951-039331,"8,420.67",MYERSCOUGH COLLEGE.
Dedicated Schools Grant,Dedicated Schools Grant,Supplies and Services,304259,Equipment and Materials,03-May-2016,3121885-65075,"2,391.57",JCM SEATING SOLUTIONS LTD.
Children and Adult Services,Education,Construction Work,908105,Construction work,03-May-2016,3121926-32824,"1,060.00",LUCION ENVIRONMENTAL LLP LTD.
Children and Adult Services,Childrens Services,Supplies and Services,338044,Services,03-May-2016,3121830-1222,"3,150.00",FORENSIS LTD.
Children and Adult Services,Education,Transport,230008,Contract Hire,03-May-2016,3121840-8092,"2,444.60",GATESHEAD CENTRAL TAXIS LTD.
Children and Adult Services,Planning & Service Strategy,Supplies and Services,338089,Services,03-May-2016,3121828-960,"5,520.00",FIRST IN TRAINING LTD.
Children and Adult Services,Planning & Service Strategy,Supplies and Services,338089,Services,03-May-2016,3121828-961,"6,995.00",FIRST IN TRAINING LTD.
Children and Adult Services,Planning & Service Strategy,Supplies and Services,338089,Services,03-May-2016,3121828-962,"3,400.00",FIRST IN TRAINING LTD.
Children and Adult Services,Head of Adults,Supplies and Services,324117,Provisions,03-May-2016,3121722-30,"1,085.70",ASHBARTON CATERING.
Children and Adult Services,Public Health,Third Party Payments,460803,Contract Payments,03-May-2016,3121860-1,"937,500.00",HARROGATE & DISTRICT NHS FOUNDATION TRUST.
Children and Adult Services,Public Health,Third Party Payments,460802,Contract Payments,04-May-2016,3122834-A83025/Q4IUCD2015,"4,513.42",BISHOPGATE MEDICAL CENTRE.
Children and Adult Services,Public Health,Third Party Payments,460802,Contract Payments,04-May-2016,3122916-A83029/Q3IUCD2015,"2,257.01",GREAT LUMLEY SURGERY.
Children and Adult Services,Public Health,Third Party Payments,460802,Contract Payments,04-May-2016,3122996-A83041/Q3IUCD2015,"2,073.52",MURTON MEDICAL GROUP.
Children and Adult Services,Public Health,Third Party Payments,460802,Contract Payments,04-May-2016,3123006-A83020/Q4IUCD2015,"2,961.23",NORTH HOUSE SURGERY.
Children and Adult Services,Public Health,Third Party Payments,460802,Contract Payments,04-May-2016,3123056-A83001/Q3IUCD2015,"2,146.42",ST ANDREWS MEDICAL PRACTICE.
Children and Adult Services,Public Health,Third Party Payments,460802,Contract Payments,04-May-2016,3123079-A83035/Q4IUCD2015,"1,948.26",THE WEARDALE PRACTICE.
Children and Adult Services,Public Health,Third Party Payments,460802,Contract Payments,04-May-2016,3123100-A83003/Q4IUCD2015,"2,801.62",WILLINGTON MEDICAL GROUP.
Children and Adult Services,Public Health,Third Party Payments,460802,Contract Payments,04-May-2016,3123103-A83032/Q4IUCD2015,898.53,WOODVIEW MEDICAL PRACTICE.
Children and Adult Services,Childrens Services,Income,705174,Government Grants,04-May-2016,3122823-CAS-04-2016-250,"2,940.00",REDACTED - PAYMENT TO INDIVIDUAL
Children and Adult Services,Childrens Services,Supplies and Services,364353,Grants to Voluntary Organisations,04-May-2016,3122845-CAS-05-2016-014,882.00,REDACTED - PAYMENT TO INDIVIDUAL
Children and Adult Services,Childrens Services,Supplies and Services,364301,Grants to Voluntary Organisations,04-May-2016,3122940-CAS-05-2016-010,"1,866.27",REDACTED - PAYMENT TO INDIVIDUAL
Children and Adult Services,Head of Adults,Cash,936005,Cheque reconciliation extra care,04-May-2016,3122972-CAS-05-2016-003,"1,100.00",MAPLE COURT EXTRA CARE.
Children and Adult Services,Childrens Services,Supplies and Services,364301,Grants to Voluntary Organisations,04-May-2016,3122977-CAS-05-2016-019,"1,181.18",REDACTED - PAYMENT TO INDIVIDUAL
Children and Adult Services,Central Charges (CYPS),Employees,005001,Pay,04-May-2016,3122994-RES-05-2016-002,"8,500.00",REDACTED - PAYMENT TO INDIVIDUAL
Children and Adult Services,Childrens Services,Supplies and Services,364310,Grants to Voluntary Organisations,04-May-2016,3123061-CAS-05-2016-004,541.32,REDACTED - PAYMENT TO INDIVIDUAL
Dedicated Schools Grant,Dedicated Schools Grant,Central Support and Capital,689996,Unclassified,04-May-2016,303431-CAS-04-2016-236,"3,327.91",TUDHOE COLLIERY ACADEMY.
Children and Adult Services,Childrens Services,Supplies and Services,384491,Miscellaneous Expenses,04-May-2016,3122843-CRECHE2016/03,"1,113.75",BUTTERCUP NURSERIES LTD.
Children and Adult Services,Childrens Services,Construction Work,908105,Construction work,04-May-2016,3122816-32307463-61,"14,696.00",ADT FIRE & SECURITY PLC.
Children and Adult Services,Education,Transport,235073,Public Transport,04-May-2016,303415-2732102-003,"1,266.77",REDACTED - PAYMENT TO INDIVIDUAL
Children and Adult Services,Childrens Services,Third Party Payments,486044,Service Level Agreements,04-May-2016,3122858-3980014930,"2,456.00",CO DURHAM & DARLINGTON NHS FOUNDATION TRUST.
Children and Adult Services,Head of Adults,Employees,080025,Agency Staff,04-May-2016,3123072-4810007229,838.08,TEES ESK & WEAR VALLEYS NHS FOUNDATION TRUST.
Children and Adult Services,Head of Adults,Employees,080025,Agency Staff,04-May-2016,3123072-4810007230,"1,676.25",TEES ESK & WEAR VALLEYS NHS FOUNDATION TRUST.
Children and Adult Services,Head of Adults,Employees,080025,Agency Staff,04-May-2016,3123072-4810007231,"1,676.25",TEES ESK & WEAR VALLEYS NHS FOUNDATION TRUST.
Children and Adult Services,Childrens Services,Supplies and Services,364340,Grants to Voluntary Organisations,04-May-2016,3122832-241000272,"1,422.84",BARNARDO SERVICES LTD.
Children and Adult Services,Head of Adults,Supplies and Services,384199,Miscellaneous Expenses,04-May-2016,303402-14161658,564.00,DT
Children and Adult Services,Childrens Services,Third Party Payments,440027,Other Third Party Payments,04-May-2016,3122238-1100238,739.86,REDACTED - PAYMENT TO INDIVIDUAL
Children and Adult Services,Childrens Services,Third Party Payments,440027,Other Third Party Payments,04-May-2016,3122398-1100230,504.45,REDACTED - PAYMENT TO INDIVIDUAL
Children and Adult Services,Childrens Services,Third Party Payments,440015,Other Third Party Payments,04-May-2016,3122402-1099834,"2,045.94",REDACTED - PAYMENT TO INDIVIDUAL
Children and Adult Services,Childrens Services,Third Party Payments,440032,Other Third Party Payments,04-May-2016,3122415-1099933,"1,410.50",REDACTED - PAYMENT TO INDIVIDUAL
Children and Adult Services,Childrens Services,Third Party Payments,440001,Other Third Party Payments,04-May-2016,3122457-1099642,545.28,REDACTED - PAYMENT TO INDIVIDUAL
Children and Adult Services,Childrens Services,Third Party Payments,440001,Other Third Party Payments,04-May-2016,3122506-1099655,568.00,REDACTED - PAYMENT TO INDIVIDUAL
Children and Adult Services,Childrens Services,Third Party Payments,440001,Other Third Party Payments,04-May-2016,3122506-1099656,568.00,REDACTED - PAYMENT TO INDIVIDUAL
Children and Adult Services,Childrens Services,Third Party Payments,440001,Other Third Party Payments,04-May-2016,3122506-1099657,568.00,REDACTED - PAYMENT TO INDIVIDUAL
Children and Adult Services,Childrens Services,Third Party Payments,440001,Other Third Party Payments,04-May-2016,3122506-1099777,568.00,REDACTED - PAYMENT TO INDIVIDUAL
Children and Adult Services,Childrens Services,Third Party Payments,440032,Other Third Party Payments,04-May-2016,3122542-1099978,604.50,REDACTED - PAYMENT TO INDIVIDUAL
Children and Adult Services,Childrens Services,Third Party Payments,440016,Other Third Party Payments,04-May-2016,3122563-1100111,977.78,REDACTED - PAYMENT TO INDIVIDUAL
Children and Adult Services,Childrens Services,Third Party Payments,440015,Other Third Party Payments,04-May-2016,3122633-1100017,"1,674.34",REDACTED - PAYMENT TO INDIVIDUAL
Children and Adult Services,Childrens Services,Third Party Payments,440036,Other Third Party Payments,04-May-2016,3122647-1099789,586.40,REDACTED - PAYMENT TO INDIVIDUAL
Children and Adult Services,Childrens Services,Third Party Payments,440016,Other Third Party Payments,04-May-2016,3122653-1100053,"1,546.73",REDACTED - PAYMENT TO INDIVIDUAL
Children and Adult Services,Childrens Services,Third Party Payments,440036,Other Third Party Payments,04-May-2016,3122719-1100177,659.70,REDACTED - PAYMENT TO INDIVIDUAL
Children and Adult Services,Commissioning inc Supporting People,Third Party Payments,479111,Purchase of Care,04-May-2016,3122855-CACD231,"15,000.00",CITIZENS ADVICE COUNTY DURHAM.
Dedicated Schools Grant,Dedicated Schools Grant,Supplies and Services,342053,Computers and Communications,04-May-2016,3122935-2845097,"45,140.00",INSIGHT DIRECT (UK) LTD.
Children and Adult Services,Childrens Services,Third Party Payments,425040,Rendered by Voluntary Organisations,04-May-2016,3122903-164715,"3,232.99",FOSTERING SOLUTIONS LTD.
Children and Adult Services,Childrens Services,Third Party Payments,425040,Rendered by Voluntary Organisations,04-May-2016,3122903-170699,"2,914.20",FOSTERING SOLUTIONS LTD.
Children and Adult Services,Childrens Services,Third Party Payments,425040,Rendered by Voluntary Organisations,04-May-2016,3122903-170700,"3,000.00",FOSTERING SOLUTIONS LTD.
Children and Adult Services,Childrens Services,Third Party Payments,425040,Rendered by Voluntary Organisations,04-May-2016,3122903-170757,"3,000.00",FOSTERING SOLUTIONS LTD.
Children and Adult Services,Childrens Services,Third Party Payments,425040,Rendered by Voluntary Organisations,04-May-2016,3122903-170786,"3,128.70",FOSTERING SOLUTIONS LTD.
Children and Adult Services,Head of Adults,Supplies and Services,338365,Services,04-May-2016,3123017-559033,631.00,P & N ASSOCIATES LTD.
Children and Adult Services,Education,Supplies and Services,338099,Services,04-May-2016,3123033-DMS004,"1,600.00",RE SMITH T/A TEACHING GADGET.COM.
Children and Adult Services,Childrens Services,Third Party Payments,425040,Rendered by Voluntary Organisations,04-May-2016,3123066-181431,759.99,SWIIS FOSTER CARE LTD.
Children and Adult Services,Childrens Services,Third Party Payments,425040,Rendered by Voluntary Organisations,04-May-2016,3123066-181433,600.00,SWIIS FOSTER CARE LTD.
Children and Adult Services,Childrens Services,Third Party Payments,425040,Rendered by Voluntary Organisations,04-May-2016,3123066-181438,980.00,SWIIS FOSTER CARE LTD.
Children and Adult Services,Childrens Services,Third Party Payments,425040,Rendered by Voluntary Organisations,04-May-2016,3123067-179308,"1,260.00",SWIIS FOSTER CARE LTD.
Children and Adult Services,Childrens Services,Third Party Payments,425040,Rendered by Voluntary Organisations,04-May-2016,3123067-181397,980.00,SWIIS FOSTER CARE LTD.
Children and Adult Services,Childrens Services,Third Party Payments,425040,Rendered by Voluntary Organisations,04-May-2016,3123067-181398,980.00,SWIIS FOSTER CARE LTD.
Children and Adult Services,Childrens Services,Third Party Payments,425040,Rendered by Voluntary Organisations,04-May-2016,3122853-13788,"3,128.70",CHILDRENS FAMILY TRUST.
Children and Adult Services,Head of Adults,Third Party Payments,478151,Purchase of Care,04-May-2016,3123012-25151,"3,134.64",OAKLEA TRUST.
Children and Adult Services,Education,Supplies and Services,384199,Miscellaneous Expenses,04-May-2016,3123022-C1459,"1,814.40",PETERLEE TOWN COUNCIL.
Children and Adult Services,Childrens Services,Supplies and Services,384199,Miscellaneous Expenses,04-May-2016,3123104-27365,"1,020.00",WRIXON SECURITY SERVICES LTD T/A WRIXON CARE.
Children and Adult Services,Childrens Services,Supplies and Services,384199,Miscellaneous Expenses,04-May-2016,3123104-27582,"1,510.50",WRIXON SECURITY SERVICES LTD T/A WRIXON CARE.
Dedicated Schools Grant,Dedicated Schools Grant,Supplies and Services,338367,Services,04-May-2016,3122969-5530,"1,140.00",LYNCH HEALTHCARE LTD.
Dedicated Schools Grant,Dedicated Schools Grant,Supplies and Services,338367,Services,04-May-2016,3122969-5531,"1,140.00",LYNCH HEALTHCARE LTD.
Children and Adult Services,Commissioning inc Supporting People,Third Party Payments,479111,Purchase of Care,04-May-2016,3123050-2149,"12,773.50",SKILLS FOR PEOPLE.
Children and Adult Services,Commissioning inc Supporting People,Third Party Payments,473111,Purchase of Care,04-May-2016,3123076-0026,"6,281.00",THE HUB OF WISHES.
Children and Adult Services,Head of Adults,Supplies and Services,338365,Services,04-May-2016,3122830-596,646.00,BAKER BUILDERS.
Children and Adult Services,Education,Supplies and Services,384302,Miscellaneous Expenses,04-May-2016,3122836-233,725.00,BOINGBOING RESILIENCE CIC.
Children and Adult Services,Childrens Services,Supplies and Services,364352,Grants to Voluntary Organisations,04-May-2016,303397-840,757.90,CITY OF SUNDERLAND YMCA LTD.
Children and Adult Services,Childrens Services,Supplies and Services,364352,Grants to Voluntary Organisations,04-May-2016,303397-841,"1,000.00",CITY OF SUNDERLAND YMCA LTD.
Children and Adult Services,Public Health,Third Party Payments,460802,Contract Payments,05-May-2016,3123178-FKP88/MAR2016/EOHC,"1,117.19",BOOTS THE CHEMISTS LTD.
Children and Adult Services,Public Health,Third Party Payments,460802,Contract Payments,05-May-2016,3123181-FYR53/MAR2016/EOHC,"1,331.12",BOOTS THE CHEMISTS LTD.
Children and Adult Services,Public Health,Third Party Payments,460802,Contract Payments,05-May-2016,3123528-FL345/MAR2016/EOHC,"1,069.65",ROBERTS & ROBERTS LTD T/A HIGGINBOTTOM PHARMACY.
Children and Adult Services,Public Health,Third Party Payments,460802,Contract Payments,05-May-2016,3123149-A83046/Q4IUCD2015,"3,025.97",BARNARD CASTLE SURGERY.
Children and Adult Services,Public Health,Third Party Payments,460802,Contract Payments,05-May-2016,3123160-A83037/Q4IUCD2015,"6,136.14",BEWICK CRESCENT SURGERY.
Children and Adult Services,Public Health,Third Party Payments,460802,Contract Payments,05-May-2016,3123165-A83007/Q4IUCD2015,"6,467.11",BLACKHALL & PETERLEE PRACTICE.
Children and Adult Services,Public Health,Third Party Payments,460802,Contract Payments,05-May-2016,3123185-A83630/Q4IUCD2015,"1,335.98",BRANDON LANE SURGERY.
Children and Adult Services,Public Health,Third Party Payments,460802,Contract Payments,05-May-2016,3123188-A83009/Q4IUCD2015,"3,912.21",BRIDGE END SURGERY.
Children and Adult Services,Public Health,Third Party Payments,460802,Contract Payments,05-May-2016,3123207-A83038/Q4IUCD2015,"1,037.76",CEDARS MEDICAL GROUP.
Children and Adult Services,Public Health,Third Party Payments,460802,Contract Payments,05-May-2016,3123209-A83050/Q4IUCD2015,"2,806.73",CESTRIA HEALTH CENTRE.
Children and Adult Services,Public Health,Third Party Payments,460802,Contract Payments,05-May-2016,3123210-A83036/Q4IUCD2015,"3,495.77",CHASTLETON MEDICAL GROUP.
Children and Adult Services,Public Health,Third Party Payments,460802,Contract Payments,05-May-2016,3123211-A83055/Q4IUCD2015,"1,225.04",CHEVELEY PARK MEDICAL CENTRE.
Children and Adult Services,Public Health,Third Party Payments,460802,Contract Payments,05-May-2016,3123219-A83011/Q4IUCD2015,"6,203.08",CLAYPATH & UNIVERSITY MEDICAL GROUP.
Children and Adult Services,Public Health,Third Party Payments,460802,Contract Payments,05-May-2016,3123255-A83076/Q4IUCD2015,"1,133.11",DIPTON SURGERY.
Children and Adult Services,Public Health,Third Party Payments,460802,Contract Payments,05-May-2016,3123259-A83004/Q4IUCD2015,"1,100.76",DR A KAPOOR (DENESIDE MEDICAL CENTRE).
Children and Adult Services,Public Health,Third Party Payments,460802,Contract Payments,05-May-2016,3123260-A83073/Q4IUCD2015,"1,037.76","DR BRIAN LAMBERT, DR IAN BRUNT, & DR RACHEL NG."
Children and Adult Services,Public Health,Third Party Payments,460802,Contract Payments,05-May-2016,3123265-A83054/Q4IUCD2015,"5,136.72",DR PRM JONES & PARTNERS.
Children and Adult Services,Public Health,Third Party Payments,460802,Contract Payments,05-May-2016,3123266-A83030/Q4IUCD2015,"2,813.98",DUNELM MEDICAL PRACTICE.
Children and Adult Services,Public Health,Third Party Payments,460802,Contract Payments,05-May-2016,3123296-A83045/Q4IUCD2015,"5,776.71",FERRYHILL & CHILTON MEDICAL PRACTICE.
Children and Adult Services,Public Health,Third Party Payments,460802,Contract Payments,05-May-2016,3123306-A83061/Q4IUCD2015,572.96,GAINFORD SURGERY.
Children and Adult Services,Public Health,Third Party Payments,460802,Contract Payments,05-May-2016,3123322-A83008/Q4IUCD2015,"5,675.92",HALLGARTH SURGERY.
Children and Adult Services,Public Health,Third Party Payments,460802,Contract Payments,05-May-2016,3123330-A83044/Q4IUCD2015,"2,781.68",HORDEN GROUP PRACTICE.
Children and Adult Services,Public Health,Third Party Payments,460802,Contract Payments,05-May-2016,3123341-A83012/Q4IUCD2015,"6,218.65",INTRAHEALTH LTD.
Children and Adult Services,Public Health,Third Party Payments,460802,Contract Payments,05-May-2016,3123375-A83636/Q4IUCD2015,"3,672.66",LEADGATE SURGERY.
Children and Adult Services,Public Health,Third Party Payments,460802,Contract Payments,05-May-2016,3123405-A83051/Q4IUCD2015,"2,117.52",MARLBOROUGH SURGERY.
Children and Adult Services,Education,Construction Work,908105,Construction work,05-May-2016,3123412-INS2-OUSTONINFANT,"35,665.65",MGL DEMOLITION LTD.
Children and Adult Services,Public Health,Third Party Payments,460802,Contract Payments,05-May-2016,3123416-A83637/Q4IUCD2015,554.69,MIDDLE CHARE MEDICAL GROUP.
Children and Adult Services,Public Health,Third Party Payments,460802,Contract Payments,05-May-2016,3123417-A83028/Q4IUCD2015,"2,488.44",MIDDLE CHARE MEDICAL GROUP.
Children and Adult Services,Public Health,Third Party Payments,460802,Contract Payments,05-May-2016,3123467-A83618/Q4IUCD2015,"1,599.86",OAKFIELDS HEALTH CENTRE.
Children and Adult Services,Public Health,Third Party Payments,460802,Contract Payments,05-May-2016,3123485-A83074/Q4IUCD2015,"5,350.91",PEASEWAY PARTNERSHIP.
Children and Adult Services,Public Health,Third Party Payments,460802,Contract Payments,05-May-2016,3123486-A83033/Q4IUCD2015,"4,200.68",PELTON & FELLROSE MEDICAL GROUP.
Children and Adult Services,Public Health,Third Party Payments,460802,Contract Payments,05-May-2016,3123497-A83060/Q4IUCD2015,"2,865.51",PINFOLD MEDICAL PRACTICE.
Children and Adult Services,Public Health,Third Party Payments,460802,Contract Payments,05-May-2016,3123514-A83049/Q4IUCD2015,"6,478.45",QUEENS ROAD SURGERY.
Children and Adult Services,Public Health,Third Party Payments,460802,Contract Payments,05-May-2016,3123535-A83026/Q4IUCD2015,"3,113.50",SACRISTON SURGERY.
Children and Adult Services,Public Health,Third Party Payments,460802,Contract Payments,05-May-2016,3123557-A83057/Q4IUCD2015,"6,875.19",SHINWELL MEDICAL GROUP.
Children and Adult Services,Public Health,Third Party Payments,460802,Contract Payments,05-May-2016,3123567-A83619/Q4IUCD2015,"1,088.25",SOUTHDENE MEDICAL CENTRE.
Children and Adult Services,Public Health,Third Party Payments,460802,Contract Payments,05-May-2016,3123571-A83001/Q4IUCD2015,"1,715.29",ST ANDREWS MEDICAL PRACTICE.
Children and Adult Services,Public Health,Third Party Payments,460802,Contract Payments,05-May-2016,3123574-A83023/Q4IUCD2015,"2,009.02",STANLEY MEDICAL GROUP.
Children and Adult Services,Public Health,Third Party Payments,460802,Contract Payments,05-May-2016,3123576-A86015/Q4IUCD2015,"3,328.56",STATION VIEW MEDICAL CENTRE.
Children and Adult Services,Public Health,Third Party Payments,460802,Contract Payments,05-May-2016,3123604-A83022/Q4IUCD2015,"4,064.56",THE MEDICAL GROUP.
Children and Adult Services,Childrens Services,Supplies and Services,364352,Grants to Voluntary Organisations,05-May-2016,3123580-D1IN/00022632,"1,440.78",STONHAM HOUSING ASSOCIATION LTD.
Children and Adult Services,Childrens Services,Supplies and Services,364352,Grants to Voluntary Organisations,05-May-2016,3123580-D1IN/00022701,"1,246.18",STONHAM HOUSING ASSOCIATION LTD.
Children and Adult Services,Education,Transport,230008,Contract Hire,05-May-2016,3123145-DCC10APRIL16,"1,120.00",ATLAS TAXIS BISHOP AUCKLAND.
Children and Adult Services,Education,Third Party Payments,440999,Other Third Party Payments,05-May-2016,3123201-003-12/04/16,"2,476.86",CAPITAL 4 TRAINING LTD
Children and Adult Services,Education,Transport,230008,Contract Hire,05-May-2016,3123145-DCC2APRIL16,"1,670.48",ATLAS TAXIS BISHOP AUCKLAND.
Children and Adult Services,Education,Transport,230008,Contract Hire,05-May-2016,3123145-DCC4APRIL16,"1,470.00",ATLAS TAXIS BISHOP AUCKLAND.
Children and Adult Services,Education,Transport,230008,Contract Hire,05-May-2016,3123145-DCC7APRIL16,"1,400.00",ATLAS TAXIS BISHOP AUCKLAND.
Children and Adult Services,Education,Transport,230008,Contract Hire,05-May-2016,3123125-18-29/4/16,630.00,ABLE NOVAK TAXIS.
Children and Adult Services,Planning & Service Strategy,Supplies and Services,338089,Services,05-May-2016,3123144-0000002158,"10,930.28",ASPIRE-I LTD.
Children and Adult Services,Public Health,Third Party Payments,460802,Contract Payments,05-May-2016,3123447-1000047968,"65,706.17",NHS BUSINESS SERVICES AUTHORITY.
Children and Adult Services,Education,Transport,230008,Contract Hire,05-May-2016,3123454-0000024277,723.75,NORTH EAST AUTISM SOCIETY.
Children and Adult Services,Head of Adults,Third Party Payments,479101,Purchase of Care,05-May-2016,3123539-6030012726,"2,131.20",SANCTUARY HOUSING.
Children and Adult Services,Childrens Services,Supplies and Services,384302,Miscellaneous Expenses,05-May-2016,3123150-241000311,"3,750.00",BARNARDO SERVICES LTD.
Children and Adult Services,Education,Transport,230008,Contract Hire,05-May-2016,3123153-APRIL2016,"1,265.74",BEELINE TAXIS.
Children and Adult Services,Education,Transport,230008,Contract Hire,05-May-2016,3123223-A038/0316,"1,500.00",COLVIN`S CABS.
Children and Adult Services,Education,Construction Work,908105,Construction work,05-May-2016,3123464-913696307,740.00,NORTHUMBRIAN WATER LTD.
Children and Adult Services,Education,Transport,230008,Contract Hire,05-May-2016,3123554-8-29/4/16,810.00,SHARON`S TAXI.
Children and Adult Services,Head of Adults,Supplies and Services,384616,Miscellaneous Expenses,05-May-2016,3123147-AHS01044,597.99,AUCKLAND HOME SOLUTIONS CIC.
Children and Adult Services,Head of Adults,Supplies and Services,384616,Miscellaneous Expenses,05-May-2016,3123147-AHS01045,713.93,AUCKLAND HOME SOLUTIONS CIC.
Children and Adult Services,Education,Transport,230008,Contract Hire,05-May-2016,3123249-0416/001,988.68,DCM TAXIS.
Children and Adult Services,Education,Transport,230008,Contract Hire,05-May-2016,3123316-E082/041,"1,110.50",GMC TAXIS NORTH EAST.
Children and Adult Services,Education,Transport,230008,Contract Hire,05-May-2016,3123316-W084/041,"1,332.54",GMC TAXIS NORTH EAST.
Children and Adult Services,Education,Transport,230008,Contract Hire,05-May-2016,3123361-SV/04/16,510.00,JOHN PAUL AGAR T/A YOGI'S TAXI.
Children and Adult Services,Education,Transport,230008,Contract Hire,05-May-2016,3123197-BIL0078,"1,250.25",CA MUSGROVE.
Children and Adult Services,Education,Transport,230008,Contract Hire,05-May-2016,3123215-32/2016,"1,750.00",CHRIS`S TAXI.
Children and Adult Services,Education,Transport,230008,Contract Hire,05-May-2016,3123329-28/4/16,916.00,HIPPY`S TAXI.
Children and Adult Services,Education,Transport,230008,Contract Hire,05-May-2016,3123413-INV-101,"1,914.00",MICHAEL COBB (T/A HAIL TAXIS).
Children and Adult Services,Education,Transport,230008,Contract Hire,05-May-2016,3123129-266143,885.00,ALAN SOUTHERN T/A ALANS TAXIS PELTON FELL.
Children and Adult Services,Education,Transport,230008,Contract Hire,05-May-2016,3123129-388143,600.00,ALAN SOUTHERN T/A ALANS TAXIS PELTON FELL.
Children and Adult Services,Childrens Services,Employees,080025,Agency Staff,05-May-2016,3123251-331109,"141,505.04",DE POEL MANAGED SERVICES LTD.
Children and Adult Services,Education,Transport,230008,Contract Hire,05-May-2016,3123364-M03619,735.00,JOVIAL PRIVATE HIRE.
Children and Adult Services,Education,Transport,230008,Contract Hire,05-May-2016,3123364-N03019,"1,290.00",JOVIAL PRIVATE HIRE.
Children and Adult Services,Education,Transport,230008,Contract Hire,05-May-2016,3123403-480416,644.00,MARK MUSGROVE T/A MARKS TAXIS.
Children and Adult Services,Education,Transport,230008,Contract Hire,05-May-2016,3123431-160406,"1,917.60",MR STEVEN PRATT T/A PRATTS TAXIS LTD.
Children and Adult Services,Education,Transport,230008,Contract Hire,05-May-2016,3123431-160407,844.35,MR STEVEN PRATT T/A PRATTS TAXIS LTD.
Children and Adult Services,Education,Transport,230007,Contract Hire,05-May-2016,3123431-160410,"1,350.00",MR STEVEN PRATT T/A PRATTS TAXIS LTD.
Dedicated Schools Grant,Dedicated Schools Grant,Transport,230010,Contract Hire,05-May-2016,3123639-487843,660.00,WENDYS` TAXIS.
Children and Adult Services,Education,Transport,230013,Contract Hire,05-May-2016,3123641-290416,728.00,WIL TRAVEL.
Children and Adult Services,Education,Transport,230008,Contract Hire,05-May-2016,3123113-41609,"1,655.80",24/7 TAXI SERVICES LTD.
Children and Adult Services,Education,Transport,230008,Contract Hire,05-May-2016,3123113-41610,"1,330.00",24/7 TAXI SERVICES LTD.
Children and Adult Services,Childrens Services,Transport,230005,Contract Hire,05-May-2016,3123123-N5/ZG,"1,320.00",AABAT TAXIS.
Children and Adult Services,Education,Transport,230008,Contract Hire,05-May-2016,3123146-03421,855.00,ATLAS TAXIS CONSETT.
Children and Adult Services,Head of Adults,Supplies and Services,338366,Services,05-May-2016,3123202-31104,"3,122.00",CARE ABILITY.
Children and Adult Services,Childrens Services,Supplies and Services,384199,Miscellaneous Expenses,05-May-2016,3123206-10279,"5,100.00",CCS ADOPTION.
Children and Adult Services,Education,Transport,230008,Contract Hire,05-May-2016,3123481-DCC84,"1,206.15",PAUL`S TAXIS..
Children and Adult Services,Education,Transport,230008,Contract Hire,05-May-2016,3123481-DCC86,"1,125.00",PAUL`S TAXIS..
Dedicated Schools Grant,Dedicated Schools Grant,Supplies and Services,338091,Services,05-May-2016,3123499-00014,960.00,PINNACLE TRAINING (NE) LTD.
Children and Adult Services,Education,Transport,230008,Contract Hire,05-May-2016,3123558-72013,"1,350.00",SHOTTON PRIVATE HIRE.
Children and Adult Services,Education,Transport,230008,Contract Hire,05-May-2016,3123558-72016,921.60,SHOTTON PRIVATE HIRE.
Children and Adult Services,Childrens Services,Supplies and Services,338099,Services,05-May-2016,3123189-0007,"2,000.00",BRIGHT FUTURES TRUST CIC.
Children and Adult Services,Education,Transport,230007,Contract Hire,05-May-2016,3123220-3014,"1,425.00",CLIVE HUBERY.
Children and Adult Services,Head of Adults,Third Party Payments,470101,Purchase of Care,05-May-2016,3123288-9077,"1,869.32",ESSENTIAL CARE & SUPPORT LTD.
Children and Adult Services,Education,Transport,230007,Contract Hire,05-May-2016,3123353-2513,"1,417.35",JEFF ANDERSON COACHES LTD.
Children and Adult Services,Education,Transport,230006,Contract Hire,05-May-2016,3123362-0026,825.00,JOHN WARE T/A J & K TAXIS.
Children and Adult Services,Education,Transport,230008,Contract Hire,05-May-2016,3123374-1065,"1,050.00",LD TAXIS.
Children and Adult Services,Childrens Services,Transport,230005,Contract Hire,05-May-2016,3123389-2551,552.00,LOCAL TRANSPORT LTD.
Children and Adult Services,Education,Transport,230008,Contract Hire,05-May-2016,3123490-0447,"1,425.00",PETER`S PRIVATE HIRE/PETER BEST.
Children and Adult Services,Education,Transport,230008,Contract Hire,05-May-2016,3123490-0448,"1,020.00",PETER`S PRIVATE HIRE/PETER BEST.
Children and Adult Services,Education,Transport,230008,Contract Hire,05-May-2016,3123501-1165,"1,050.00",PODA LTD.
Children and Adult Services,Education,Transport,230008,Contract Hire,05-May-2016,3123531-1664,786.00,RON`S TAXIS (FISHBURN).
Children and Adult Services,Education,Transport,230008,Contract Hire,05-May-2016,3123531-1668,"2,025.00",RON`S TAXIS (FISHBURN).
Dedicated Schools Grant,Dedicated Schools Grant,Third Party Payments,440080,Other Third Party Payments,05-May-2016,3123605-5801,"2,841.18",THE ROYAL NATIONAL COLLEGE FOR THE BLIND.
Children and Adult Services,Planning & Service Strategy,Supplies and Services,338094,Services,05-May-2016,3123606-4345,770.80,THE WORK PLACE (AYCLIFFE) LTD.
Children and Adult Services,Education,Transport,230007,Contract Hire,05-May-2016,3123609-3010,"1,652.00",TM TRAVEL.
Children and Adult Services,Education,Transport,230007,Contract Hire,05-May-2016,3123609-3011,"1,652.00",TM TRAVEL.
Children and Adult Services,Education,Transport,230007,Contract Hire,05-May-2016,3123609-3012,"5,852.00",TM TRAVEL.
Children and Adult Services,Education,Transport,230007,Contract Hire,05-May-2016,3123609-3013,966.00,TM TRAVEL.
Children and Adult Services,Education,Transport,230007,Contract Hire,05-May-2016,3123637-5441,"3,304.35",WEARDALE PRIVATE HIRE.
Children and Adult Services,Education,Transport,230007,Contract Hire,05-May-2016,3123637-5442,"2,728.35",WEARDALE PRIVATE HIRE.
Children and Adult Services,Education,Transport,230006,Contract Hire,05-May-2016,3123130-072,646.80,ALANS TAXIS BARNARD CASTLE.
Children and Adult Services,Education,Transport,230006,Contract Hire,05-May-2016,3123130-074,"1,148.40",ALANS TAXIS BARNARD CASTLE.
Children and Adult Services,Education,Transport,230006,Contract Hire,05-May-2016,3123130-078,871.20,ALANS TAXIS BARNARD CASTLE.
Children and Adult Services,Education,Transport,230007,Contract Hire,05-May-2016,3123220-879,750.00,CLIVE HUBERY.
Children and Adult Services,Education,Transport,230008,Contract Hire,05-May-2016,3123380-143,"1,556.07",LEE`S TAXIS.
Dedicated Schools Grant,Dedicated Schools Grant,Transport,230008,Contract Hire,05-May-2016,3123380-145,868.00,LEE`S TAXIS.
Children and Adult Services,Education,Transport,230007,Contract Hire,05-May-2016,3123430-801,900.00,MR REES WILKINSON T/A B & L MINIBUS HIRE.
Children and Adult Services,Education,Transport,230007,Contract Hire,05-May-2016,3123430-811,600.00,MR REES WILKINSON T/A B & L MINIBUS HIRE.
Children and Adult Services,Education,Transport,230008,Contract Hire,05-May-2016,3123438-019,840.00,NEIL PASSMOOR T/A NEIL`S TAXI.
Children and Adult Services,Education,Transport,230008,Contract Hire,05-May-2016,3123488-519,"1,170.00",PETERLEE EXECUTIVE CARS.
Children and Adult Services,Education,Transport,230008,Contract Hire,05-May-2016,3123491-740,"2,675.25",PG TRIPS.
Children and Adult Services,Childrens Services,Transport,230005,Contract Hire,05-May-2016,3123527-516,"1,730.50",ROAD RUNNERS (NE) LTD.
Children and Adult Services,Education,Transport,230008,Contract Hire,05-May-2016,3123563-270,"1,463.00",SIMONS TAXIS.
Children and Adult Services,Education,Transport,230008,Contract Hire,05-May-2016,3123119-28,964.65,A & P TAXIS.
Children and Adult Services,Education,Transport,230007,Contract Hire,05-May-2016,3123163-08,770.00,BILL`S TAXIS.
Children and Adult Services,Education,Transport,230008,Contract Hire,05-May-2016,3123334-30,975.00,IAN SHEPLEY T/A SHEPPA`S TAXIS.
Children and Adult Services,Education,Transport,230008,Contract Hire,05-May-2016,3123363-88,"1,709.12",JOHNS TAXIS (CHESTER LE STREET).
Children and Adult Services,Education,Transport,230008,Contract Hire,05-May-2016,3123438-19,"1,190.00",NEIL PASSMOOR T/A NEIL`S TAXI.
Dedicated Schools Grant,Dedicated Schools Grant,Transport,230010,Contract Hire,05-May-2016,3123618-17,900.00,TRUDY`S.
Children and Adult Services,Central Charges (CYPS),Employees,005001,Pay,06-May-2016,3123976-RES-05-2016-013,"7,000.00",REDACTED - PAYMENT TO INDIVIDUAL
Children and Adult Services,Education,Transport,230008,Contract Hire,06-May-2016,3124023-DCC97-29/4/16,675.00,PB PRIVATE HIRE.
Children and Adult Services,Education,Transport,230008,Contract Hire,06-May-2016,3124023-DCC98-29/4/16,675.00,PB PRIVATE HIRE.
Children and Adult Services,Education,Transport,230008,Contract Hire,06-May-2016,3124023-DCC99-29/4/16,546.00,PB PRIVATE HIRE.
Children and Adult Services,Childrens Services,Supplies and Services,384302,Miscellaneous Expenses,06-May-2016,3124162-JF/DT22016/17,"4,500.00",TOW LAW COMMUNITY ASSOCIATION.
Children and Adult Services,Education,Transport,230008,Contract Hire,06-May-2016,3124132-DCC/2015/84,882.00,TAYLOR`S TAXIS.
Children and Adult Services,Childrens Services,Supplies and Services,304259,Equipment and Materials,06-May-2016,3124204-498564264,789.00,YORKSHIRE PURCHASING ORGANISATION.
Children and Adult Services,Public Health,Third Party Payments,460802,Contract Payments,06-May-2016,3123761-A83011Q4,"1,790.00",CLAYPATH & UNIVERSITY MEDICAL GROUP.
Children and Adult Services,Education,Transport,230008,Contract Hire,06-May-2016,3123846-N071-029,"2,476.25",FERRYHILL VILLAGE TRAVEL.
Children and Adult Services,Education,Transport,230008,Contract Hire,06-May-2016,3123659-A220775,"1,340.25",A MURRAY TRAVEL.
Children and Adult Services,Childrens Services,Supplies and Services,352001,Conference Expenses,06-May-2016,3123806-PU35818,"1,750.00",DODS PARLIAMENTARY COMMUNICATIONS.
Children and Adult Services,Education,Transport,230008,Contract Hire,06-May-2016,3123970-INV-102,855.00,MICHAEL COBB (T/A HAIL TAXIS).
Children and Adult Services,Education,Supplies and Services,338099,Services,06-May-2016,3124062-DMS004A,"1,600.00",RE SMITH T/A TEACHING GADGET.COM.
Children and Adult Services,Education,Transfer Payments,510026,School Children,06-May-2016,3124154-SI-1284,603.00,TM NURSERY ENTERPRISES LTD T/A JACK IN THE BOX DAYCARE.
Children and Adult Services,Education,Transfer Payments,510026,School Children,06-May-2016,3124154-SI-1285,904.50,TM NURSERY ENTERPRISES LTD T/A JACK IN THE BOX DAYCARE.
Children and Adult Services,Education,Transport,230008,Contract Hire,06-May-2016,3123736-PS0131,884.80,BURNDALE PRIVATE HIRE.
Children and Adult Services,Education,Supplies and Services,384199,Miscellaneous Expenses,06-May-2016,3123826-293605,"1,807.12",DURHAM UNIVERSITY.
Children and Adult Services,Education,Transport,230007,Contract Hire,06-May-2016,3123885-015051,909.36,HODGSONS COACH OPERATORS LTD.
Children and Adult Services,Education,Transport,230007,Contract Hire,06-May-2016,3123885-015052,981.18,HODGSONS COACH OPERATORS LTD.
Children and Adult Services,Education,Transport,230007,Contract Hire,06-May-2016,3123885-015053,"1,780.74",HODGSONS COACH OPERATORS LTD.
Children and Adult Services,Education,Transport,230007,Contract Hire,06-May-2016,3123885-015054,"6,632.46",HODGSONS COACH OPERATORS LTD.
Children and Adult Services,Education,Transport,230007,Contract Hire,06-May-2016,3123885-015055,508.86,HODGSONS COACH OPERATORS LTD.
Children and Adult Services,Education,Transport,230007,Contract Hire,06-May-2016,3123885-015056,799.56,HODGSONS COACH OPERATORS LTD.
Children and Adult Services,Education,Transport,230007,Contract Hire,06-May-2016,3123885-015057,"1,090.26",HODGSONS COACH OPERATORS LTD.
Children and Adult Services,Education,Transport,230007,Contract Hire,06-May-2016,3123885-015058,"1,780.74",HODGSONS COACH OPERATORS LTD.
Children and Adult Services,Education,Transport,230007,Contract Hire,06-May-2016,3123885-015059,908.64,HODGSONS COACH OPERATORS LTD.
Children and Adult Services,Education,Transport,230007,Contract Hire,06-May-2016,3123885-015060,"1,544.58",HODGSONS COACH OPERATORS LTD.
Children and Adult Services,Education,Transport,230007,Contract Hire,06-May-2016,3123885-015061,"1,814.58",HODGSONS COACH OPERATORS LTD.
Children and Adult Services,Education,Transport,230007,Contract Hire,06-May-2016,3123885-015062,"2,943.72",HODGSONS COACH OPERATORS LTD.
Children and Adult Services,Education,Transport,230007,Contract Hire,06-May-2016,3123885-015063,"1,350.00",HODGSONS COACH OPERATORS LTD.
Children and Adult Services,Education,Transport,230007,Contract Hire,06-May-2016,3123885-015064,"1,260.00",HODGSONS COACH OPERATORS LTD.
Children and Adult Services,Education,Transport,230007,Contract Hire,06-May-2016,3123885-015066,908.64,HODGSONS COACH OPERATORS LTD.
Children and Adult Services,Education,Transport,230007,Contract Hire,06-May-2016,3123885-015067,807.68,HODGSONS COACH OPERATORS LTD.
Children and Adult Services,Education,Transport,230007,Contract Hire,06-May-2016,3123885-015068,750.00,HODGSONS COACH OPERATORS LTD.
Children and Adult Services,Education,Transport,230007,Contract Hire,06-May-2016,3123885-015069,"2,970.00",HODGSONS COACH OPERATORS LTD.
Children and Adult Services,Education,Transport,230007,Contract Hire,06-May-2016,3123885-015094,"1,707.65",HODGSONS COACH OPERATORS LTD.
Children and Adult Services,Childrens Services,Supplies and Services,384491,Miscellaneous Expenses,06-May-2016,3124192-201621,650.00,WHEATLEY HILL COMMUNITY NURSERY LTD.
Children and Adult Services,Childrens Services,Supplies and Services,384491,Miscellaneous Expenses,06-May-2016,3124192-201622,650.00,WHEATLEY HILL COMMUNITY NURSERY LTD.
Children and Adult Services,Childrens Services,Supplies and Services,384491,Miscellaneous Expenses,06-May-2016,3124192-201623,650.00,WHEATLEY HILL COMMUNITY NURSERY LTD.
Children and Adult Services,Education,Transport,230007,Contract Hire,06-May-2016,3123652-41601,"1,065.00",24/7 TAXI SERVICES LTD.
Children and Adult Services,Education,Transport,230008,Contract Hire,06-May-2016,3123652-41606,915.18,24/7 TAXI SERVICES LTD.
Children and Adult Services,Education,Transport,230008,Contract Hire,06-May-2016,3123652-41607,633.22,24/7 TAXI SERVICES LTD.
Children and Adult Services,Education,Transport,230006,Contract Hire,06-May-2016,3123652-41608,516.00,24/7 TAXI SERVICES LTD.
Children and Adult Services,Head of Adults,Supplies and Services,338366,Services,06-May-2016,3123742-31124,"3,278.70",CARE ABILITY.
Children and Adult Services,Education,Transport,230008,Contract Hire,06-May-2016,3123875-HT225,"1,857.38",HARRY`S TAXI`S.
Children and Adult Services,Education,Construction Work,908105,Construction work,06-May-2016,3123947-31681,500.00,LUCION ENVIRONMENTAL LLP LTD.
Children and Adult Services,Head of Adults,Third Party Payments,478101,Purchase of Care,06-May-2016,3124116-2037A,"8,766.59",SPRINGFIELD HOMECARE SERVICES LTD T/A PATHWAYS TO INDEPENDENCE.
Children and Adult Services,Education,Transport,230008,Contract Hire,06-May-2016,3123662-O297,"1,825.20",ABC & OUSTON CABS.
Children and Adult Services,Education,Transport,230008,Contract Hire,06-May-2016,3123662-O304,855.00,ABC & OUSTON CABS.
Children and Adult Services,Education,Transport,230007,Contract Hire,06-May-2016,3123763-879A,750.00,CLIVE HUBERY.
Children and Adult Services,Education,Transport,230008,Contract Hire,06-May-2016,3123770-1032,"1,400.00",CONNORS MINI BUSES.
Children and Adult Services,Education,Transport,230008,Contract Hire,06-May-2016,3123770-1033,"1,092.00",CONNORS MINI BUSES.
Children and Adult Services,Education,Transport,230008,Contract Hire,06-May-2016,3123770-1034,"1,806.00",CONNORS MINI BUSES.
Children and Adult Services,Education,Transport,230008,Contract Hire,06-May-2016,3123798-2798,"1,281.45",DAVES MINIBUSES.
Children and Adult Services,Education,Transport,230008,Contract Hire,06-May-2016,3123798-2799,"1,145.85",DAVES MINIBUSES.
Children and Adult Services,Education,Transport,230008,Contract Hire,06-May-2016,3123798-2800,"1,484.00",DAVES MINIBUSES.
Children and Adult Services,Education,Transport,230008,Contract Hire,06-May-2016,3123798-2801,"1,400.00",DAVES MINIBUSES.
Children and Adult Services,Education,Transport,230008,Contract Hire,06-May-2016,3123798-2802,720.00,DAVES MINIBUSES.
Children and Adult Services,Head of Adults,Third Party Payments,472101,Purchase of Care,06-May-2016,3123802-9573,"1,357.00",DCS & D LTD T/A HERITAGE HEALTHCARE.
Children and Adult Services,Education,Transport,230008,Contract Hire,06-May-2016,3123908-0381,672.00,JACKSON`S TAXI.
Children and Adult Services,Education,Transport,230007,Contract Hire,06-May-2016,3123935-1888,"9,525.80",LEE`S COACHES LTD.
Children and Adult Services,Childrens Services,Transport,230005,Contract Hire,06-May-2016,3123941-2543,"1,440.00",LOCAL TRANSPORT LTD.
Children and Adult Services,Head of Adults,Third Party Payments,478101,Purchase of Care,06-May-2016,3124116-2958,"7,643.63",SPRINGFIELD HOMECARE SERVICES LTD T/A PATHWAYS TO INDEPENDENCE.
Children and Adult Services,Public Health,Third Party Payments,460803,Contract Payments,06-May-2016,3124126-4952,"25,278.00",SUPPORTIVE SRC LTD.
Children and Adult Services,Education,Transport,230007,Contract Hire,06-May-2016,3124155-3014,"1,425.00",TM TRAVEL.
Children and Adult Services,Education,Transport,230008,Contract Hire,06-May-2016,3123689-532,"1,042.05",AT TAXIS LTD.
Children and Adult Services,Education,Transport,230007,Contract Hire,06-May-2016,3123689-533,525.00,AT TAXIS LTD.
Children and Adult Services,Education,Transport,230008,Contract Hire,06-May-2016,3123705-523,"1,130.70",BEELINE MINI BUSES.
Children and Adult Services,Education,Transport,230008,Contract Hire,06-May-2016,3123768-251,"1,800.00",COLIN HOLMES.
Children and Adult Services,Education,Transport,230006,Contract Hire,06-May-2016,3123792-180,803.00,DA TRAVEL.
Children and Adult Services,Education,Transport,230008,Contract Hire,06-May-2016,3124069-519,728.00,ROAD RUNNERS (NE) LTD.
Children and Adult Services,Education,Transport,230008,Contract Hire,06-May-2016,3124069-523,"1,650.00",ROAD RUNNERS (NE) LTD.
Children and Adult Services,Childrens Services,Supplies and Services,364352,Grants to Voluntary Organisations,06-May-2016,3124122-239,711.72,STONHAM HOUSING ASSOCIATION LTD.
Children and Adult Services,Childrens Services,Supplies and Services,364352,Grants to Voluntary Organisations,06-May-2016,3124122-240,932.08,STONHAM HOUSING ASSOCIATION LTD.
Children and Adult Services,Education,Transport,230007,Contract Hire,06-May-2016,3123715-28,600.00,BL TAXIS.
Children and Adult Services,Education,Transport,230008,Contract Hire,06-May-2016,3123953-95,"2,325.00",M BUTCHER T/A KIDDI CABS.
Children and Adult Services,Education,Transport,230008,Contract Hire,06-May-2016,3123982-42,"11,600.00",MR M MCNAMARA. T/A MSM TAXIS
Children and Adult Services,Education,Transport,230008,Contract Hire,06-May-2016,3124167-81,"1,140.00",TRIDENT TAXIS.
Children and Adult Services,Education,Transfer Payments,510026,School Children,06-May-2016,3123801-3,"1,105.50",DAWN TILL DUSK CHILDCARE.
Children and Adult Services,Childrens Services,Supplies and Services,364358,Grants to Voluntary Organisations,09-May-2016,3124336-CAS-05-2016-036,"2,517.69",REDACTED - PAYMENT TO INDIVIDUAL
Children and Adult Services,Education,Employees,040001,Recruitment Instruction and Training,09-May-2016,3124540-TARINV/15423068,710.10,TES GLOBAL LTD.
Dedicated Schools Grant,Dedicated Schools Grant,Third Party Payments,440080,Other Third Party Payments,09-May-2016,3124295-SLINV/00000842,"2,558.06",DARLINGTON COLLEGE.
Children and Adult Services,Education,Transport,230007,Contract Hire,09-May-2016,3124321-5202/APRIL/16,750.00,EMMA RAMSHAW T/A EMMA`S CABS.
Children and Adult Services,Education,Transport,230008,Contract Hire,09-May-2016,3124243-119-29/4/16,"1,470.00",BG TAXIS.
Children and Adult Services,Education,Supplies and Services,384302,Miscellaneous Expenses,09-May-2016,3124276-RSPS000009,"4,755.00",CLEVES CROSS LEARNING TRUST T/A ROSA STREET PRIMARY SCHOOL.
Dedicated Schools Grant,Dedicated Schools Grant,Third Party Payments,440080,Other Third Party Payments,09-May-2016,3124456-0000024398,"5,066.19",NORTH EAST AUTISM SOCIETY.
Dedicated Schools Grant,Dedicated Schools Grant,Third Party Payments,440080,Other Third Party Payments,09-May-2016,3124456-0000024399,"5,066.19",NORTH EAST AUTISM SOCIETY.
Children and Adult Services,Childrens Services,Premises,108099,Service Repairs and Maintenance,09-May-2016,3124493-0000171504,"8,968.80",RIELLO UPS LTD.
Children and Adult Services,Childrens Services,Premises,108099,Service Repairs and Maintenance,09-May-2016,3124493-0000171579,970.00,RIELLO UPS LTD.
Children and Adult Services,Education,Transport,230008,Contract Hire,09-May-2016,3124305-DCT-14-20,960.00,DUNCAN G CUMMINGS T/A DURHAM EXECUTIVE HIRE.
Children and Adult Services,Education,Transport,230007,Contract Hire,09-May-2016,3124319-5182/0416,720.00,ELLIOTTS OF TRIMDON.
Children and Adult Services,Education,Transport,230008,Contract Hire,09-May-2016,3124319-E014/0416,"1,118.60",ELLIOTTS OF TRIMDON.
Children and Adult Services,Education,Transport,230008,Contract Hire,09-May-2016,3124319-E112/0416,952.00,ELLIOTTS OF TRIMDON.
Children and Adult Services,Education,Transport,230006,Contract Hire,09-May-2016,3124319-F643/0416,549.00,ELLIOTTS OF TRIMDON.
Children and Adult Services,Planning & Service Strategy,Supplies and Services,384199,Miscellaneous Expenses,09-May-2016,3124345-103018253,560.00,GATESHEAD COUNCIL.
Children and Adult Services,Education,Supplies and Services,304649,Equipment and Materials,09-May-2016,3124580-498529711,542.55,YORKSHIRE PURCHASING ORGANISATION.
Children and Adult Services,Education,Supplies and Services,338094,Services,09-May-2016,3124208-18002702,790.50,1LIFE MANAGEMENT SOLUTIONS LTD.
Dedicated Schools Grant,Dedicated Schools Grant,Third Party Payments,440999,Other Third Party Payments,09-May-2016,3124251-20001008,"4,916.84",BLIND CHILDREN UK.
Children and Adult Services,Commissioning inc Supporting People,Third Party Payments,479111,Purchase of Care,09-May-2016,3124341-90100990,"12,134.81",G4S FORENSIC & MEDICAL SERVICES (UK) LTD.
Children and Adult Services,Childrens Services,Third Party Payments,425040,Rendered by Voluntary Organisations,09-May-2016,3124220-16/2009,"3,128.40",ACORN HOUSE (FOSTERING SERVICES) LTD.
Children and Adult Services,Central Charges (CYPS),Creditors,952132,D.A.S.H.,09-May-2016,3124405-1000590,"1,050.00",KING JAMES I ACADEMY.
Children and Adult Services,Central Charges (CYPS),Creditors,952132,D.A.S.H.,09-May-2016,3124405-1000591,"1,306.90",KING JAMES I ACADEMY.
Children and Adult Services,Education,Transport,230008,Contract Hire,09-May-2016,3124437-0304803,"1,206.80",MR GN ROBBINS T/A GNR MINIBUS HIRE.
Children and Adult Services,Education,Transport,230008,Contract Hire,09-May-2016,3124437-0304804,"1,075.90",MR GN ROBBINS T/A GNR MINIBUS HIRE.
Children and Adult Services,Education,Supplies and Services,384302,Miscellaneous Expenses,09-May-2016,3124307-293654,547.00,DURHAM UNIVERSITY.
Children and Adult Services,Public Health,Construction Work,908105,Construction work,09-May-2016,3124383-160401,"81,998.00",INITIAL DEVELOPMENTS (PROPERTIES LTD).
Children and Adult Services,Head of Adults,Supplies and Services,338365,Services,09-May-2016,3124468-559034,"1,100.00",P & N ASSOCIATES LTD.
Children and Adult Services,Education,Transport,230007,Contract Hire,09-May-2016,3124238-03417,701.40,ATLAS TAXIS CONSETT.
Children and Adult Services,Education,Transport,230007,Contract Hire,09-May-2016,3124238-03418,795.00,ATLAS TAXIS CONSETT.
Children and Adult Services,Education,Transport,230008,Contract Hire,09-May-2016,3124238-03419,810.00,ATLAS TAXIS CONSETT.
Children and Adult Services,Head of Adults,Supplies and Services,338366,Services,09-May-2016,3124263-31375,"1,954.70",CARE ABILITY.
Children and Adult Services,Education,Transport,230007,Contract Hire,09-May-2016,3124343-18305,"2,104.80",GARNETTS LTD (COACHES).
Children and Adult Services,Education,Transport,230007,Contract Hire,09-May-2016,3124343-18306,"1,755.00",GARNETTS LTD (COACHES).
Children and Adult Services,Education,Transport,230007,Contract Hire,09-May-2016,3124343-18307,"9,270.45",GARNETTS LTD (COACHES).
Children and Adult Services,Education,Transport,230007,Contract Hire,09-May-2016,3124343-18310,"1,823.22",GARNETTS LTD (COACHES).
Children and Adult Services,Education,Transport,230007,Contract Hire,09-May-2016,3124343-18312,"2,325.00",GARNETTS LTD (COACHES).
Children and Adult Services,Education,Transport,230007,Contract Hire,09-May-2016,3124361-HT222,"1,950.00",HARRY`S TAXI`S.
Children and Adult Services,Childrens Services,Supplies and Services,384199,Miscellaneous Expenses,09-May-2016,3124576-27746,656.50,WRIXON SECURITY SERVICES LTD T/A WRIXON CARE.
Children and Adult Services,Education,Transport,230008,Contract Hire,09-May-2016,3124225-3882,"1,043.00",ALAN SOUTHERN T/A ALANS TAXIS PELTON FELL.
Children and Adult Services,Education,Transport,230007,Contract Hire,09-May-2016,3124322-0686,678.45,EN ROUTE TRAVEL.
Children and Adult Services,Education,Transport,230008,Contract Hire,09-May-2016,3124322-0687,"1,125.32",EN ROUTE TRAVEL.
Children and Adult Services,Head of Adults,Third Party Payments,478151,Purchase of Care,09-May-2016,3124324-9357,"2,567.96",ESSENTIAL CARE & SUPPORT LTD.
Children and Adult Services,Education,Transport,230008,Contract Hire,09-May-2016,3124387-1652,570.00,J YOUNG T/A VIP TAXIS.
Children and Adult Services,Education,Transport,230007,Contract Hire,09-May-2016,3124415-1874,"5,969.70",LEE`S COACHES LTD.
Children and Adult Services,Education,Transport,230007,Contract Hire,09-May-2016,3124415-1876,"1,560.00",LEE`S COACHES LTD.
Children and Adult Services,Education,Employees,040149,Recruitment Instruction and Training,09-May-2016,3124519-4771,760.00,SIMULUS EDUCATION SERVICES LTD.
Children and Adult Services,Education,Transport,230006,Contract Hire,09-May-2016,3124330-004,"1,200.00",FONACAB DURHAM.
Children and Adult Services,Childrens Services,Supplies and Services,338076,Services,09-May-2016,3124353-667,"12,900.00",GRANGE VILLA COMMUNITY ENTERPRISE CENTRE.
Children and Adult Services,Education,Transport,230007,Contract Hire,09-May-2016,3124435-19,600.00,MR BW YOUNG T/A ESH TAXIS.
Children and Adult Services,Education,Transport,230007,Contract Hire,10-May-2016,3125294-DCC/4029/APRIL16,"1,492.50",COUNTY COACHES.
Children and Adult Services,Education,Transport,230008,Contract Hire,10-May-2016,3125256-10APRIL16,"1,281.15",BEELINE PRIVATE HIRE.
Dedicated Schools Grant,Dedicated Schools Grant,Central Support and Capital,615208,Support Services,10-May-2016,3125422-RES-05-2016-035,"7,871.06",NEW COLLEGE ACADEMIES TRUST - CONSETT ACADEMY.
Children and Adult Services,Education,Transport,230008,Contract Hire,10-May-2016,3125256-APRIL16,"1,054.95",BEELINE PRIVATE HIRE.
Children and Adult Services,Education,Transport,230008,Contract Hire,10-May-2016,3125267-BZ00183-APR16,"1,092.00",BREZ`S TAXIS.
Children and Adult Services,Education,Transport,230008,Contract Hire,10-May-2016,3125415-16B-28/4/16,938.00,MR RAYMOND RENWICK.
Children and Adult Services,Education,Transport,230008,Contract Hire,10-May-2016,3125463-028-29/4/16,"1,275.00",RONS TAXI (CHESTER LE ST).
Children and Adult Services,Education,Transport,230008,Contract Hire,10-May-2016,3125496-04/2016/003,720.00,TARNS TAXIS LTD.
Children and Adult Services,Childrens Services,Transport,230005,Contract Hire,10-May-2016,3125286-CLUB16010D,500.00,CLUBMAN CABS.
Children and Adult Services,Education,Transport,230008,Contract Hire,10-May-2016,3125367-E136-APR16,600.00,JAFFAS TAXIS.
Children and Adult Services,Education,Transport,230008,Contract Hire,10-May-2016,3125376-A098-APR16,960.00,K & R TAXIS.
Children and Adult Services,Education,Transport,230008,Contract Hire,10-May-2016,3125409-WINDS04-16,"2,165.28",MR CT WALKER T/A COLIN`S TAXIS.
Children and Adult Services,Education,Transport,230008,Contract Hire,10-May-2016,3125414-A057/04/16,870.00,MR M ALLISON T/A MACBETH TAXIS/COACHES.
Children and Adult Services,Education,Transport,230008,Contract Hire,10-May-2016,3125414-A069/04/16,"1,140.00",MR M ALLISON T/A MACBETH TAXIS/COACHES.
Children and Adult Services,Childrens Services,Premises,145009,Cleaning and Domestic Supplies,10-May-2016,3125432-CN19206809,535.62,OCS GROUP UK LTD T/A CANNON HYGIENE.
Children and Adult Services,Education,Transport,230008,Contract Hire,10-May-2016,3125299-G/HEAD015,"1,125.00",D IRVING T/A BJ TAXIS.
Children and Adult Services,Education,Transport,230008,Contract Hire,10-May-2016,3125304-OSAPR1601,"1,413.30",DALELINK PRIVATE HIRE.
Children and Adult Services,Education,Construction Work,908105,Construction work,10-May-2016,3125363-DURH/0693,"385,327.70",INSPIREDSPACES DURHAM LTD.
Children and Adult Services,Education,Transport,230008,Contract Hire,10-May-2016,3125405-KDC010416,"2,445.30",MJ TIMNEY T/A KDC & C&M TAXIS.
Children and Adult Services,Education,Transport,230008,Contract Hire,10-May-2016,3125409-WAL104-16,"1,563.17",MR CT WALKER T/A COLIN`S TAXIS.
Children and Adult Services,Education,Transport,230008,Contract Hire,10-May-2016,3125409-WAL204-16,"1,650.00",MR CT WALKER T/A COLIN`S TAXIS.
Children and Adult Services,Education,Transport,230008,Contract Hire,10-May-2016,3125416-2908-M008,"1,140.00",MR S BOWERS.
Children and Adult Services,Education,Transport,230008,Contract Hire,10-May-2016,3125416-2908-M027,724.22,MR S BOWERS.
Children and Adult Services,Education,Third Party Payments,440999,Other Third Party Payments,10-May-2016,3125453-COMMLEARN,"3,363.00",REAL LIVES REAL CHOICES.
Children and Adult Services,Education,Transport,230008,Contract Hire,10-May-2016,3125409-VLR04-16,599.20,MR CT WALKER T/A COLIN`S TAXIS.
Children and Adult Services,Education,Transport,230008,Contract Hire,10-May-2016,3125410-2014-214,"1,316.44",MR D KEMP T/A ACE EXECUTIVE.
Children and Adult Services,Education,Premises,120009,Energy Costs,10-May-2016,3125429-NNV06851,542.71,NPOWER.
Children and Adult Services,Education,Third Party Payments,440999,Other Third Party Payments,10-May-2016,3125453-2NDSTAGE,958.75,REAL LIVES REAL CHOICES.
Children and Adult Services,Childrens Services,Third Party Payments,440027,Other Third Party Payments,10-May-2016,3124869-1100351,504.45,REDACTED - PAYMENT TO INDIVIDUAL
Children and Adult Services,Childrens Services,Third Party Payments,440027,Other Third Party Payments,10-May-2016,3125179-1100614,706.23,REDACTED - PAYMENT TO INDIVIDUAL
Children and Adult Services,Childrens Services,Third Party Payments,440015,Other Third Party Payments,10-May-2016,3125206-1101470,"2,283.90",REDACTED - PAYMENT TO INDIVIDUAL
Children and Adult Services,Education,Transport,230007,Contract Hire,10-May-2016,3125260-A/N4319,686.00,BIG MAMMA`S EXPRESS.
Children and Adult Services,Childrens Services,Employees,080025,Agency Staff,10-May-2016,3125276-2324421,"1,062.50",CELSIAN.
Children and Adult Services,Childrens Services,Supplies and Services,384899,Miscellaneous Expenses,10-May-2016,3125307-2931396,"1,236.96",DEPARTMENT FOR WORK & PENSIONS.
Children and Adult Services,Education,Transport,230008,Contract Hire,10-May-2016,3125378-08-N079,672.00,KD TAXIS.
Children and Adult Services,Education,Transport,230008,Contract Hire,10-May-2016,3125467-W075/41,"1,257.20",S & S TRAVEL LTD.
Children and Adult Services,Education,Transport,230008,Contract Hire,10-May-2016,3125467-WO52/30,"1,899.66",S & S TRAVEL LTD.
Children and Adult Services,Education,Transport,230008,Contract Hire,10-May-2016,3125467-WO85/08,"1,260.00",S & S TRAVEL LTD.
Dedicated Schools Grant,Dedicated Schools Grant,Employees,080025,Agency Staff,10-May-2016,3125498-1104187,880.00,TEACHING PERSONNEL LTD.
Children and Adult Services,Childrens Services,Transport,230005,Contract Hire,10-May-2016,3125241-M11/ZE,595.00,AABAT TAXIS.
Children and Adult Services,Childrens Services,Transport,230005,Contract Hire,10-May-2016,3125241-M35/ZB,780.00,AABAT TAXIS.
Children and Adult Services,Childrens Services,Transport,230005,Contract Hire,10-May-2016,3125241-M38/ZE,"1,835.00",AABAT TAXIS.
Children and Adult Services,Childrens Services,Transport,230005,Contract Hire,10-May-2016,3125241-M39/ZD,"2,255.00",AABAT TAXIS.
Children and Adult Services,Education,Transport,230008,Contract Hire,10-May-2016,3125254-290416,"1,473.92",AVALON TAXIS.
Children and Adult Services,Education,Transport,230008,Contract Hire,10-May-2016,3125269-W01708,808.50,C & R TAXIS.
Children and Adult Services,Education,Transport,230008,Contract Hire,10-May-2016,3125269-W12008,546.00,C & R TAXIS.
Children and Adult Services,Education,Transport,230007,Contract Hire,10-May-2016,3125287-C/9162,"4,779.30",COCHRANES T/A KELVIN TRAVEL.
Children and Adult Services,Education,Transport,230007,Contract Hire,10-May-2016,3125287-C/9163,"2,604.90",COCHRANES T/A KELVIN TRAVEL.
Children and Adult Services,Education,Transport,230007,Contract Hire,10-May-2016,3125287-C/9164,"2,088.15",COCHRANES T/A KELVIN TRAVEL.
Children and Adult Services,Education,Transport,230007,Contract Hire,10-May-2016,3125287-C/9165,"3,755.40",COCHRANES T/A KELVIN TRAVEL.
Children and Adult Services,Education,Transport,230007,Contract Hire,10-May-2016,3125287-C/9166,"2,100.00",COCHRANES T/A KELVIN TRAVEL.
Children and Adult Services,Planning & Service Strategy,Supplies and Services,338099,Services,10-May-2016,3125346-GO0153,517.50,GLEBE CENTRE ENTERPRISES LTD.
Children and Adult Services,Education,Vehicles Equipment Furniture and Fittings,912521,Purchase-furniture and fittings,10-May-2016,3125349-102316,"2,553.00",GODFREY SYRETT LTD.
Children and Adult Services,Education,Transport,230008,Contract Hire,10-May-2016,3125399-041601,"2,484.50",MARK & JOHN CHISHOLM T/A (CHEVRON).
Dedicated Schools Grant,Dedicated Schools Grant,Transport,230010,Contract Hire,10-May-2016,3125399-041604,"1,140.00",MARK & JOHN CHISHOLM T/A (CHEVRON).
Children and Adult Services,Education,Transport,230008,Contract Hire,10-May-2016,3125399-041605,818.86,MARK & JOHN CHISHOLM T/A (CHEVRON).
Children and Adult Services,Education,Transport,230008,Contract Hire,10-May-2016,3125399-041606,712.50,MARK & JOHN CHISHOLM T/A (CHEVRON).
Dedicated Schools Grant,Dedicated Schools Grant,Transport,230010,Contract Hire,10-May-2016,3125399-041607,"1,140.00",MARK & JOHN CHISHOLM T/A (CHEVRON).
Dedicated Schools Grant,Dedicated Schools Grant,Transport,230010,Contract Hire,10-May-2016,3125399-041608,"1,200.00",MARK & JOHN CHISHOLM T/A (CHEVRON).
Dedicated Schools Grant,Dedicated Schools Grant,Transport,230010,Contract Hire,10-May-2016,3125399-041609,"1,200.00",MARK & JOHN CHISHOLM T/A (CHEVRON).
Children and Adult Services,Education,Transport,230007,Contract Hire,10-May-2016,3125399-041612,870.00,MARK & JOHN CHISHOLM T/A (CHEVRON).
Children and Adult Services,Education,Transport,230008,Contract Hire,10-May-2016,3125417-160408,"1,200.00",MR STEVEN PRATT T/A PRATTS TAXIS LTD.
Children and Adult Services,Education,Transport,230008,Contract Hire,10-May-2016,3125437-SC-046,"1,125.74",PAUL BURRELL T/A PAUL BURRELL TAXIS.
Children and Adult Services,Education,Transport,230007,Contract Hire,10-May-2016,3125493-35904C,"1,200.00",T MOORE & SON.
Children and Adult Services,Childrens Services,Transport,230005,Contract Hire,10-May-2016,3125241-M1/ZB,"1,490.00",AABAT TAXIS.
Children and Adult Services,Education,Transport,230008,Contract Hire,10-May-2016,3125281-KJ039,874.86,CHIPPERS TAXIS.
Children and Adult Services,Education,Transport,230007,Contract Hire,10-May-2016,3125283-45356,"1,590.00",CJ GRIERSON T/A GRIERSONS COACHES.
Children and Adult Services,Education,Transport,230007,Contract Hire,10-May-2016,3125283-45357,"2,100.00",CJ GRIERSON T/A GRIERSONS COACHES.
Children and Adult Services,Education,Transport,230007,Contract Hire,10-May-2016,3125283-45358,"1,875.00",CJ GRIERSON T/A GRIERSONS COACHES.
Children and Adult Services,Education,Transport,230007,Contract Hire,10-May-2016,3125283-45359,"1,950.00",CJ GRIERSON T/A GRIERSONS COACHES.
Children and Adult Services,Education,Transport,230007,Contract Hire,10-May-2016,3125283-45360,"3,755.40",CJ GRIERSON T/A GRIERSONS COACHES.
Children and Adult Services,Education,Transport,230007,Contract Hire,10-May-2016,3125316-22697,"1,952.40",DURHAM CITY COACHES.
Children and Adult Services,Education,Transport,230007,Contract Hire,10-May-2016,3125316-22698,"2,025.00",DURHAM CITY COACHES.
Children and Adult Services,Education,Transport,230006,Contract Hire,10-May-2016,3125354-HT224,840.00,HARRY`S TAXI`S.
Children and Adult Services,Education,Transport,230008,Contract Hire,10-May-2016,3125381-00683,728.00,KENNAS CABS.
Children and Adult Services,Education,Transport,230008,Contract Hire,10-May-2016,3125439-DCC85,889.00,PAUL`S TAXIS..
Children and Adult Services,Commissioning inc Supporting People,Third Party Payments,479102,Purchase of Care,10-May-2016,3125457-10122,"17,500.00",RETHINK MENTAL ILLNESS.
Dedicated Schools Grant,Dedicated Schools Grant,Supplies and Services,338091,Services,10-May-2016,3125480-10433,550.00,SPRINGBOARD SUNDERLAND.
Children and Adult Services,Education,Supplies and Services,384199,Miscellaneous Expenses,10-May-2016,3125512-03/16,"1,000.00",THRILLS & SKILLS FOR LIFE.
Children and Adult Services,Education,Transport,230008,Contract Hire,10-May-2016,3125242-O302,"1,230.00",ABC & OUSTON CABS.
Children and Adult Services,Education,Transport,230008,Contract Hire,10-May-2016,3125242-O303,"1,755.00",ABC & OUSTON CABS.
Children and Adult Services,Education,Transport,230008,Contract Hire,10-May-2016,3125242-O306,810.00,ABC & OUSTON CABS.
Children and Adult Services,Education,Transport,230008,Contract Hire,10-May-2016,3125262-0004,560.00,BL CARS.
Children and Adult Services,Education,Transport,230008,Contract Hire,10-May-2016,3125264-1406,"1,180.90",BOBBY DOVE.
Children and Adult Services,Education,Transport,230008,Contract Hire,10-May-2016,3125264-1407,"2,499.90",BOBBY DOVE.
Children and Adult Services,Childrens Services,Transport,230005,Contract Hire,10-May-2016,3125295-6034,590.88,CROFT BUSINESS SERVICES (UK) LTD T/A CROFT TAXIS.
Children and Adult Services,Education,Transport,230008,Contract Hire,10-May-2016,3125301-1463,826.00,DA TAXIS.
Children and Adult Services,Education,Transport,230008,Contract Hire,10-May-2016,3125301-1464,"1,424.40",DA TAXIS.
Children and Adult Services,Education,Transport,230008,Contract Hire,10-May-2016,3125301-1465,894.38,DA TAXIS.
Children and Adult Services,Education,Transport,230008,Contract Hire,10-May-2016,3125301-1467,777.28,DA TAXIS.
Children and Adult Services,Education,Transport,230008,Contract Hire,10-May-2016,3125305-0023,"2,250.00",DAVID WALKER TAXIS.
Children and Adult Services,Education,Third Party Payments,440999,Other Third Party Payments,10-May-2016,3125332-4622,"1,680.00",FANE LTD.
Children and Adult Services,Education,Transport,230007,Contract Hire,10-May-2016,3125344-3196,"1,050.00",GEM TRAVEL.
Children and Adult Services,Education,Transport,230008,Contract Hire,10-May-2016,3125366-1650,520.00,J YOUNG T/A VIP TAXIS.
Children and Adult Services,Education,Transport,230008,Contract Hire,10-May-2016,3125366-1654,753.90,J YOUNG T/A VIP TAXIS.
Children and Adult Services,Education,Transport,230008,Contract Hire,10-May-2016,3125366-1661,900.00,J YOUNG T/A VIP TAXIS.
Children and Adult Services,Education,Transport,230008,Contract Hire,10-May-2016,3125366-1666,616.00,J YOUNG T/A VIP TAXIS.
Children and Adult Services,Education,Transport,230007,Contract Hire,10-May-2016,3125380-2019,682.00,KEN HINDS.
Children and Adult Services,Education,Transport,230007,Contract Hire,10-May-2016,3125385-1873,"1,680.00",LEE`S COACHES LTD.
Children and Adult Services,Education,Transport,230008,Contract Hire,10-May-2016,3125389-2571,"1,120.00",LOCAL TRANSPORT LTD.
Children and Adult Services,Education,Transport,230008,Contract Hire,10-May-2016,3125389-2574,"1,334.00",LOCAL TRANSPORT LTD.
Children and Adult Services,Education,Transport,230006,Contract Hire,10-May-2016,3125413-0164,570.00,MR DEREK HENDERSON.
Children and Adult Services,Education,Transport,230008,Contract Hire,10-May-2016,3125416-2906,"1,656.90",MR S BOWERS.
Children and Adult Services,Education,Transport,230008,Contract Hire,10-May-2016,3125444-0445,"1,687.50",PETER`S PRIVATE HIRE/PETER BEST.
Children and Adult Services,Education,Transport,230008,Contract Hire,10-May-2016,3125444-0446,"1,755.00",PETER`S PRIVATE HIRE/PETER BEST.
Children and Adult Services,Education,Transport,230008,Contract Hire,10-May-2016,3125458-3034,"1,428.00",RICHIES TAXIS.
Children and Adult Services,Education,Transport,230008,Contract Hire,10-May-2016,3125464-1667,980.00,RON`S TAXIS (FISHBURN).
Children and Adult Services,Education,Transport,230008,Contract Hire,10-May-2016,3125475-236A,825.00,SJ MACKENZIE T/A SCOTTS TAXIS.
Children and Adult Services,Education,Transport,230008,Contract Hire,10-May-2016,3125475-239A,910.00,SJ MACKENZIE T/A SCOTTS TAXIS.
Children and Adult Services,Education,Transport,230006,Contract Hire,10-May-2016,3125252-535,"1,260.00",AT TAXIS LTD.
Children and Adult Services,Education,Transport,230007,Contract Hire,10-May-2016,3125265-48A,741.50,BOBS TAXIS.
Children and Adult Services,Education,Transport,230007,Contract Hire,10-May-2016,3125300-178,510.00,D MCDONNELL.
Children and Adult Services,Education,Transport,230008,Contract Hire,10-May-2016,3125370-906,"1,106.40",JDS PRIVATE HIRE DURHAM.
Children and Adult Services,Education,Transport,230008,Contract Hire,10-May-2016,3125370-907,"1,325.85",JDS PRIVATE HIRE DURHAM.
Children and Adult Services,Education,Transport,230008,Contract Hire,10-May-2016,3125370-908,"1,039.95",JDS PRIVATE HIRE DURHAM.
Children and Adult Services,Education,Transport,230008,Contract Hire,10-May-2016,3125370-909,"1,206.15",JDS PRIVATE HIRE DURHAM.
Children and Adult Services,Education,Transport,230008,Contract Hire,10-May-2016,3125370-916,"1,800.00",JDS PRIVATE HIRE DURHAM.
Children and Adult Services,Education,Transport,230008,Contract Hire,10-May-2016,3125370-917,"1,680.00",JDS PRIVATE HIRE DURHAM.
Children and Adult Services,Education,Transport,230008,Contract Hire,10-May-2016,3125370-918,"1,950.00",JDS PRIVATE HIRE DURHAM.
Children and Adult Services,Education,Transport,230008,Contract Hire,10-May-2016,3125370-919,"2,090.00",JDS PRIVATE HIRE DURHAM.
Children and Adult Services,Education,Transport,230008,Contract Hire,10-May-2016,3125379-101,"1,200.00",KEN CHAMBERS T/A SHILDON TRANSPORT LTD.
Dedicated Schools Grant,Dedicated Schools Grant,Transport,230010,Contract Hire,10-May-2016,3125406-638,"1,680.00",MOLLYS TAXIS.
Children and Adult Services,Education,Transport,230008,Contract Hire,10-May-2016,3125406-640,"1,290.00",MOLLYS TAXIS.
Children and Adult Services,Education,Transport,230008,Contract Hire,10-May-2016,3125406-642,"1,554.70",MOLLYS TAXIS.
Children and Adult Services,Education,Transport,230007,Contract Hire,10-May-2016,3125407-009,"1,200.00",MORGAN`S TRAVEL.
Children and Adult Services,Education,Transport,230007,Contract Hire,10-May-2016,3125451-40A,964.95,RAYNERS COACHES.
Children and Adult Services,Education,Transport,230007,Contract Hire,10-May-2016,3125451-40C,"4,221.42",RAYNERS COACHES.
Children and Adult Services,Education,Transport,230008,Contract Hire,10-May-2016,3125454-002,910.00,REDZ PRIVATE HIRE.
Children and Adult Services,Education,Transport,230008,Contract Hire,10-May-2016,3125462-520,"1,650.00",ROAD RUNNERS (NE) LTD.
Children and Adult Services,Education,Transport,230008,Contract Hire,10-May-2016,3125462-521,756.00,ROAD RUNNERS (NE) LTD.
Children and Adult Services,Education,Transport,230007,Contract Hire,10-May-2016,3125484-361,"1,511.25",STEPHEN MAUDE LTD T/A MAUDES COACHES.
Children and Adult Services,Education,Transport,230007,Contract Hire,10-May-2016,3125484-362,"1,662.60",STEPHEN MAUDE LTD T/A MAUDES COACHES.
Children and Adult Services,Education,Transport,230007,Contract Hire,10-May-2016,3125484-363,"1,588.65",STEPHEN MAUDE LTD T/A MAUDES COACHES.
Children and Adult Services,Education,Transport,230007,Contract Hire,10-May-2016,3125484-364,"1,106.25",STEPHEN MAUDE LTD T/A MAUDES COACHES.
Dedicated Schools Grant,Dedicated Schools Grant,Transport,230011,Contract Hire,10-May-2016,3125237-15,753.50,A HJ JOBLING T/A CASTLE TAXIS.
Children and Adult Services,Education,Transport,230008,Contract Hire,10-May-2016,3125278-18,"1,260.00",CHAPMAN TRAVEL.
Children and Adult Services,Education,Transport,230008,Contract Hire,10-May-2016,3125298-77,835.36,D CROOK T/A CK TAXIS.
Children and Adult Services,Education,Transport,230008,Contract Hire,10-May-2016,3125302-17,"1,350.00",DA TRAVEL.
Dedicated Schools Grant,Dedicated Schools Grant,Transport,230010,Contract Hire,10-May-2016,3125393-87,"1,275.00",LORRAINES TAXIS.
Children and Adult Services,Education,Transport,230008,Contract Hire,10-May-2016,3125396-49,560.00,M BEHAN T/A M & M`S TAXIS.
Children and Adult Services,Education,Transport,230007,Contract Hire,10-May-2016,3125396-50,720.00,M BEHAN T/A M & M`S TAXIS.
Children and Adult Services,Education,Transport,230008,Contract Hire,10-May-2016,3125396-51,"1,050.00",M BEHAN T/A M & M`S TAXIS.
Children and Adult Services,Education,Transport,230008,Contract Hire,10-May-2016,3125397-19,"1,050.00",MALCOLM CARR T/A CARLY CABS.
Children and Adult Services,Education,Transport,230008,Contract Hire,10-May-2016,3125402-24,"1,155.00",MAURICE & SONS.
Children and Adult Services,Education,Transport,230006,Contract Hire,10-May-2016,3125438-08,"1,911.00",PAUL ROSE T/A PAUL`S TAXIS.
Children and Adult Services,Education,Transport,230008,Contract Hire,10-May-2016,3125520-04,884.00,TRIDENT TAXIS.
Children and Adult Services,Education,Construction Work,908105,Construction work,11-May-2016,3125702-INS2-HARELAWSCHOOL,"63,912.91",JOHN WADE (HAULAGE) LTD.
Children and Adult Services,Childrens Services,Supplies and Services,364353,Grants to Voluntary Organisations,11-May-2016,3125641-CAS-05-2016-057,"1,104.12",REDACTED - PAYMENT TO INDIVIDUAL
Children and Adult Services,Childrens Services,Supplies and Services,364301,Grants to Voluntary Organisations,11-May-2016,3125695-CAS-05-2016-053,622.09,REDACTED - PAYMENT TO INDIVIDUAL
Children and Adult Services,Commissioning inc Supporting People,Transfer Payments,515210,Social Services Clients,11-May-2016,3125749-CAS-05-2016-061,"1,950.00",REDACTED - PAYMENT TO INDIVIDUAL
Children and Adult Services,Head of Adults,Third Party Payments,472101,Purchase of Care,11-May-2016,3125783-CAS-05-2016-029,"1,292.14",PERFECT CARE LTD.
Children and Adult Services,Childrens Services,Supplies and Services,364310,Grants to Voluntary Organisations,11-May-2016,3125843-CAS-05-2016-050,541.32,REDACTED - PAYMENT TO INDIVIDUAL
Children and Adult Services,Head of Adults,Supplies and Services,304221,Equipment and Materials,11-May-2016,3125663-DURHAMPATHWAYS,"1,150.00",GEOFFREY SUGGETT (PAINTER & DECORATOR).
Children and Adult Services,Education,Supplies and Services,384199,Miscellaneous Expenses,11-May-2016,303505-GALA7/8/9MARCH,"1,020.03",PETER WATKINSON.
Children and Adult Services,Education,Supplies and Services,384540,Miscellaneous Expenses,11-May-2016,3125692-JD/DCC/1604,"3,450.00",JACK DRUM ARTS LTD.
Children and Adult Services,Education,Third Party Payments,440999,Other Third Party Payments,11-May-2016,3125654-0000005802,"20,387.34",FOUNDATION OF LIGHT.
Children and Adult Services,Public Health,Third Party Payments,460803,Contract Payments,11-May-2016,3125720-0000007600,"466,357.75",LIFELINE PROJECT LTD.
Children and Adult Services,Public Health,Third Party Payments,460802,Contract Payments,11-May-2016,3125764-7010100465,"28,320.63",NHS DDES CCG.
Children and Adult Services,Childrens Services,Supplies and Services,364340,Grants to Voluntary Organisations,11-May-2016,3125569-241000324,512.22,BARNARDO SERVICES LTD.
Children and Adult Services,Childrens Services,Supplies and Services,364340,Grants to Voluntary Organisations,11-May-2016,3125569-241000327,739.88,BARNARDO SERVICES LTD.
Children and Adult Services,Childrens Services,Supplies and Services,308011,Furniture,11-May-2016,3125907-497204351,"1,685.00",YORKSHIRE PURCHASING ORGANISATION.
Children and Adult Services,Childrens Services,Supplies and Services,304649,Equipment and Materials,11-May-2016,3125907-498476317,577.35,YORKSHIRE PURCHASING ORGANISATION.
Children and Adult Services,Commissioning inc Supporting People,Third Party Payments,442002,Supporting People,11-May-2016,3125571-1964628,"16,448.04",BID SERVICES WITH DEAF PEOPLE.
Children and Adult Services,Commissioning inc Supporting People,Third Party Payments,442002,Supporting People,11-May-2016,3125596-1964654,"3,452.04",CHILDREN NORTH EAST.
Children and Adult Services,Commissioning inc Supporting People,Third Party Payments,442002,Supporting People,11-May-2016,3125613-1964573,"19,868.48",CREATIVE SUPPORT LTD.
Children and Adult Services,Commissioning inc Supporting People,Third Party Payments,442002,Supporting People,11-May-2016,3125627-1964572,"5,668.48",DISC LTD.
Children and Adult Services,Commissioning inc Supporting People,Third Party Payments,442002,Supporting People,11-May-2016,3125627-1964597,"27,885.68",DISC LTD.
Children and Adult Services,Commissioning inc Supporting People,Third Party Payments,441001,Supporting People,11-May-2016,3125630-1964598,"20,819.76",DURHAM ACTION ON SINGLE HOUSING.
Children and Adult Services,Commissioning inc Supporting People,Third Party Payments,443001,Supporting People,11-May-2016,3125630-1964667,"5,771.91",DURHAM ACTION ON SINGLE HOUSING.
Children and Adult Services,Commissioning inc Supporting People,Third Party Payments,443001,Supporting People,11-May-2016,3125630-1964670,"5,771.91",DURHAM ACTION ON SINGLE HOUSING.
Children and Adult Services,Commissioning inc Supporting People,Third Party Payments,441001,Supporting People,11-May-2016,3125636-1964601,"5,483.40",EAST DURHAM COMMUNITY INITIATIVES LTD.
Children and Adult Services,Commissioning inc Supporting People,Third Party Payments,442002,Supporting People,11-May-2016,3125655-1964665,"28,981.92",FOUNDATION.
Children and Adult Services,Commissioning inc Supporting People,Third Party Payments,442002,Supporting People,11-May-2016,3125656-1964596,"37,566.04",FOUR HOUSING GROUP & CARE & REPAIR HANDYPERSON SERVICE.
Children and Adult Services,Commissioning inc Supporting People,Third Party Payments,442002,Supporting People,11-May-2016,3125668-1964602,"5,995.44",HANOVER HOUSING ASSOCIATION.
Children and Adult Services,Commissioning inc Supporting People,Third Party Payments,441001,Supporting People,11-May-2016,3125669-1964574,"18,082.80",HARBOUR SUPPORT SERVICES.
Dedicated Schools Grant,Dedicated Schools Grant,Construction Work,908105,Construction work,11-May-2016,3125682-9860116,"8,250.00",IMAGE PLAYGROUNDS LTD.
Dedicated Schools Grant,Dedicated Schools Grant,Supplies and Services,304259,Equipment and Materials,11-May-2016,3125688-ITL9485,521.80,ITL NORTH EAST LTD.
Children and Adult Services,Commissioning inc Supporting People,Third Party Payments,442002,Supporting People,11-May-2016,3125737-1964578,"5,469.72",MENTAL HEALTH MATTERS.
Children and Adult Services,Commissioning inc Supporting People,Third Party Payments,442002,Supporting People,11-May-2016,3125744-1964575,"5,240.36",MOVING ON.
Children and Adult Services,Commissioning inc Supporting People,Third Party Payments,442002,Supporting People,11-May-2016,3125805-1964582,"7,356.72",RICHMOND FELLOWSHIP.
Children and Adult Services,Commissioning inc Supporting People,Third Party Payments,444002,Supporting People,11-May-2016,3125805-1964583,"4,068.24",RICHMOND FELLOWSHIP.
Children and Adult Services,Commissioning inc Supporting People,Third Party Payments,441001,Supporting People,11-May-2016,3125805-1964595,"9,423.88",RICHMOND FELLOWSHIP.
Children and Adult Services,Commissioning inc Supporting People,Third Party Payments,442002,Supporting People,11-May-2016,3125824-1964579,"9,044.36",SHAID.
Children and Adult Services,Commissioning inc Supporting People,Third Party Payments,442002,Supporting People,11-May-2016,3125845-1964567,"145,933.32",STONHAM HOUSING ASSOCIATION LTD.
Children and Adult Services,Commissioning inc Supporting People,Third Party Payments,441001,Supporting People,11-May-2016,3125845-1964576,"67,257.36",STONHAM HOUSING ASSOCIATION LTD.
Children and Adult Services,Commissioning inc Supporting People,Third Party Payments,442002,Supporting People,11-May-2016,3125845-1964581,"29,343.52",STONHAM HOUSING ASSOCIATION LTD.
Children and Adult Services,Commissioning inc Supporting People,Third Party Payments,443001,Supporting People,11-May-2016,3125845-1964607,"17,564.68",STONHAM HOUSING ASSOCIATION LTD.
Children and Adult Services,Commissioning inc Supporting People,Third Party Payments,443001,Supporting People,11-May-2016,3125845-1964612,"17,041.28",STONHAM HOUSING ASSOCIATION LTD.
Children and Adult Services,Commissioning inc Supporting People,Third Party Payments,443001,Supporting People,11-May-2016,3125845-1964631,722.72,STONHAM HOUSING ASSOCIATION LTD.
Children and Adult Services,Commissioning inc Supporting People,Third Party Payments,442002,Supporting People,11-May-2016,3125845-1964647,"23,639.04",STONHAM HOUSING ASSOCIATION LTD.
Dedicated Schools Grant,Dedicated Schools Grant,Employees,080025,Agency Staff,11-May-2016,3125855-1100686,880.00,TEACHING PERSONNEL LTD.
Children and Adult Services,Commissioning inc Supporting People,Third Party Payments,441001,Supporting People,11-May-2016,3125859-1964629,"19,231.20",THE CYRENIANS LTD T/A CHANGING LIVES.
Children and Adult Services,Commissioning inc Supporting People,Third Party Payments,442002,Supporting People,11-May-2016,3125870-1964652,"9,289.44",THIRTEEN CARE & SUPPORT.
Children and Adult Services,Commissioning inc Supporting People,Third Party Payments,441001,Supporting People,11-May-2016,3125870-1964655,"7,510.04",THIRTEEN CARE & SUPPORT.
Children and Adult Services,Commissioning inc Supporting People,Third Party Payments,442002,Supporting People,11-May-2016,3125870-1964656,"1,519.52",THIRTEEN CARE & SUPPORT.
Children and Adult Services,Commissioning inc Supporting People,Third Party Payments,441001,Supporting People,11-May-2016,3125870-1964657,"7,776.68",THIRTEEN CARE & SUPPORT.
Children and Adult Services,Commissioning inc Supporting People,Third Party Payments,441001,Supporting People,11-May-2016,3125870-1964658,"23,518.04",THIRTEEN CARE & SUPPORT.
Children and Adult Services,Commissioning inc Supporting People,Third Party Payments,441001,Supporting People,11-May-2016,3125895-1964603,"1,183.60",WADDINGTON STREET CENTRE LTD.
Children and Adult Services,Commissioning inc Supporting People,Third Party Payments,441001,Supporting People,11-May-2016,3125898-1964580,"7,157.00",WEAR VALLEY WOMENS AID.
Children and Adult Services,Childrens Services,Supplies and Services,312075,Newspapers Books and Periodicals,11-May-2016,3125649-15636,573.50,FAMILY LINKS.
Children and Adult Services,Commissioning inc Supporting People,Third Party Payments,479102,Purchase of Care,11-May-2016,3125803-10121,"7,500.00",RETHINK MENTAL ILLNESS.
Children and Adult Services,Childrens Services,Third Party Payments,425040,Rendered by Voluntary Organisations,11-May-2016,3125908-02340,"3,232.86",YOUNG FOUNDATIONS LTD.
Children and Adult Services,Education,Transport,230008,Contract Hire,11-May-2016,303442-AA014,"2,030.00",COUNDON TAXIS.
Children and Adult Services,Childrens Services,Third Party Payments,425040,Rendered by Voluntary Organisations,11-May-2016,3125653-4095,"3,128.40",FOSTER CARE SOLUTIONS LTD.
Children and Adult Services,Public Health,Supplies and Services,364999,Grants to Voluntary Organisations,11-May-2016,3125705-1705,"2,290.00",JUBILEE FIELDS COMMUNITY ASSOCIATION.
Children and Adult Services,Education,Supplies and Services,384199,Miscellaneous Expenses,11-May-2016,3125738-2370,"2,250.00",MID NITE EXPRESS.
Children and Adult Services,Public Health,Supplies and Services,364999,Grants to Voluntary Organisations,11-May-2016,3125901-3450,"2,500.00",WHEATLEY HILL COMMUNITY ASSOCIATION.
Children and Adult Services,Public Health,Supplies and Services,364999,Grants to Voluntary Organisations,11-May-2016,3125901-3451,"1,250.00",WHEATLEY HILL COMMUNITY ASSOCIATION.
Children and Adult Services,Childrens Services,Premises,120009,Energy Costs,12-May-2016,3126263-79305943270-27/4/16,"1,541.72",NPOWER.
Children and Adult Services,Childrens Services,Third Party Payments,440037,Other Third Party Payments,12-May-2016,3126146-CAS-05-2016-072,598.00,JENNIFLOWERS CHILDCARE LTD.
Children and Adult Services,Education,Transport,230009,Contract Hire,12-May-2016,3126279-DCC102-APR2016,585.00,PB PRIVATE HIRE.
Children and Adult Services,Education,Transport,230009,Contract Hire,12-May-2016,3126375-7003-APRIL2016,615.00,SWAN TAXIS.
Children and Adult Services,Public Health,Supplies and Services,364999,Grants to Voluntary Organisations,12-May-2016,3125995-FUNDING1/4/16,"1,376.00",CHESTER WEST & CENTRAL COMMUNITY PROJECT.
Children and Adult Services,Head of Adults,Transport,230005,Contract Hire,12-May-2016,3126365-DCC084/SLD005,"1,185.00",STEPHEN COXON.
Dedicated Schools Grant,Dedicated Schools Grant,Transport,230201,Contract Hire,12-May-2016,3125941-RI0002310262,808.16,ARVAL UK LTD.
Children and Adult Services,Education,Transport,230008,Contract Hire,12-May-2016,3125943-DCC13APRIL16,"1,120.00",ATLAS TAXIS BISHOP AUCKLAND.
Children and Adult Services,Childrens Services,Supplies and Services,384491,Miscellaneous Expenses,12-May-2016,3126067-16C/ST/DCC10,"5,520.00",EMERALD NURSERY.
Children and Adult Services,Education,Transport,230008,Contract Hire,12-May-2016,3126214-0006-29/4/16,"1,560.00",MR A MILLWARD T/A SWISS CABS PRIVATE HIRE.
Children and Adult Services,Head of Adults,Transport,230005,Contract Hire,12-May-2016,3126424-1060-28/4/16,"1,260.00",WAYNE`S TAXIS.
Children and Adult Services,Head of Adults,Transport,230005,Contract Hire,12-May-2016,3125943-DCC1APRIL16,"1,995.00",ATLAS TAXIS BISHOP AUCKLAND.
Children and Adult Services,Education,Transport,230008,Contract Hire,12-May-2016,3125943-DCC8APRIL16,892.50,ATLAS TAXIS BISHOP AUCKLAND.
Children and Adult Services,Education,Transfer Payments,510026,School Children,12-May-2016,3125968-24MARCH2016,594.00,BRIGHT STAR NURSERY.
Dedicated Schools Grant,Dedicated Schools Grant,Transport,230010,Contract Hire,12-May-2016,3126322-003-29/4/16,858.00,RONS TAXI (CHESTER LE ST).
Children and Adult Services,Education,Transport,230008,Contract Hire,12-May-2016,3126365-DCC008/A045,"1,440.00",STEPHEN COXON.
Children and Adult Services,Head of Adults,Transport,230005,Contract Hire,12-May-2016,3126381-1323-4/5/16,630.00,TALBOTS TAXIS.
Children and Adult Services,Education,Transport,230008,Contract Hire,12-May-2016,3126384-04/2016/001,"1,030.68",TARNS TAXIS LTD.
Children and Adult Services,Education,Transport,230009,Contract Hire,12-May-2016,3126384-04/2016/004,750.00,TARNS TAXIS LTD.
Children and Adult Services,Education,Transport,230006,Contract Hire,12-May-2016,3126386-DCC/2015/85,"1,033.50",TAYLOR`S TAXIS.
Dedicated Schools Grant,Dedicated Schools Grant,Transport,230010,Contract Hire,12-May-2016,3126386-DCC/2015-86,990.00,TAYLOR`S TAXIS.
Children and Adult Services,Public Health,Premises,145009,Cleaning and Domestic Supplies,12-May-2016,3125952-0000022782,680.00,BETTAKLEEN LTD.
Children and Adult Services,Public Health,Premises,145009,Cleaning and Domestic Supplies,12-May-2016,3125952-0000022783,"1,295.54",BETTAKLEEN LTD.
Children and Adult Services,Public Health,Premises,145009,Cleaning and Domestic Supplies,12-May-2016,3125952-0000022784,873.46,BETTAKLEEN LTD.
Children and Adult Services,Childrens Services,Third Party Payments,425040,Rendered by Voluntary Organisations,12-May-2016,3126081-0000059591,"3,277.14",FIVE RIVERS CHILD CARE LTD.
Children and Adult Services,Public Health,Third Party Payments,460803,Contract Payments,12-May-2016,3126115-2510000133,"937,500.00",HARROGATE & DISTRICT NHS FOUNDATION TRUST.
Dedicated Schools Grant,Dedicated Schools Grant,Transport,230010,Contract Hire,12-May-2016,3126140-L107-APR16,750.00,JAFFAS TAXIS.
Children and Adult Services,Education,Transport,230008,Contract Hire,12-May-2016,3126161-2D-29/4/16,870.00,L & R PRIVATE HIRE.
Children and Adult Services,Education,Transport,230007,Contract Hire,12-May-2016,3126222-09-29/4/16,891.00,MR KJB BOWERY T/A KJB TAXIS.
Children and Adult Services,Education,Transport,230008,Contract Hire,12-May-2016,3126225-N053/04/16,"1,440.00",MR M ALLISON T/A MACBETH TAXIS/COACHES.
Children and Adult Services,Education,Transport,230008,Contract Hire,12-May-2016,3126225-N059-04/16,"1,520.00",MR M ALLISON T/A MACBETH TAXIS/COACHES.
Children and Adult Services,Education,Transport,230008,Contract Hire,12-May-2016,3126358-JJJC841783,"1,271.34",SPENNYMOOR TAXIS.
Children and Adult Services,Public Health,Supplies and Services,364999,Grants to Voluntary Organisations,12-May-2016,3125948-SIN022876,"3,100.00",BEAMISH MUSEUM LTD.
Children and Adult Services,Education,Transport,230008,Contract Hire,12-May-2016,3126126-IR1604006,"1,745.24",I & R EXECUTIVE TRAVEL.
Children and Adult Services,Education,Transport,230008,Contract Hire,12-May-2016,3126126-IR1604007,"1,517.74",I & R EXECUTIVE TRAVEL.
Children and Adult Services,Education,Transport,230008,Contract Hire,12-May-2016,3126126-IR1604010,720.00,I & R EXECUTIVE TRAVEL.
Children and Adult Services,Education,Transport,230008,Contract Hire,12-May-2016,3126358-LLMD33467,700.00,SPENNYMOOR TAXIS.
Children and Adult Services,Education,Transport,230007,Contract Hire,12-May-2016,3126392-5030-M028,"2,863.80",TED WILFORD COACHES.
Children and Adult Services,Education,Transport,230008,Contract Hire,12-May-2016,3126161-2D-APR16,"1,275.00",L & R PRIVATE HIRE.
Children and Adult Services,Education,Transport,230007,Contract Hire,12-May-2016,3126221-JP/04/16,729.00,MR J AGAR T/A PARK TAXIS.
Children and Adult Services,Education,Transport,230007,Contract Hire,12-May-2016,3126392-6032-H16,"1,350.00",TED WILFORD COACHES.
Children and Adult Services,Public Health,Supplies and Services,364999,Grants to Voluntary Organisations,12-May-2016,3126421-1516/033,"2,500.00",WADDINGTON STREET CENTRE LTD.
Children and Adult Services,Education,Transport,230008,Contract Hire,12-May-2016,3125910-N300416,"1,430.00",1ST AID COMMERCIALS LTD.
Children and Adult Services,Education,Transport,230008,Contract Hire,12-May-2016,3126003-16-SC20,840.00,CLUBMAN CABS.
Children and Adult Services,Head of Adults,Transport,230005,Contract Hire,12-May-2016,3126203-APRILF5,"1,025.60",MICHAEL A BODDY T/A MBS TAXIS.
Children and Adult Services,Education,Transport,230008,Contract Hire,12-May-2016,3126203-APRILF6,500.00,MICHAEL A BODDY T/A MBS TAXIS.
Children and Adult Services,Education,Transport,230007,Contract Hire,12-May-2016,3126327-3080/22,"1,211.40",S & S TRAVEL LTD.
Children and Adult Services,Education,Transport,230008,Contract Hire,12-May-2016,3126327-SO11/41,"1,272.04",S & S TRAVEL LTD.
Children and Adult Services,Education,Transport,230008,Contract Hire,12-May-2016,3126327-WO67/08,"1,670.00",S & S TRAVEL LTD.
Children and Adult Services,Education,Transport,230007,Contract Hire,12-May-2016,3126392-5038-30,"1,733.10",TED WILFORD COACHES.
Children and Adult Services,Education,Transport,230008,Contract Hire,12-May-2016,3125914-AA1198,"1,288.50",AA MINIBUS HIRE.
Children and Adult Services,Education,Transport,230008,Contract Hire,12-May-2016,3125914-AA1200,"1,250.70",AA MINIBUS HIRE.
Children and Adult Services,Childrens Services,Supplies and Services,308011,Furniture,12-May-2016,3125929-155359,590.00,ALBANY CONTRACT FURNITURE.
Children and Adult Services,Head of Adults,Supplies and Services,338365,Services,12-May-2016,3126007-952982,599.95,COMPLETE CARE NETWORK LTD.
Children and Adult Services,Childrens Services,Third Party Payments,425040,Rendered by Voluntary Organisations,12-May-2016,3126085-125944,730.00,FOSTER CARES LTD.
Children and Adult Services,Childrens Services,Third Party Payments,425040,Rendered by Voluntary Organisations,12-May-2016,3126085-125996,730.00,FOSTER CARES LTD.
Children and Adult Services,Childrens Services,Third Party Payments,425040,Rendered by Voluntary Organisations,12-May-2016,3126085-126064,"2,190.00",FOSTER CARES LTD.
Children and Adult Services,Childrens Services,Third Party Payments,425040,Rendered by Voluntary Organisations,12-May-2016,3126085-126065,"2,100.00",FOSTER CARES LTD.
Children and Adult Services,Childrens Services,Third Party Payments,425040,Rendered by Voluntary Organisations,12-May-2016,3126085-126165,730.00,FOSTER CARES LTD.
Children and Adult Services,Childrens Services,Third Party Payments,425040,Rendered by Voluntary Organisations,12-May-2016,3126085-126185,730.00,FOSTER CARES LTD.
Children and Adult Services,Childrens Services,Third Party Payments,425040,Rendered by Voluntary Organisations,12-May-2016,3126085-126190,730.00,FOSTER CARES LTD.
Children and Adult Services,Childrens Services,Third Party Payments,425040,Rendered by Voluntary Organisations,12-May-2016,3126085-126192,730.00,FOSTER CARES LTD.
Children and Adult Services,Childrens Services,Third Party Payments,425040,Rendered by Voluntary Organisations,12-May-2016,3126085-126196,700.00,FOSTER CARES LTD.
Dedicated Schools Grant,Dedicated Schools Grant,Transport,230010,Contract Hire,12-May-2016,3126231-160409,"1,370.00",MR STEVEN PRATT T/A PRATTS TAXIS LTD.
Children and Adult Services,Education,Transport,230007,Contract Hire,12-May-2016,3126310-RDS015,660.00,RDS TAXI.
Children and Adult Services,Education,Transport,230007,Contract Hire,12-May-2016,3126320-150546,"4,657.20",ROBERTS TOURS.
Children and Adult Services,Childrens Services,Third Party Payments,425040,Rendered by Voluntary Organisations,12-May-2016,3126377-181021,"1,639.96",SWIIS FOSTER CARE LTD.
Children and Adult Services,Childrens Services,Third Party Payments,425040,Rendered by Voluntary Organisations,12-May-2016,3126377-181428,819.98,SWIIS FOSTER CARE LTD.
Children and Adult Services,Childrens Services,Third Party Payments,425040,Rendered by Voluntary Organisations,12-May-2016,3126377-181429,730.03,SWIIS FOSTER CARE LTD.
Children and Adult Services,Childrens Services,Third Party Payments,425040,Rendered by Voluntary Organisations,12-May-2016,3126377-181434,980.00,SWIIS FOSTER CARE LTD.
Children and Adult Services,Childrens Services,Third Party Payments,425040,Rendered by Voluntary Organisations,12-May-2016,3126377-181436,819.98,SWIIS FOSTER CARE LTD.
Children and Adult Services,Childrens Services,Third Party Payments,425040,Rendered by Voluntary Organisations,12-May-2016,3126377-181437,730.03,SWIIS FOSTER CARE LTD.
Children and Adult Services,Education,Transport,230008,Contract Hire,12-May-2016,3126380-35704A,"1,165.92",T MOORE & SON.
Children and Adult Services,Childrens Services,Third Party Payments,425040,Rendered by Voluntary Organisations,12-May-2016,3126397-000192,"8,166.33",THE FOSTERING COMPANY NE LTD.
Children and Adult Services,Head of Adults,Transport,230005,Contract Hire,12-May-2016,3125924-0008A,990.00,AIRPORT TAXIS 4U.
Children and Adult Services,Childrens Services,Supplies and Services,344138,Telephones,12-May-2016,3125928-43938,"1,100.00",ALARM RADIO MONITORING LTD.
Children and Adult Services,Education,Transport,230008,Contract Hire,12-May-2016,3125954-06888,"1,372.00",BIRDS TAXIS.
Children and Adult Services,Education,Transport,230006,Contract Hire,12-May-2016,3125954-06889,768.00,BIRDS TAXIS.
Children and Adult Services,Education,Construction Work,908105,Construction work,12-May-2016,3126134-27324,"3,420.00",INTERPLAN SIGN SYSTEMS LTD.
Children and Adult Services,Head of Adults,Transport,230005,Contract Hire,12-May-2016,3126160-KW578,630.00,KWIK CABS.
Children and Adult Services,Head of Adults,Transport,230005,Contract Hire,12-May-2016,3126160-KW585,840.00,KWIK CABS.
Children and Adult Services,Education,Construction Work,908105,Construction work,12-May-2016,3126184-33034,"2,960.00",LUCION ENVIRONMENTAL LLP LTD.
Children and Adult Services,Education,Transport,230007,Contract Hire,12-May-2016,3126207-00837,"1,120.00",MICHAELS TRAVEL.
Children and Adult Services,Education,Transport,230008,Contract Hire,12-May-2016,3126232-AA345,"1,485.73",MR T GUNN.
Children and Adult Services,Head of Adults,Third Party Payments,472101,Purchase of Care,12-May-2016,3126248-22510,"1,210.75",NEURO PARTNERS LTD.
Children and Adult Services,Education,Transport,230008,Contract Hire,12-May-2016,3126311-17255,"1,800.00",READYPAY LTD T/A PHOENIX TAXIS.
Children and Adult Services,Education,Transport,230008,Contract Hire,12-May-2016,3126347-72014,"1,260.00",SHOTTON PRIVATE HIRE.
Children and Adult Services,Education,Transport,230008,Contract Hire,12-May-2016,3126347-72015,"2,240.00",SHOTTON PRIVATE HIRE.
Dedicated Schools Grant,Dedicated Schools Grant,Transport,230008,Contract Hire,12-May-2016,3126357-PF005,520.00,SPENNYMOOR TAXIS.
Children and Adult Services,Education,Transport,230007,Contract Hire,12-May-2016,3126382-01684,934.00,TALLENTIRES LTD.
Children and Adult Services,Childrens Services,Third Party Payments,425040,Rendered by Voluntary Organisations,12-May-2016,3126391-27475,"3,128.57",TEAM FOSTERING.
Children and Adult Services,Education,Transport,230008,Contract Hire,12-May-2016,3125925-19MO,660.00,AJ ADAMSON (TONY`S TAXIS).
Children and Adult Services,Commissioning inc Supporting People,Third Party Payments,479111,Purchase of Care,12-May-2016,3125984-2784,"5,209.42",CARERS FEDERATION LTD.
Children and Adult Services,Head of Adults,Third Party Payments,472101,Purchase of Care,12-May-2016,3126035-9794,"1,725.00",DCS & D LTD T/A HERITAGE HEALTHCARE.
Children and Adult Services,Head of Adults,Third Party Payments,472101,Purchase of Care,12-May-2016,3126035-9795,"1,794.00",DCS & D LTD T/A HERITAGE HEALTHCARE.
Children and Adult Services,Education,Transport,230007,Contract Hire,12-May-2016,3126054-7407,"16,030.40",DURHAM CITY COACHES.
Children and Adult Services,Education,Transport,230006,Contract Hire,12-May-2016,3126165-1064,"1,605.00",LD TAXIS.
Children and Adult Services,Education,Transport,230007,Contract Hire,12-May-2016,3126169-1871,"3,345.86",LEE`S COACHES LTD.
Children and Adult Services,Education,Transport,230007,Contract Hire,12-May-2016,3126169-1872,"1,876.95",LEE`S COACHES LTD.
Children and Adult Services,Education,Transport,230008,Contract Hire,12-May-2016,3126177-2568,"1,604.00",LOCAL TRANSPORT LTD.
Children and Adult Services,Education,Transport,230008,Contract Hire,12-May-2016,3126177-2569,"1,036.00",LOCAL TRANSPORT LTD.
Children and Adult Services,Education,Transport,230006,Contract Hire,12-May-2016,3126204-0035,"1,276.00",MICHAEL CONNOR.
Children and Adult Services,Education,Transport,230007,Contract Hire,12-May-2016,3126214-0018,742.50,MR A MILLWARD T/A SWISS CABS PRIVATE HIRE.
Dedicated Schools Grant,Dedicated Schools Grant,Transport,230010,Contract Hire,12-May-2016,3126229-2905,600.60,MR S BOWERS.
Children and Adult Services,Education,Transport,230006,Contract Hire,12-May-2016,3126315-3035,561.00,RICHIES TAXIS.
Children and Adult Services,Education,Transport,230008,Contract Hire,12-May-2016,3126353-234A,"3,096.52",SJ MACKENZIE T/A SCOTTS TAXIS.
Children and Adult Services,Head of Adults,Transport,230005,Contract Hire,12-May-2016,3126427-5449,"1,459.50",WEARDALE PRIVATE HIRE.
Children and Adult Services,Education,Transport,230006,Contract Hire,12-May-2016,3125927-083,720.00,ALANS TAXIS BARNARD CASTLE.
Children and Adult Services,Education,Third Party Payments,440999,Other Third Party Payments,12-May-2016,3125989-NO1,"6,500.00",CDC ENTERPRISE AGENCY.
Children and Adult Services,Childrens Services,Supplies and Services,338099,Services,12-May-2016,3126040-146,750.00,DERWENTSIDE TRUST.
Children and Adult Services,Education,Transport,230008,Contract Hire,12-May-2016,3126127-192,"1,749.00",I CLYDESDALE T/A BURNOPFIELD TAXIS.
Children and Adult Services,Head of Adults,Transport,230005,Contract Hire,12-May-2016,3126127-194,598.40,I CLYDESDALE T/A BURNOPFIELD TAXIS.
Children and Adult Services,Head of Adults,Transport,230005,Contract Hire,12-May-2016,3126145-915,720.00,JDS PRIVATE HIRE DURHAM.
Children and Adult Services,Education,Transport,230006,Contract Hire,12-May-2016,3126199-004,720.00,MARTIN NICHOLS T/A MARCIA TAXIS.
Children and Adult Services,Education,Transport,230008,Contract Hire,12-May-2016,3126213-641,"1,950.00",MOLLYS TAXIS.
Children and Adult Services,Head of Adults,Transport,230005,Contract Hire,12-May-2016,3126213-645,"1,650.00",MOLLYS TAXIS.
Children and Adult Services,Education,Transport,230008,Contract Hire,12-May-2016,3126243-187,"1,223.60",N FORBES.
Children and Adult Services,Education,Transport,230007,Contract Hire,12-May-2016,3126301-312,"1,209.15",PREMIER PRIVATE HIRE.
Children and Adult Services,Education,Transport,230007,Contract Hire,12-May-2016,3126304-984,"2,400.00",PYGALL COACH HIRE.
Children and Adult Services,Education,Transport,230007,Contract Hire,12-May-2016,3126304-985,"1,875.00",PYGALL COACH HIRE.
Children and Adult Services,Education,Transport,230007,Contract Hire,12-May-2016,3126304-986,"5,100.00",PYGALL COACH HIRE.
Children and Adult Services,Education,Transport,230007,Contract Hire,12-May-2016,3126304-987,"2,625.00",PYGALL COACH HIRE.
Children and Adult Services,Education,Transport,230007,Contract Hire,12-May-2016,3126304-988,"2,002.50",PYGALL COACH HIRE.
Children and Adult Services,Education,Transport,230007,Contract Hire,12-May-2016,3126304-989,"1,875.00",PYGALL COACH HIRE.
Children and Adult Services,Education,Transport,230007,Contract Hire,12-May-2016,3126309-40B,"1,635.45",RAYNERS COACHES.
Children and Adult Services,Education,Transport,230008,Contract Hire,12-May-2016,3126319-517,"1,568.00",ROAD RUNNERS (NE) LTD.
Children and Adult Services,Education,Transport,230008,Contract Hire,12-May-2016,3126319-518,"1,344.00",ROAD RUNNERS (NE) LTD.
Children and Adult Services,Education,Transport,230007,Contract Hire,12-May-2016,3126319-524,570.00,ROAD RUNNERS (NE) LTD.
Children and Adult Services,Education,Transport,230008,Contract Hire,12-May-2016,3126319-526,690.00,ROAD RUNNERS (NE) LTD.
Children and Adult Services,Education,Transport,230008,Contract Hire,12-May-2016,3126319-527,"1,020.00",ROAD RUNNERS (NE) LTD.
Children and Adult Services,Education,Transport,230007,Contract Hire,12-May-2016,3126319-530,521.50,ROAD RUNNERS (NE) LTD.
Children and Adult Services,Education,Transport,230008,Contract Hire,12-May-2016,3126400-454,"1,650.00",TONYS TAXIS (A BIRCH).
Children and Adult Services,Education,Transport,230006,Contract Hire,12-May-2016,3126400-455,753.00,TONYS TAXIS (A BIRCH).
Children and Adult Services,Education,Transport,230006,Contract Hire,12-May-2016,3126400-456,"1,128.00",TONYS TAXIS (A BIRCH).
Children and Adult Services,Education,Transport,230008,Contract Hire,12-May-2016,3126400-457,600.00,TONYS TAXIS (A BIRCH).
Children and Adult Services,Education,Transport,230008,Contract Hire,12-May-2016,3126405-015,588.00,TRIDENT TAXIS.
Children and Adult Services,Education,Transport,230008,Contract Hire,12-May-2016,3126181-86,"1,173.06",LORRAINES TAXIS.
Children and Adult Services,Education,Transport,230008,Contract Hire,12-May-2016,3126185-38,840.00,LUMLEY TAXIS.
Children and Adult Services,Education,Transport,230008,Contract Hire,12-May-2016,3126408-41,"1,299.00",TT TAXIS.
Children and Adult Services,Education,Transport,230006,Contract Hire,12-May-2016,3126364-3,870.00,STEELYS TAXIS.
Children and Adult Services,Public Health,Third Party Payments,460802,Contract Payments,13-May-2016,3126553-A83027/Q4HC2015,875.00,COXHOE MEDICAL PRACTICE.
Children and Adult Services,Public Health,Third Party Payments,460802,Contract Payments,13-May-2016,3126739-A83028/Q4HC2015,"1,150.00",MIDDLE CHARE MEDICAL GROUP.
Children and Adult Services,Public Health,Third Party Payments,460802,Contract Payments,13-May-2016,3126881-A83023/Q4HC2015,550.00,STANLEY MEDICAL GROUP.
Children and Adult Services,Education,Supplies and Services,384987,Miscellaneous Expenses,13-May-2016,3126906-CAS-05-2016-078,956.44,THE ACADEMY AT SHOTTON HALL.
Children and Adult Services,Head of Adults,Transport,230005,Contract Hire,13-May-2016,3126490-DCC12APRIL16,945.00,ATLAS TAXIS BISHOP AUCKLAND.
Children and Adult Services,Head of Adults,Transport,230005,Contract Hire,13-May-2016,3126490-DCC14APRIL16,945.00,ATLAS TAXIS BISHOP AUCKLAND.
Children and Adult Services,Education,Transfer Payments,510026,School Children,13-May-2016,3126571-DCATCHSEPT15,975.00,DAYPARK LTD T/A YELLOW WELLIES.
Children and Adult Services,Education,Transport,230008,Contract Hire,13-May-2016,3126951-1058-28/4/16,"1,300.00",WAYNE`S TAXIS.
Children and Adult Services,Head of Adults,Transport,230005,Contract Hire,13-May-2016,3126490-DCC3APRIL16,"2,150.00",ATLAS TAXIS BISHOP AUCKLAND.
Children and Adult Services,Education,Transport,230008,Contract Hire,13-May-2016,3126920-449-30/4/16,"1,830.00",TONYS TAXIS (A BIRCH).
Children and Adult Services,Head of Adults,Transport,230005,Contract Hire,13-May-2016,3126920-450-29/4/16,540.00,TONYS TAXIS (A BIRCH).
Children and Adult Services,Education,Transport,230008,Contract Hire,13-May-2016,3126920-458-30/4/16,"1,088.00",TONYS TAXIS (A BIRCH).
Children and Adult Services,Education,Transfer Payments,510026,School Children,13-May-2016,3126765-CFA1229405,"1,300.00",NATIONAL AUTISTIC SOCIETY.
Children and Adult Services,Education,Transport,230008,Contract Hire,13-May-2016,3126867-S027-04-16,"1,372.00",SIMON ELLIFF.
Children and Adult Services,Childrens Services,Third Party Payments,425040,Rendered by Voluntary Organisations,13-May-2016,3126497-146510626,"4,200.00",BARNARDO SERVICES LTD.
Children and Adult Services,Head of Adults,Transport,230005,Contract Hire,13-May-2016,3126609-WV079-025,765.00,FERRYHILL VILLAGE TRAVEL.
Children and Adult Services,Head of Adults,Transport,230005,Contract Hire,13-May-2016,3126633-WV091/036,957.00,GMC TAXIS NORTH EAST.
Children and Adult Services,Education,Transport,230008,Contract Hire,13-May-2016,3126677-29/04/16A,"1,060.05",JL EBDON.
Children and Adult Services,Education,Transport,230008,Contract Hire,13-May-2016,3126677-29/04/16B,"1,743.30",JL EBDON.
Children and Adult Services,Education,Transport,230008,Contract Hire,13-May-2016,3126677-29/04/16D,"1,059.38",JL EBDON.
Children and Adult Services,Education,Transport,230008,Contract Hire,13-May-2016,3126677-29/04/16E,"1,026.48",JL EBDON.
Children and Adult Services,Education,Transport,230008,Contract Hire,13-May-2016,3126677-29/04/16G,795.00,JL EBDON.
Children and Adult Services,Education,Transport,230008,Contract Hire,13-May-2016,3126677-29/04/16H,742.00,JL EBDON.
Children and Adult Services,Education,Transport,230008,Contract Hire,13-May-2016,3126677-29/04/16J,"1,125.00",JL EBDON.
Children and Adult Services,Education,Supplies and Services,338094,Services,13-May-2016,3126703-SI-002815,"4,330.00",LEISUREWORKS.
Children and Adult Services,Education,Supplies and Services,338094,Services,13-May-2016,3126703-SI-002822,"3,240.00",LEISUREWORKS.
Children and Adult Services,Education,Supplies and Services,338094,Services,13-May-2016,3126703-SI-002870,"4,220.00",LEISUREWORKS.
Children and Adult Services,Education,Supplies and Services,338094,Services,13-May-2016,3126703-SI-002929,"3,390.00",LEISUREWORKS.
Children and Adult Services,Education,Supplies and Services,384302,Miscellaneous Expenses,13-May-2016,3126800-PSC000266,"3,800.00",PARKSIDE SPORTS COLLEGE ACADEMY.
Children and Adult Services,Education,Supplies and Services,384302,Miscellaneous Expenses,13-May-2016,3126800-PSC000267,"5,000.00",PARKSIDE SPORTS COLLEGE ACADEMY.
Children and Adult Services,Education,Supplies and Services,384302,Miscellaneous Expenses,13-May-2016,3126800-PSC000268,680.00,PARKSIDE SPORTS COLLEGE ACADEMY.
Children and Adult Services,Head of Adults,Third Party Payments,479101,Purchase of Care,13-May-2016,3126847-SHA025305,"3,563.10",SANCTUARY HOUSING.
Children and Adult Services,Head of Adults,Third Party Payments,479101,Purchase of Care,13-May-2016,3126847-SHA028306,"1,818.20",SANCTUARY HOUSING.
Children and Adult Services,Head of Adults,Supplies and Services,304259,Equipment and Materials,13-May-2016,3126935-SIN037550,800.06,UNIVERSAL SERVICES (SPORTS EQUIPMENT) LTD.
Children and Adult Services,Childrens Services,Supplies and Services,308011,Furniture,13-May-2016,3126967-498574952,646.00,YORKSHIRE PURCHASING ORGANISATION.
Children and Adult Services,Education,Third Party Payments,440999,Other Third Party Payments,13-May-2016,3126548-16/17005,"5,230.16",CORNFORTH PARTNERSHIP PROJECTS FUND.
Children and Adult Services,Head of Adults,Transport,230005,Contract Hire,13-May-2016,3126733-MCD44720,934.00,MCDONALD TRAVEL.
Children and Adult Services,Head of Adults,Transport,230005,Contract Hire,13-May-2016,3126749-EDB04-16,894.80,MR CT WALKER T/A COLIN`S TAXIS.
Children and Adult Services,Public Health,Supplies and Services,364999,Grants to Voluntary Organisations,13-May-2016,3126865-010/2016,"2,390.00",SHOTTON PARTNERSHIP 2000 LTD.
Children and Adult Services,Education,Transport,230008,Contract Hire,13-May-2016,3126876-AAK84163,"1,232.24",SPENNYMOOR TAXIS.
Children and Adult Services,Childrens Services,Third Party Payments,425040,Rendered by Voluntary Organisations,13-May-2016,3126460-16/2028,"3,128.40",ACORN HOUSE (FOSTERING SERVICES) LTD.
Children and Adult Services,Education,Transport,230008,Contract Hire,13-May-2016,3126734-APRILF2,"1,200.00",MICHAEL A BODDY T/A MBS TAXIS.
Children and Adult Services,Education,Transport,230008,Contract Hire,13-May-2016,3126734-APRILF3,"1,328.25",MICHAEL A BODDY T/A MBS TAXIS.
Children and Adult Services,Education,Transport,230007,Contract Hire,13-May-2016,3126734-APRILF4,"1,050.00",MICHAEL A BODDY T/A MBS TAXIS.
Children and Adult Services,Public Health,Third Party Payments,460802,Contract Payments,13-May-2016,3126844-H034195,640.00,SALISBURY NHS FOUNDATON TRUST.
Children and Adult Services,Public Health,Supplies and Services,364999,Grants to Voluntary Organisations,13-May-2016,3126865-12/2016,"2,390.00",SHOTTON PARTNERSHIP 2000 LTD.
Children and Adult Services,Education,Transport,230008,Contract Hire,13-May-2016,3126950-0001167,"1,635.06",WATSON OF SPENNYMOOR.
Children and Adult Services,Education,Transport,230008,Contract Hire,13-May-2016,3126456-N11/SE,"1,045.80",AABAT TAXIS.
Children and Adult Services,Education,Transport,230007,Contract Hire,13-May-2016,3126456-N13/SL,660.00,AABAT TAXIS.
Children and Adult Services,Education,Transport,230008,Contract Hire,13-May-2016,3126456-N17/AC,558.00,AABAT TAXIS.
Children and Adult Services,Education,Transport,230008,Contract Hire,13-May-2016,3126463-09/16A,734.86,ADVANCE TRAVEL.
Children and Adult Services,Education,Transport,230006,Contract Hire,13-May-2016,3126474-DC4/16,840.00,ANDY`S TAXIS.
Children and Adult Services,Education,Transport,230008,Contract Hire,13-May-2016,3126515-A04008,975.00,C & R TAXIS.
Children and Adult Services,Childrens Services,Third Party Payments,425040,Rendered by Voluntary Organisations,13-May-2016,3126617-126217,730.00,FOSTER CARES LTD.
Children and Adult Services,Childrens Services,Third Party Payments,425040,Rendered by Voluntary Organisations,13-May-2016,3126617-126224,"1,180.00",FOSTER CARES LTD.
Children and Adult Services,Childrens Services,Third Party Payments,425040,Rendered by Voluntary Organisations,13-May-2016,3126617-126227,820.00,FOSTER CARES LTD.
Children and Adult Services,Childrens Services,Third Party Payments,425040,Rendered by Voluntary Organisations,13-May-2016,3126617-126228,730.00,FOSTER CARES LTD.
Children and Adult Services,Childrens Services,Third Party Payments,425040,Rendered by Voluntary Organisations,13-May-2016,3126617-126234,730.00,FOSTER CARES LTD.
Children and Adult Services,Childrens Services,Third Party Payments,425040,Rendered by Voluntary Organisations,13-May-2016,3126617-126239,730.00,FOSTER CARES LTD.
Children and Adult Services,Childrens Services,Third Party Payments,425040,Rendered by Voluntary Organisations,13-May-2016,3126617-126244,730.00,FOSTER CARES LTD.
Children and Adult Services,Childrens Services,Third Party Payments,425040,Rendered by Voluntary Organisations,13-May-2016,3126617-126245,730.00,FOSTER CARES LTD.
Children and Adult Services,Childrens Services,Third Party Payments,425040,Rendered by Voluntary Organisations,13-May-2016,3126617-126246,730.00,FOSTER CARES LTD.
Children and Adult Services,Childrens Services,Third Party Payments,425040,Rendered by Voluntary Organisations,13-May-2016,3126617-126251,700.00,FOSTER CARES LTD.
Children and Adult Services,Childrens Services,Third Party Payments,425040,Rendered by Voluntary Organisations,13-May-2016,3126618-170785,"3,128.70",FOSTERING SOLUTIONS LTD.
Children and Adult Services,Head of Adults,Transport,230005,Contract Hire,13-May-2016,3126726-430416,"1,020.00",MARK MUSGROVE T/A MARKS TAXIS.
Children and Adult Services,Education,Supplies and Services,340001,Postages,13-May-2016,3126855-SC0023,527.14,SCITT.
Children and Adult Services,Childrens Services,Third Party Payments,425040,Rendered by Voluntary Organisations,13-May-2016,3126891-181019,"1,877.22",SWIIS FOSTER CARE LTD.
Children and Adult Services,Childrens Services,Third Party Payments,425040,Rendered by Voluntary Organisations,13-May-2016,3126891-181073,700.00,SWIIS FOSTER CARE LTD.
Children and Adult Services,Childrens Services,Third Party Payments,425040,Rendered by Voluntary Organisations,13-May-2016,3126891-181427,700.00,SWIIS FOSTER CARE LTD.
Children and Adult Services,Childrens Services,Third Party Payments,425040,Rendered by Voluntary Organisations,13-May-2016,3126891-181430,730.03,SWIIS FOSTER CARE LTD.
Children and Adult Services,Childrens Services,Third Party Payments,425040,Rendered by Voluntary Organisations,13-May-2016,3126891-181432,730.03,SWIIS FOSTER CARE LTD.
Children and Adult Services,Childrens Services,Third Party Payments,425040,Rendered by Voluntary Organisations,13-May-2016,3126891-181435,700.00,SWIIS FOSTER CARE LTD.
Children and Adult Services,Education,Transport,230008,Contract Hire,13-May-2016,3126456-N7/SA,"1,892.80",AABAT TAXIS.
Children and Adult Services,Education,Transport,230006,Contract Hire,13-May-2016,3126501-06874,896.00,BIRDS TAXIS.
Children and Adult Services,Education,Transport,230008,Contract Hire,13-May-2016,3126501-06884,"1,270.92",BIRDS TAXIS.
Children and Adult Services,Education,Transport,230008,Contract Hire,13-May-2016,3126501-06885,"1,130.64",BIRDS TAXIS.
Children and Adult Services,Education,Transport,230008,Contract Hire,13-May-2016,3126501-06886,"1,260.00",BIRDS TAXIS.
Children and Adult Services,Education,Transport,230008,Contract Hire,13-May-2016,3126501-06887,"1,427.44",BIRDS TAXIS.
Children and Adult Services,Education,Construction Work,908105,Construction work,13-May-2016,3126717-33122,720.00,LUCION ENVIRONMENTAL LLP LTD.
Children and Adult Services,Childrens Services,Third Party Payments,425040,Rendered by Voluntary Organisations,13-May-2016,3126900-27483,"3,128.57",TEAM FOSTERING.
Dedicated Schools Grant,Dedicated Schools Grant,Supplies and Services,304259,Equipment and Materials,13-May-2016,3126459-1002,"1,305.00",ACHIEVEMENT TV LTD.
Children and Adult Services,Education,Transport,230008,Contract Hire,13-May-2016,3126492-0006,588.00,AVENUE TAXIS.
Children and Adult Services,Education,Transport,230007,Contract Hire,13-May-2016,3126502-1413,"1,540.00",BOB SMITH COACHES.
Children and Adult Services,Education,Transport,230008,Contract Hire,13-May-2016,3126541-1030,"1,410.00",CONNORS MINI BUSES.
Children and Adult Services,Childrens Services,Third Party Payments,425040,Rendered by Voluntary Organisations,13-May-2016,3126616-4087,"3,128.40",FOSTER CARE SOLUTIONS LTD.
Children and Adult Services,Childrens Services,Third Party Payments,425040,Rendered by Voluntary Organisations,13-May-2016,3126616-4091,"3,514.20",FOSTER CARE SOLUTIONS LTD.
Children and Adult Services,Childrens Services,Third Party Payments,425040,Rendered by Voluntary Organisations,13-May-2016,3126616-4092,"3,128.40",FOSTER CARE SOLUTIONS LTD.
Children and Adult Services,Childrens Services,Third Party Payments,425040,Rendered by Voluntary Organisations,13-May-2016,3126616-4093,"3,128.40",FOSTER CARE SOLUTIONS LTD.
Children and Adult Services,Childrens Services,Third Party Payments,425040,Rendered by Voluntary Organisations,13-May-2016,3126616-4094,"3,257.10",FOSTER CARE SOLUTIONS LTD.
Children and Adult Services,Education,Transport,230008,Contract Hire,13-May-2016,3126670-1657,744.00,J YOUNG T/A VIP TAXIS.
Children and Adult Services,Education,Transport,230008,Contract Hire,13-May-2016,3126670-1658,720.00,J YOUNG T/A VIP TAXIS.
Children and Adult Services,Education,Transport,230007,Contract Hire,13-May-2016,3126670-1659,870.00,J YOUNG T/A VIP TAXIS.
Children and Adult Services,Education,Transport,230008,Contract Hire,13-May-2016,3126670-1663,"1,092.00",J YOUNG T/A VIP TAXIS.
Children and Adult Services,Education,Transport,230007,Contract Hire,13-May-2016,3126674-2514,"1,552.50",JEFF ANDERSON COACHES LTD.
Children and Adult Services,Education,Supplies and Services,384199,Miscellaneous Expenses,13-May-2016,3126701-1870,828.00,LEE`S COACHES LTD.
Children and Adult Services,Education,Transport,230008,Contract Hire,13-May-2016,3126752-1134,578.06,MR PETER YOUNG.
Children and Adult Services,Education,Transport,230008,Contract Hire,13-May-2016,3126893-1191,"2,151.58",TAILORMADE TRAVEL.
Children and Adult Services,Education,Transport,230008,Contract Hire,13-May-2016,3126951-1059,660.92,WAYNE`S TAXIS.
Children and Adult Services,Education,Transport,230006,Contract Hire,13-May-2016,3126953-1042,"1,056.00",WE CONNOR.
Children and Adult Services,Education,Transport,230004,Contract Hire,13-May-2016,3126954-5444,"1,185.00",WEARDALE PRIVATE HIRE.
Children and Adult Services,Head of Adults,Transport,230005,Contract Hire,13-May-2016,3126954-5450,"3,640.20",WEARDALE PRIVATE HIRE.
Children and Adult Services,Head of Adults,Transport,230005,Contract Hire,13-May-2016,3126957-0416,540.00,WEST AUCKLAND TOWN TRAVEL (WATT).
Children and Adult Services,Education,Transport,230007,Contract Hire,13-May-2016,3126458-593,700.00,AC TAXIS.
Children and Adult Services,Education,Transport,230007,Contract Hire,13-May-2016,3126468-084,999.00,ALANS TAXIS BARNARD CASTLE.
Children and Adult Services,Education,Transport,230007,Contract Hire,13-May-2016,3126468-085,"1,620.00",ALANS TAXIS BARNARD CASTLE.
Children and Adult Services,Education,Transport,230008,Contract Hire,13-May-2016,3126499-522,"1,086.40",BEELINE MINI BUSES.
Children and Adult Services,Education,Transfer Payments,510026,School Children,13-May-2016,3126708-475,"2,719.80",LITTLE CUBS DAY NURSERY.
Children and Adult Services,Head of Adults,Transport,230005,Contract Hire,13-May-2016,3126743-643,"1,869.00",MOLLYS TAXIS.
Children and Adult Services,Education,Transport,230008,Contract Hire,13-May-2016,3126864-027,"2,181.93",SHOEY`S TAXIS.
Children and Adult Services,Education,Transport,230008,Contract Hire,13-May-2016,3126952-720,"1,230.00",WAYSIDE TAXIS.
Children and Adult Services,Education,Transport,230008,Contract Hire,13-May-2016,3126952-721,528.00,WAYSIDE TAXIS.
Children and Adult Services,Education,Transport,230008,Contract Hire,13-May-2016,3126952-722,800.00,WAYSIDE TAXIS.
Children and Adult Services,Education,Transport,230008,Contract Hire,13-May-2016,3126952-726,"1,090.00",WAYSIDE TAXIS.
Children and Adult Services,Education,Transport,230008,Contract Hire,13-May-2016,3126952-727,"1,280.00",WAYSIDE TAXIS.
Dedicated Schools Grant,Dedicated Schools Grant,Transport,230010,Contract Hire,13-May-2016,3126952-728,900.00,WAYSIDE TAXIS.
Children and Adult Services,Education,Transport,230007,Contract Hire,13-May-2016,3126952-729,630.00,WAYSIDE TAXIS.
Children and Adult Services,Education,Transport,230007,Contract Hire,13-May-2016,3126960-107,900.00,WHITTONSTALL TAXIS SERVICE.
Children and Adult Services,Education,Transport,230008,Contract Hire,13-May-2016,3126473-89,825.00,ANDY CABS.
Children and Adult Services,Education,Transport,230006,Contract Hire,13-May-2016,3126540-95,606.00,COLIN ATKINSON T/A SEAHAM TAXIS.
Children and Adult Services,Education,Transport,230008,Contract Hire,13-May-2016,3126884-51,506.73,STEELYS TAXIS.
Children and Adult Services,Childrens Services,Supplies and Services,384302,Miscellaneous Expenses,13-May-2016,3126509,"1,800.00",BRANDON CARRSIDE YOUTH & COMMUNITY PROJECT.
Children and Adult Services,Childrens Services,Supplies and Services,384491,Miscellaneous Expenses,16-May-2016,3127066-CHILDCARE28/1-21/4/16,660.00,LITTLE STARS EARLY YEARS.
Children and Adult Services,Education,Employees,040001,Recruitment Instruction and Training,16-May-2016,3127145-TARINV/15424340,710.10,TES GLOBAL LTD.
Children and Adult Services,Education,Employees,040001,Recruitment Instruction and Training,16-May-2016,3127145-TARINV/15424662,710.10,TES GLOBAL LTD.
Children and Adult Services,Education,Employees,040001,Recruitment Instruction and Training,16-May-2016,3127145-TARINV/15424904,710.10,TES GLOBAL LTD.
Children and Adult Services,Childrens Services,Employees,040001,Recruitment Instruction and Training,16-May-2016,3127145-TARINV/15425280,"4,719.47",TES GLOBAL LTD.
Children and Adult Services,Public Health,Third Party Payments,460802,Contract Payments,16-May-2016,3127131-7710012355,"10,500.00",SOUTH TYNESIDE NHS TRUST.
Children and Adult Services,Public Health,Third Party Payments,460802,Contract Payments,16-May-2016,3127131-7710012621,"4,736.00",SOUTH TYNESIDE NHS TRUST.
Children and Adult Services,Education,Supplies and Services,384302,Miscellaneous Expenses,16-May-2016,3127043-INV000133,"5,000.00",HERMITAGE ACADEMY.
Children and Adult Services,Head of Adults,Supplies and Services,304259,Equipment and Materials,16-May-2016,3127155-SIN037595,"2,579.92",UNIVERSAL SERVICES (SPORTS EQUIPMENT) LTD.
Dedicated Schools Grant,Dedicated Schools Grant,Third Party Payments,440080,Other Third Party Payments,16-May-2016,3127084-M0019138,"1,950.00",NEWCASTLE COLLEGE.
Children and Adult Services,Childrens Services,Supplies and Services,384491,Miscellaneous Expenses,16-May-2016,3127164-201626,752.50,WHEATLEY HILL COMMUNITY NURSERY LTD.
Children and Adult Services,Childrens Services,Supplies and Services,384491,Miscellaneous Expenses,16-May-2016,3127164-201630,"1,142.50",WHEATLEY HILL COMMUNITY NURSERY LTD.
Children and Adult Services,Childrens Services,Supplies and Services,384491,Miscellaneous Expenses,16-May-2016,3127164-201631,569.00,WHEATLEY HILL COMMUNITY NURSERY LTD.
Children and Adult Services,Planning & Service Strategy,Supplies and Services,308011,Furniture,16-May-2016,3126977-15695,675.00,AMBIC LTD.
Children and Adult Services,Head of Adults,Supplies and Services,338366,Services,16-May-2016,3126991-31507,812.35,CARE ABILITY.
Children and Adult Services,Head of Adults,Supplies and Services,338366,Services,16-May-2016,3126991-31508,"1,624.70",CARE ABILITY.
Children and Adult Services,Education,Third Party Payments,440999,Other Third Party Payments,16-May-2016,3127039-11152,"1,740.45",GROUNDWORK NORTH EAST.
Children and Adult Services,Education,Third Party Payments,440999,Other Third Party Payments,16-May-2016,3127039-11153,"1,160.30",GROUNDWORK NORTH EAST.
Children and Adult Services,Education,Third Party Payments,440999,Other Third Party Payments,16-May-2016,3127039-11154,"4,777.74",GROUNDWORK NORTH EAST.
Children and Adult Services,Education,Third Party Payments,440999,Other Third Party Payments,16-May-2016,3127039-11155,"3,197.70",GROUNDWORK NORTH EAST.
Children and Adult Services,Childrens Services,Employees,040149,Recruitment Instruction and Training,16-May-2016,3127082-JMB/1,750.00,MS JM BAILEY.
Children and Adult Services,Childrens Services,Transport,240045,Car Allowances,16-May-2016,3127138-5064,"70,539.58",SUPPORTIVE SRC LTD.
Children and Adult Services,Public Health,Supplies and Services,364999,Grants to Voluntary Organisations,16-May-2016,3127157-3785,"2,100.72",UPPER TEESDALE AGRICULTURAL SUPPORT SERVICES LTD (UTASS).
Children and Adult Services,Public Health,Supplies and Services,364999,Grants to Voluntary Organisations,16-May-2016,3127157-3786,"2,100.72",UPPER TEESDALE AGRICULTURAL SUPPORT SERVICES LTD (UTASS).
Children and Adult Services,Public Health,Supplies and Services,364999,Grants to Voluntary Organisations,16-May-2016,3127157-3787,"1,998.72",UPPER TEESDALE AGRICULTURAL SUPPORT SERVICES LTD (UTASS).
Children and Adult Services,Childrens Services,Premises,108099,Service Repairs and Maintenance,16-May-2016,3127161-4625,"18,146.56",WATERMAN ENVIRONMENTAL SERVICES.
Children and Adult Services,Commissioning inc Supporting People,Third Party Payments,479111,Purchase of Care,16-May-2016,3126981-175,"13,496.00",ASPIRE LEARNING SUPPORT & WELLING CIC.
Children and Adult Services,Education,Transport,230006,Contract Hire,17-May-2016,3127950-DCC87-1/4/16-30/4/16,717.00,PAUL`S TAXIS..
Children and Adult Services,Education,Transport,230008,Contract Hire,17-May-2016,3127951-DCC96-29/4/16,"1,120.00",PB PRIVATE HIRE.
Children and Adult Services,Education,Transport,230008,Contract Hire,17-May-2016,3127825-S023-29/4/16,"1,069.50",ABA TAXIS.
Children and Adult Services,Education,Transport,230008,Contract Hire,17-May-2016,3127857-176-29/4/16,"1,410.00",DA TRAVEL.
Children and Adult Services,Education,Transport,230007,Contract Hire,17-May-2016,3127923-CEW2APRIL14,510.00,MOOR PRIVATE HIRE.
Children and Adult Services,Head of Adults,Transport,230005,Contract Hire,17-May-2016,3127831-SAS0416NCL,"1,275.00",AIRPORT CARS DURHAM
Children and Adult Services,Education,Transport,230007,Contract Hire,17-May-2016,3127842-DJ42260416,"3,618.30",BELL BROTHERS TRAVEL.
Children and Adult Services,Childrens Services,Premises,120037,Energy Costs,17-May-2016,3127882-0000013109,"1,466.04",HARVEST ENERGY LTD.
Children and Adult Services,Head of Adults,Transport,230005,Contract Hire,17-May-2016,3127903-08-29/4/16,840.00,KD TAXIS.
Children and Adult Services,Education,Transport,230008,Contract Hire,17-May-2016,3127928-105-X52-77,"1,642.76",MR GS ANDERSON.
Children and Adult Services,Head of Adults,Transport,230005,Contract Hire,17-May-2016,3127839-4-29/4/16,528.00,AXLE TAXIS.
Children and Adult Services,Education,Transport,230008,Contract Hire,17-May-2016,3127885-3-29/4/16,"1,166.70",HENRYS TAXIS.
Children and Adult Services,Head of Adults,Transport,230005,Contract Hire,17-May-2016,3127888-IR1604009,"1,302.00",I & R EXECUTIVE TRAVEL.
Children and Adult Services,Education,Transport,230008,Contract Hire,17-May-2016,3127897-29/04/16C,847.98,JL EBDON.
Children and Adult Services,Education,Transport,230008,Contract Hire,17-May-2016,3127903-8-29/4/16,"1,764.00",KD TAXIS.
Children and Adult Services,Head of Adults,Transport,230005,Contract Hire,17-May-2016,3127905-8-29/4/16,"1,260.00",KT TAXIS.
Children and Adult Services,Education,Transport,230008,Contract Hire,17-May-2016,3127850-E0420416,"2,117.50",COLIN FRANKS T/A FRANKS COACHES.
Children and Adult Services,Education,Transport,230008,Contract Hire,17-May-2016,3127851-02/16087,"1,424.00",COLLINS TAXIS.
Children and Adult Services,Education,Transport,230008,Contract Hire,17-May-2016,3127851-02/16135,"1,104.00",COLLINS TAXIS.
Children and Adult Services,Education,Transport,230008,Contract Hire,17-May-2016,3127851-02/16137,"1,568.00",COLLINS TAXIS.
Children and Adult Services,Education,Transport,230008,Contract Hire,17-May-2016,3127851-03/16087,"1,513.00",COLLINS TAXIS.
Children and Adult Services,Education,Transport,230008,Contract Hire,17-May-2016,3127851-03/16135,"1,242.00",COLLINS TAXIS.
Children and Adult Services,Education,Transport,230008,Contract Hire,17-May-2016,3127851-03/16137,"1,764.00",COLLINS TAXIS.
Children and Adult Services,Education,Transport,230008,Contract Hire,17-May-2016,3127851-03/16146,588.00,COLLINS TAXIS.
Children and Adult Services,Education,Transport,230008,Contract Hire,17-May-2016,3127870-E046-019,"2,013.00",FERRYHILL VILLAGE TRAVEL.
Children and Adult Services,Education,Transport,230008,Contract Hire,17-May-2016,3127870-S007-041,"1,677.00",FERRYHILL VILLAGE TRAVEL.
Children and Adult Services,Education,Transport,230008,Contract Hire,17-May-2016,3127870-W131-019,721.00,FERRYHILL VILLAGE TRAVEL.
Children and Adult Services,Education,Transport,230008,Contract Hire,17-May-2016,3127898-2016/04A,627.20,JM HUMBLE COACH HIRE.
Children and Adult Services,Education,Transport,230008,Contract Hire,17-May-2016,3127918-MCD44717,960.00,MCDONALD TRAVEL.
Children and Adult Services,Education,Transport,230006,Contract Hire,17-May-2016,3127918-MCD44718,"1,110.00",MCDONALD TRAVEL.
Children and Adult Services,Education,Transport,230008,Contract Hire,17-May-2016,3127918-MCD44719,"2,223.00",MCDONALD TRAVEL.
Children and Adult Services,Childrens Services,Supplies and Services,384302,Miscellaneous Expenses,17-May-2016,3127922-13042016,525.00,MID DURHAM PROJECTS CLUB.
Children and Adult Services,Head of Adults,Transport,230005,Contract Hire,17-May-2016,3127924-2014-215,"1,701.00",MR D KEMP T/A ACE EXECUTIVE.
Children and Adult Services,Education,Transport,230008,Contract Hire,17-May-2016,3127969-A039-426,840.00,SODA TAXIS.
Children and Adult Services,Education,Transport,230008,Contract Hire,17-May-2016,3127969-W128-002,"1,400.00",SODA TAXIS.
Children and Adult Services,Childrens Services,Third Party Payments,440015,Other Third Party Payments,17-May-2016,3127270-1103559,"7,653.30",REDACTED - PAYMENT TO INDIVIDUAL
Children and Adult Services,Childrens Services,Third Party Payments,440016,Other Third Party Payments,17-May-2016,3127378-1103312,504.00,REDACTED - PAYMENT TO INDIVIDUAL
Children and Adult Services,Childrens Services,Third Party Payments,440027,Other Third Party Payments,17-May-2016,3127393-1101900,638.97,REDACTED - PAYMENT TO INDIVIDUAL
Children and Adult Services,Childrens Services,Third Party Payments,440029,Other Third Party Payments,17-May-2016,3127442-1101699,541.72,REDACTED - PAYMENT TO INDIVIDUAL
Children and Adult Services,Childrens Services,Third Party Payments,440001,Other Third Party Payments,17-May-2016,3127592-1103258,590.72,REDACTED - PAYMENT TO INDIVIDUAL
Children and Adult Services,Childrens Services,Third Party Payments,440016,Other Third Party Payments,17-May-2016,3127708-1103302,"2,425.98",REDACTED - PAYMENT TO INDIVIDUAL
Children and Adult Services,Childrens Services,Employees,080025,Agency Staff,17-May-2016,3127847-2324827,900.00,CELSIAN.
Dedicated Schools Grant,Dedicated Schools Grant,Transport,230010,Contract Hire,17-May-2016,3127852-0001679,675.00,COLORS TAXIS LTD.
Children and Adult Services,Education,Transport,230008,Contract Hire,17-May-2016,3127852-0001680,"1,400.00",COLORS TAXIS LTD.
Children and Adult Services,Education,Transport,230007,Contract Hire,17-May-2016,3127852-0001681,600.00,COLORS TAXIS LTD.
Children and Adult Services,Education,Transport,230006,Contract Hire,17-May-2016,3127852-0001682,"1,024.00",COLORS TAXIS LTD.
Children and Adult Services,Education,Transport,230008,Contract Hire,17-May-2016,3127852-0001683,980.00,COLORS TAXIS LTD.
Children and Adult Services,Childrens Services,Supplies and Services,384641,Miscellaneous Expenses,17-May-2016,3127866-16/STR1,"2,512.00",EMERALD NURSERY.
Children and Adult Services,Education,Transport,230008,Contract Hire,17-May-2016,3127898-2016/05,956.20,JM HUMBLE COACH HIRE.
Children and Adult Services,Head of Adults,Transport,230005,Contract Hire,17-May-2016,3127927-0304801,"1,255.80",MR GN ROBBINS T/A GNR MINIBUS HIRE.
Children and Adult Services,Head of Adults,Transport,230005,Contract Hire,17-May-2016,3127927-0304802,"1,722.00",MR GN ROBBINS T/A GNR MINIBUS HIRE.
Children and Adult Services,Head of Adults,Transport,230005,Contract Hire,17-May-2016,3127824-N14/SM,"1,851.20",AABAT TAXIS.
Children and Adult Services,Education,Transport,230006,Contract Hire,17-May-2016,3127824-N20/FC,"1,320.00",AABAT TAXIS.
Children and Adult Services,Head of Adults,Transport,230005,Contract Hire,17-May-2016,3127824-N25/CC,621.00,AABAT TAXIS.
Children and Adult Services,Head of Adults,Transport,230005,Contract Hire,17-May-2016,3127846-PSO133,"1,008.00",BURNDALE PRIVATE HIRE.
Children and Adult Services,Education,Transport,230008,Contract Hire,17-May-2016,3127876-000020,992.00,GP TAXIS.
Children and Adult Services,Public Health,Third Party Payments,460802,Contract Payments,17-May-2016,3127884-300316,"224,655.00",HEALTH DIAGNOSTICS LTD.
Children and Adult Services,Education,Transport,230008,Contract Hire,17-May-2016,3127887-INV112,"1,275.00",HORNDALE TAXIS LTD.
Children and Adult Services,Head of Adults,Transport,230005,Contract Hire,17-May-2016,3127901-DM1498,660.00,JOVIAL PRIVATE HIRE.
Dedicated Schools Grant,Dedicated Schools Grant,Transport,230010,Contract Hire,17-May-2016,3127912-041602,"1,600.00",MARK & JOHN CHISHOLM T/A (CHEVRON).
Children and Adult Services,Education,Transport,230008,Contract Hire,17-May-2016,3127913-380416,"1,350.00",MARK MUSGROVE T/A MARKS TAXIS.
Children and Adult Services,Head of Adults,Transport,230005,Contract Hire,17-May-2016,3127913-590416,975.00,MARK MUSGROVE T/A MARKS TAXIS.
Children and Adult Services,Education,Transport,230008,Contract Hire,17-May-2016,3127923-CEW214,"1,275.00",MOOR PRIVATE HIRE.
Children and Adult Services,Head of Adults,Transport,230005,Contract Hire,17-May-2016,3127930-201615,650.00,MR JR FORT.
Children and Adult Services,Education,Transport,230007,Contract Hire,17-May-2016,3127977-38805A,"2,807.10",T MOORE & SON.
Children and Adult Services,Education,Transport,230008,Contract Hire,17-May-2016,3127822-41605,"1,246.37",24/7 TAXI SERVICES LTD.
Children and Adult Services,Head of Adults,Transport,230005,Contract Hire,17-May-2016,3127837-03420,709.00,ATLAS TAXIS CONSETT.
Children and Adult Services,Education,Transport,230007,Contract Hire,17-May-2016,3127848-45354,"1,060.05",CJ GRIERSON T/A GRIERSONS COACHES.
Children and Adult Services,Education,Transport,230007,Contract Hire,17-May-2016,3127848-45355,"3,634.20",CJ GRIERSON T/A GRIERSONS COACHES.
Children and Adult Services,Education,Transport,230031,Contract Hire,17-May-2016,3127848-45361,566.80,CJ GRIERSON T/A GRIERSONS COACHES.
Children and Adult Services,Education,Transport,230006,Contract Hire,17-May-2016,3127862-16/05,720.00,DMG PRIVATE HIRE.
Children and Adult Services,Education,Transport,230008,Contract Hire,17-May-2016,3127862-16/06,896.00,DMG PRIVATE HIRE.
Children and Adult Services,Education,Transport,230007,Contract Hire,17-May-2016,3127872-18311,"2,397.15",GARNETTS LTD (COACHES).
Children and Adult Services,Education,Transport,230007,Contract Hire,17-May-2016,3127872-18331,"16,957.50",GARNETTS LTD (COACHES).
Children and Adult Services,Education,Transport,230008,Contract Hire,17-May-2016,3127881-HT223,900.00,HARRY`S TAXI`S.
Children and Adult Services,Education,Transport,230008,Contract Hire,17-May-2016,3127906-KW571,840.00,KWIK CABS.
Children and Adult Services,Education,Transport,230008,Contract Hire,17-May-2016,3127906-KW573,770.00,KWIK CABS.
Children and Adult Services,Education,Transport,230008,Contract Hire,17-May-2016,3127906-KW575,700.00,KWIK CABS.
Children and Adult Services,Education,Transport,230008,Contract Hire,17-May-2016,3127919-00838,"1,469.86",MICHAELS TRAVEL.
Children and Adult Services,Education,Transport,230008,Contract Hire,17-May-2016,3127919-00839,"1,567.30",MICHAELS TRAVEL.
Children and Adult Services,Head of Adults,Transport,230005,Contract Hire,17-May-2016,3127959-16030,"1,785.00",RAPID MINIBUSES.
Children and Adult Services,Education,Transport,230008,Contract Hire,17-May-2016,3127959-16037,"1,272.45",RAPID MINIBUSES.
Children and Adult Services,Education,Transport,230008,Contract Hire,17-May-2016,3127973-21045,538.20,STAR CABS.
Children and Adult Services,Education,Transport,230008,Contract Hire,17-May-2016,3127973-21047,"1,420.80",STAR CABS.
Children and Adult Services,Head of Adults,Transport,230005,Contract Hire,17-May-2016,3127989-HC102,540.00,WE AR CABS.
Children and Adult Services,Education,Transport,230007,Contract Hire,17-May-2016,3127855-5973,"1,351.08",CROFT BUSINESS SERVICES (UK) LTD T/A CROFT TAXIS.
Children and Adult Services,Head of Adults,Transport,230005,Contract Hire,17-May-2016,3127855-6061,565.83,CROFT BUSINESS SERVICES (UK) LTD T/A CROFT TAXIS.
Children and Adult Services,Education,Transport,230007,Contract Hire,17-May-2016,3127855-6062,"1,125.90",CROFT BUSINESS SERVICES (UK) LTD T/A CROFT TAXIS.
Children and Adult Services,Education,Transport,230008,Contract Hire,17-May-2016,3127855-6066,"1,168.05",CROFT BUSINESS SERVICES (UK) LTD T/A CROFT TAXIS.
Children and Adult Services,Education,Transport,230008,Contract Hire,17-May-2016,3127855-6067,"2,081.10",CROFT BUSINESS SERVICES (UK) LTD T/A CROFT TAXIS.
Children and Adult Services,Head of Adults,Transport,230005,Contract Hire,17-May-2016,3127855-6070,"2,572.86",CROFT BUSINESS SERVICES (UK) LTD T/A CROFT TAXIS.
Children and Adult Services,Head of Adults,Transport,230005,Contract Hire,17-May-2016,3127855-6071,503.88,CROFT BUSINESS SERVICES (UK) LTD T/A CROFT TAXIS.
Children and Adult Services,Head of Adults,Transport,230005,Contract Hire,17-May-2016,3127855-6072,"1,992.27",CROFT BUSINESS SERVICES (UK) LTD T/A CROFT TAXIS.
Children and Adult Services,Head of Adults,Transport,230005,Contract Hire,17-May-2016,3127855-6073,732.27,CROFT BUSINESS SERVICES (UK) LTD T/A CROFT TAXIS.
Children and Adult Services,Education,Transport,230008,Contract Hire,17-May-2016,3127855-6074,"1,230.55",CROFT BUSINESS SERVICES (UK) LTD T/A CROFT TAXIS.
Children and Adult Services,Education,Transport,230006,Contract Hire,17-May-2016,3127855-6075,644.88,CROFT BUSINESS SERVICES (UK) LTD T/A CROFT TAXIS.
Children and Adult Services,Education,Transport,230006,Contract Hire,17-May-2016,3127855-6076,823.50,CROFT BUSINESS SERVICES (UK) LTD T/A CROFT TAXIS.
Children and Adult Services,Education,Transport,230006,Contract Hire,17-May-2016,3127855-6077,"1,023.96",CROFT BUSINESS SERVICES (UK) LTD T/A CROFT TAXIS.
Children and Adult Services,Head of Adults,Transport,230005,Contract Hire,17-May-2016,3127855-6078,"1,347.06",CROFT BUSINESS SERVICES (UK) LTD T/A CROFT TAXIS.
Children and Adult Services,Education,Transport,230008,Contract Hire,17-May-2016,3127855-6079,558.32,CROFT BUSINESS SERVICES (UK) LTD T/A CROFT TAXIS.
Children and Adult Services,Education,Transport,230008,Contract Hire,17-May-2016,3127855-6082,"1,150.66",CROFT BUSINESS SERVICES (UK) LTD T/A CROFT TAXIS.
Children and Adult Services,Education,Transport,230008,Contract Hire,17-May-2016,3127855-6083,"1,901.40",CROFT BUSINESS SERVICES (UK) LTD T/A CROFT TAXIS.
Children and Adult Services,Education,Transport,230008,Contract Hire,17-May-2016,3127871-0416,"1,105.00",FRANK ATKINSON T/A FJ MINIBUS TRAVEL.
Children and Adult Services,Education,Transport,230008,Contract Hire,17-May-2016,3127894-2510,"1,446.76",JEFF ANDERSON COACHES LTD.
Children and Adult Services,Education,Transport,230008,Contract Hire,17-May-2016,3127894-2511,"1,643.18",JEFF ANDERSON COACHES LTD.
Children and Adult Services,Education,Transport,230008,Contract Hire,17-May-2016,3127894-2512,"1,853.32",JEFF ANDERSON COACHES LTD.
Children and Adult Services,Head of Adults,Transport,230005,Contract Hire,17-May-2016,3127943-6070,"1,248.00",NIGHTINGALE COACHES.
Children and Adult Services,Head of Adults,Transport,230005,Contract Hire,17-May-2016,3127943-6071,882.00,NIGHTINGALE COACHES.
Children and Adult Services,Head of Adults,Transport,230005,Contract Hire,17-May-2016,3127943-6072,"1,185.90",NIGHTINGALE COACHES.
Children and Adult Services,Head of Adults,Transport,230005,Contract Hire,17-May-2016,3127943-6073,"1,127.00",NIGHTINGALE COACHES.
Children and Adult Services,Education,Transport,230007,Contract Hire,17-May-2016,3127943-6075,"1,410.00",NIGHTINGALE COACHES.
Children and Adult Services,Education,Transport,230007,Contract Hire,17-May-2016,3127943-6076,"1,959.90",NIGHTINGALE COACHES.
Children and Adult Services,Education,Transport,230007,Contract Hire,17-May-2016,3127943-6077,"1,530.00",NIGHTINGALE COACHES.
Children and Adult Services,Education,Transport,230008,Contract Hire,17-May-2016,3127943-6079,994.00,NIGHTINGALE COACHES.
Children and Adult Services,Education,Transport,230008,Contract Hire,17-May-2016,3127943-6080,910.00,NIGHTINGALE COACHES.
Children and Adult Services,Education,Transport,230008,Contract Hire,17-May-2016,3127943-6081,910.00,NIGHTINGALE COACHES.
Children and Adult Services,Education,Transport,230008,Contract Hire,17-May-2016,3127943-6082,"1,120.00",NIGHTINGALE COACHES.
Children and Adult Services,Education,Transport,230008,Contract Hire,17-May-2016,3127943-6083,616.00,NIGHTINGALE COACHES.
Children and Adult Services,Education,Transport,230008,Contract Hire,17-May-2016,3127943-6084,"1,036.00",NIGHTINGALE COACHES.
Children and Adult Services,Education,Transport,230008,Contract Hire,17-May-2016,3127943-6085,644.00,NIGHTINGALE COACHES.
Children and Adult Services,Head of Adults,Transport,230005,Contract Hire,17-May-2016,3127954-0450,924.00,PETER`S PRIVATE HIRE/PETER BEST.
Children and Adult Services,Education,Transport,230007,Contract Hire,17-May-2016,3127967-2134,"2,085.00",SCARLET BAND BUS & COACH LTD.
Children and Adult Services,Head of Adults,Transport,230005,Contract Hire,17-May-2016,3127979-B795,"1,444.40",TALBOTS TRAVEL LTD.
Children and Adult Services,Education,Transport,230008,Contract Hire,17-May-2016,3127857-182,962.00,DA TRAVEL.
Children and Adult Services,Education,Transport,230008,Contract Hire,17-May-2016,3127858-112,"1,890.00",DAVES TAXIS.
Children and Adult Services,Education,Transport,230008,Contract Hire,17-May-2016,3127860-107,735.00,DEXTERS PRIVATE HIRE.
Children and Adult Services,Education,Transport,230007,Contract Hire,17-May-2016,3127860-620,840.00,DEXTERS PRIVATE HIRE.
Children and Adult Services,Head of Adults,Transport,230005,Contract Hire,17-May-2016,3127879-032,619.00,GS PEARSON.
Children and Adult Services,Head of Adults,Transport,230005,Contract Hire,17-May-2016,3127893-905,"1,015.55",JDS PRIVATE HIRE DURHAM.
Children and Adult Services,Education,Transport,230009,Contract Hire,17-May-2016,3127893-910,"1,002.00",JDS PRIVATE HIRE DURHAM.
Children and Adult Services,Education,Transport,230007,Contract Hire,17-May-2016,3127893-912,750.00,JDS PRIVATE HIRE DURHAM.
Children and Adult Services,Education,Transport,230007,Contract Hire,17-May-2016,3127893-920,555.00,JDS PRIVATE HIRE DURHAM.
Children and Adult Services,Education,Transport,230008,Contract Hire,17-May-2016,3127893-921,854.00,JDS PRIVATE HIRE DURHAM.
Children and Adult Services,Education,Transport,230008,Contract Hire,17-May-2016,3127896-075,"1,200.00",JK TAXIS.
Children and Adult Services,Education,Transport,230008,Contract Hire,17-May-2016,3127908-144,"1,349.47",LEE`S TAXIS.
Children and Adult Services,Education,Transport,230006,Contract Hire,17-May-2016,3127925-103,756.00,MR DAVID CULLEN.
Children and Adult Services,Education,Transport,230008,Contract Hire,17-May-2016,3127934-17A,"1,272.00",MR RAYMOND RENWICK.
Children and Adult Services,Education,Transport,230007,Contract Hire,17-May-2016,3127952-37A,605.00,PETER HOLMES T/A PETERS TAXIS.
Children and Adult Services,Education,Transport,230008,Contract Hire,17-May-2016,3127953-518,960.00,PETERLEE EXECUTIVE CARS.
Children and Adult Services,Head of Adults,Transport,230005,Contract Hire,17-May-2016,3127961-529,"1,080.00",ROAD RUNNERS (NE) LTD.
Children and Adult Services,Education,Transport,230008,Contract Hire,17-May-2016,3127962-165,"1,376.86",ROBBIE`S PRIVATE HIRE.
Children and Adult Services,Head of Adults,Transport,230005,Contract Hire,17-May-2016,3127968-271,630.00,SIMONS TAXIS.
Children and Adult Services,Head of Adults,Transport,230005,Contract Hire,17-May-2016,3127982-167,680.00,THE TAXI COMPANY (MURTON) LTD.
Children and Adult Services,Education,Transport,230008,Contract Hire,17-May-2016,3127869-22,594.50,EXTREME TAXI`S.
Children and Adult Services,Education,Transport,230008,Contract Hire,17-May-2016,3127935-12,"1,120.00",REDACTED - PAYMENT TO INDIVIDUAL
Children and Adult Services,Education,Transport,230008,Contract Hire,17-May-2016,3127966-87,"1,251.78",SAZ CABS.
Children and Adult Services,Education,Transfer Payments,510026,School Children,18-May-2016,3130370-OGLOVER4/1-24/3/16,858.00,WESTMINSTER DAY NURSERIES LTD.
Children and Adult Services,Head of Adults,Third Party Payments,472101,Purchase of Care,18-May-2016,3129284-CAS-05-2016-027,861.51,CRESCENT HOMECARE LTD.
Children and Adult Services,Public Health,Third Party Payments,460803,Contract Payments,18-May-2016,3129584-DTPB/00000048SC,898.00,ASDA PHARMACY.
Children and Adult Services,Public Health,Third Party Payments,460803,Contract Payments,18-May-2016,3129609-DYPD/00000045SC,"1,148.00",BESTWAY NATIONAL CHEMIST LTD T/A WELL.
Children and Adult Services,Public Health,Third Party Payments,460803,Contract Payments,18-May-2016,3129613-FQYW/00000043SC,512.00,BESTWAY NATIONAL CHEMIST LTD T/A WELL.
Children and Adult Services,Public Health,Third Party Payments,460803,Contract Payments,18-May-2016,3129631-FHRN/00000049SC,890.00,BOOTS THE CHEMISTS LTD.
Children and Adult Services,Public Health,Third Party Payments,460803,Contract Payments,18-May-2016,3129634-FNHN/00000012SC,500.00,BOOTS THE CHEMISTS LTD.
Children and Adult Services,Public Health,Third Party Payments,460803,Contract Payments,18-May-2016,3129642-DRJY/00000034SC,790.00,BOOTS THE CHEMISTS LTD.
Children and Adult Services,Public Health,Third Party Payments,460803,Contract Payments,18-May-2016,3129644-FMNP/00000035SC,732.00,BOOTS THE CHEMISTS LTD.
Children and Adult Services,Public Health,Third Party Payments,460803,Contract Payments,18-May-2016,3129648-FLAP/00000045SC,948.00,BOOTS THE CHEMISTS LTD.
Children and Adult Services,Public Health,Third Party Payments,460803,Contract Payments,18-May-2016,3129687-DVQC/00000035SC,666.00,CENTRECHEM DISPENSING CHEMIST.
Children and Adult Services,Head of Adults,Premises,125009,Rents,18-May-2016,3129801-1042938004-2016,820.08,EAST DURHAM HOMES.
Children and Adult Services,Public Health,Third Party Payments,460803,Contract Payments,18-May-2016,3129847-FNCW/00000054SC,678.00,G WHITFIELD LTD.
Children and Adult Services,Public Health,Third Party Payments,460803,Contract Payments,18-May-2016,3129855-FBFN/00000045SC,698.00,GILL & SCHOFIELD PHARMACEUTICAL CHEMISTS LTD.
Children and Adult Services,Public Health,Third Party Payments,460803,Contract Payments,18-May-2016,3129927-DQPW/00000047SC,612.00,INTRAHEALTH LTD.
Children and Adult Services,Public Health,Third Party Payments,460803,Contract Payments,18-May-2016,3129933-DTJG/00000038SC,630.00,J & J PHARMACY.
Children and Adult Services,Public Health,Third Party Payments,460803,Contract Payments,18-May-2016,3129992-FLRB/00000050SC,506.00,LLOYDS PHARMACY.
Children and Adult Services,Public Health,Third Party Payments,460803,Contract Payments,18-May-2016,3129993-FQVV/00000040SC,718.00,LLOYDS PHARMACY.
Children and Adult Services,Public Health,Third Party Payments,460803,Contract Payments,18-May-2016,3129994-DZTR/00000046SC,584.00,LLOYDS PHARMACY.
Children and Adult Services,Public Health,Third Party Payments,460803,Contract Payments,18-May-2016,3129995-DWZN/00000044SC,594.00,LLOYDS PHARMACY.
Children and Adult Services,Public Health,Third Party Payments,460803,Contract Payments,18-May-2016,3130013-DWMD/00000051SC,774.00,M & M PHARMACIES LTD.
Children and Adult Services,Head of Adults,Premises,108037,Service Repairs and Maintenance,18-May-2016,3130233-CAS-04-2016-095,540.00,SEATON HOLME SHARED LIVING SCHEME.
Children and Adult Services,Public Health,Third Party Payments,460803,Contract Payments,18-May-2016,3130241-FBGG/00000031SC,844.00,SHOTTON PHARMACY.
Children and Adult Services,Public Health,Third Party Payments,460803,Contract Payments,18-May-2016,3130285-LQPJ/00000037SC,"1,106.00",T & J HEALTHCARE LTD T/A STATION ROAD PHARMACY..
Children and Adult Services,Public Health,Third Party Payments,460803,Contract Payments,18-May-2016,3130303-DPNG/00000035SC,848.00,TESCO PHARMACY.
Children and Adult Services,Public Health,Third Party Payments,460803,Contract Payments,18-May-2016,3130304-FFPB/00000042SC,582.00,TESCO PHARMACY.
Children and Adult Services,Public Health,Third Party Payments,460803,Contract Payments,18-May-2016,3130347-DTXL/00000045SC,680.00,VC CORPORATION LTD T/A VAIB PHARMACY.
Children and Adult Services,Childrens Services,Supplies and Services,384507,Miscellaneous Expenses,18-May-2016,303536-CAS-05-2016-068,505.53,REDACTED - PAYMENT TO INDIVIDUAL
Children and Adult Services,Childrens Services,Transport,235073,Public Transport,18-May-2016,303554-CAS-05-2016-081,627.71,REDACTED - PAYMENT TO INDIVIDUAL
Children and Adult Services,Education,Transport,230006,Contract Hire,18-May-2016,3129706-F672-APRIL2016,613.20,CLOVER TAXIS.
Children and Adult Services,Education,Transport,230007,Contract Hire,18-May-2016,3130126-1489-30/4/16,810.00,PAUL WATSON TRAVEL.
Children and Adult Services,Education,Transport,230007,Contract Hire,18-May-2016,3130017-344-11/5/16,600.00,MACS TAXIS DURHAM LTD.
Children and Adult Services,Education,Transport,230008,Contract Hire,18-May-2016,3130286-1329-5/5/16,"1,605.00",TALBOTS TAXIS.
Children and Adult Services,Childrens Services,Third Party Payments,425020,Rendered by Voluntary Organisations,18-May-2016,3130091-0000023606,"1,258.11",NORTH EAST AUTISM SOCIETY.
Children and Adult Services,Childrens Services,Third Party Payments,425020,Rendered by Voluntary Organisations,18-May-2016,3130091-0000023607,"2,807.34",NORTH EAST AUTISM SOCIETY.
Children and Adult Services,Childrens Services,Third Party Payments,425020,Rendered by Voluntary Organisations,18-May-2016,3130091-0000023608,970.20,NORTH EAST AUTISM SOCIETY.
Children and Adult Services,Education,Transport,235073,Public Transport,18-May-2016,303539-343447-005,782.81,REDACTED - PAYMENT TO INDIVIDUAL
Children and Adult Services,Education,Transport,235073,Public Transport,18-May-2016,303568-346967-007,503.10,REDACTED - PAYMENT TO INDIVIDUAL
Children and Adult Services,Public Health,Supplies and Services,384199,Miscellaneous Expenses,18-May-2016,3129537-0216/0119,"1,200.00",3 POINT MEDIA.
Dedicated Schools Grant,Dedicated Schools Grant,Third Party Payments,440080,Other Third Party Payments,18-May-2016,3129673-WHI001785,"15,596.97",CAMBIAN WHINFELL SCHOOL LTD.
Children and Adult Services,Head of Adults,Third Party Payments,470101,Purchase of Care,18-May-2016,3129673-WHI003605,"15,596.97",CAMBIAN WHINFELL SCHOOL LTD.
Children and Adult Services,Education,Transport,230008,Contract Hire,18-May-2016,3129714-A038/0416,"1,200.00",COLVIN`S CABS.
Children and Adult Services,Public Health,Third Party Payments,460803,Contract Payments,18-May-2016,3129742-TVDA00179,"10,000.00",CRUSE BEREAVEMENT CARE.
Children and Adult Services,Education,Supplies and Services,338094,Services,18-May-2016,3129982-SI-002874,"2,850.00",LEISUREWORKS.
Children and Adult Services,Education,Supplies and Services,338094,Services,18-May-2016,3129982-SI-002920,"4,040.00",LEISUREWORKS.
Children and Adult Services,Head of Adults,Transfer Payments,515201,Social Services Clients,18-May-2016,3127991-1614174H,844.00,REDACTED - PAYMENT TO INDIVIDUAL
Children and Adult Services,Head of Adults,Transfer Payments,515201,Social Services Clients,18-May-2016,3127992-1617563H,"1,224.00",REDACTED - PAYMENT TO INDIVIDUAL
Children and Adult Services,Childrens Services,Transfer Payments,515201,Social Services Clients,18-May-2016,3127993-1617964H,"1,232.00",REDACTED - PAYMENT TO INDIVIDUAL
Children and Adult Services,Head of Adults,Third Party Payments,470101,Purchase of Care,18-May-2016,3127995-1613665H,"2,976.44",ACCEPT CARE LTD.
Children and Adult Services,Head of Adults,Third Party Payments,478101,Purchase of Care,18-May-2016,3127995-1613771H,"3,365.40",ACCEPT CARE LTD.
Children and Adult Services,Head of Adults,Third Party Payments,478101,Purchase of Care,18-May-2016,3127995-1613839H,"4,741.24",ACCEPT CARE LTD.
Children and Adult Services,Head of Adults,Third Party Payments,478101,Purchase of Care,18-May-2016,3127995-1613978H,"3,070.96",ACCEPT CARE LTD.
Children and Adult Services,Head of Adults,Third Party Payments,478101,Purchase of Care,18-May-2016,3127995-1614160H,608.92,ACCEPT CARE LTD.
Children and Adult Services,Head of Adults,Third Party Payments,478101,Purchase of Care,18-May-2016,3127995-1614259H,608.92,ACCEPT CARE LTD.
Children and Adult Services,Head of Adults,Third Party Payments,478101,Purchase of Care,18-May-2016,3127995-1614335H,"4,662.20",ACCEPT CARE LTD.
Children and Adult Services,Head of Adults,Third Party Payments,478101,Purchase of Care,18-May-2016,3127995-1614366H,608.92,ACCEPT CARE LTD.
Children and Adult Services,Head of Adults,Third Party Payments,478101,Purchase of Care,18-May-2016,3127995-1614373H,"1,264.68",ACCEPT CARE LTD.
Children and Adult Services,Head of Adults,Third Party Payments,478101,Purchase of Care,18-May-2016,3127995-1614374H,608.92,ACCEPT CARE LTD.
Children and Adult Services,Head of Adults,Third Party Payments,478101,Purchase of Care,18-May-2016,3127995-1614463H,"1,264.68",ACCEPT CARE LTD.
Children and Adult Services,Head of Adults,Third Party Payments,478101,Purchase of Care,18-May-2016,3127995-1614500H,"5,439.20",ACCEPT CARE LTD.
Children and Adult Services,Head of Adults,Third Party Payments,478101,Purchase of Care,18-May-2016,3127995-1614510H,"3,687.64",ACCEPT CARE LTD.
Children and Adult Services,Head of Adults,Third Party Payments,478101,Purchase of Care,18-May-2016,3127995-1614570H,522.20,ACCEPT CARE LTD.
Children and Adult Services,Head of Adults,Third Party Payments,478101,Purchase of Care,18-May-2016,3127995-1614608H,"7,269.84",ACCEPT CARE LTD.
Children and Adult Services,Head of Adults,Third Party Payments,478101,Purchase of Care,18-May-2016,3127995-1614613H,608.92,ACCEPT CARE LTD.
Children and Adult Services,Head of Adults,Third Party Payments,478101,Purchase of Care,18-May-2016,3127995-1614825H,"2,149.92",ACCEPT CARE LTD.
Children and Adult Services,Head of Adults,Third Party Payments,478101,Purchase of Care,18-May-2016,3127995-1614835H,"5,952.84",ACCEPT CARE LTD.
Children and Adult Services,Head of Adults,Third Party Payments,478101,Purchase of Care,18-May-2016,3127995-1615062H,"8,007.36",ACCEPT CARE LTD.
Children and Adult Services,Head of Adults,Third Party Payments,478101,Purchase of Care,18-May-2016,3127995-1615072H,"1,264.68",ACCEPT CARE LTD.
Children and Adult Services,Head of Adults,Third Party Payments,478101,Purchase of Care,18-May-2016,3127995-1615091H,"2,647.16",ACCEPT CARE LTD.
Children and Adult Services,Head of Adults,Third Party Payments,478101,Purchase of Care,18-May-2016,3127995-1615154H,"3,840.88",ACCEPT CARE LTD.
Children and Adult Services,Head of Adults,Third Party Payments,478101,Purchase of Care,18-May-2016,3127995-1615171H,"5,162.64",ACCEPT CARE LTD.
Children and Adult Services,Head of Adults,Third Party Payments,478101,Purchase of Care,18-May-2016,3127995-1615263H,"3,484.80",ACCEPT CARE LTD.
Children and Adult Services,Head of Adults,Third Party Payments,478101,Purchase of Care,18-May-2016,3127995-1615282H,"5,452.40",ACCEPT CARE LTD.
Children and Adult Services,Head of Adults,Third Party Payments,478101,Purchase of Care,18-May-2016,3127995-1615308H,608.92,ACCEPT CARE LTD.
Children and Adult Services,Head of Adults,Third Party Payments,478101,Purchase of Care,18-May-2016,3127995-1615323H,"3,634.92",ACCEPT CARE LTD.
Children and Adult Services,Head of Adults,Third Party Payments,478101,Purchase of Care,18-May-2016,3127995-1615394H,"3,687.60",ACCEPT CARE LTD.
Children and Adult Services,Head of Adults,Third Party Payments,478101,Purchase of Care,18-May-2016,3127995-1615502H,"7,875.68",ACCEPT CARE LTD.
Children and Adult Services,Head of Adults,Third Party Payments,478101,Purchase of Care,18-May-2016,3127995-1615507H,"12,063.72",ACCEPT CARE LTD.
Children and Adult Services,Head of Adults,Third Party Payments,478101,Purchase of Care,18-May-2016,3127995-1615514H,608.92,ACCEPT CARE LTD.
Children and Adult Services,Head of Adults,Third Party Payments,478101,Purchase of Care,18-May-2016,3127995-1615595H,"7,015.92",ACCEPT CARE LTD.
Children and Adult Services,Head of Adults,Third Party Payments,478101,Purchase of Care,18-May-2016,3127995-1615602H,"6,637.72",ACCEPT CARE LTD.
Children and Adult Services,Head of Adults,Third Party Payments,478101,Purchase of Care,18-May-2016,3127995-1615718H,"2,560.32",ACCEPT CARE LTD.
Children and Adult Services,Head of Adults,Third Party Payments,478101,Purchase of Care,18-May-2016,3127995-1616233H,"4,270.56",ACCEPT CARE LTD.
Children and Adult Services,Head of Adults,Third Party Payments,478101,Purchase of Care,18-May-2016,3127995-1616320H,608.92,ACCEPT CARE LTD.
Children and Adult Services,Head of Adults,Third Party Payments,478101,Purchase of Care,18-May-2016,3127995-1616489H,"1,264.68",ACCEPT CARE LTD.
Children and Adult Services,Head of Adults,Third Party Payments,478101,Purchase of Care,18-May-2016,3127995-1616491H,608.92,ACCEPT CARE LTD.
Children and Adult Services,Head of Adults,Third Party Payments,478101,Purchase of Care,18-May-2016,3127995-1616945H,"4,767.56",ACCEPT CARE LTD.
Children and Adult Services,Head of Adults,Third Party Payments,478101,Purchase of Care,18-May-2016,3127995-1617023H,"1,053.92",ACCEPT CARE LTD.
Children and Adult Services,Head of Adults,Third Party Payments,478101,Purchase of Care,18-May-2016,3127995-1617040H,812.16,ACCEPT CARE LTD.
Children and Adult Services,Head of Adults,Third Party Payments,478101,Purchase of Care,18-May-2016,3127995-1617048H,"6,049.96",ACCEPT CARE LTD.
Children and Adult Services,Head of Adults,Third Party Payments,478101,Purchase of Care,18-May-2016,3127995-1617364H,"1,900.28",ACCEPT CARE LTD.
Children and Adult Services,Head of Adults,Third Party Payments,478101,Purchase of Care,18-May-2016,3127995-1617422H,"3,029.12",ACCEPT CARE LTD.
Children and Adult Services,Head of Adults,Third Party Payments,478101,Purchase of Care,18-May-2016,3127995-1618702H,608.92,ACCEPT CARE LTD.
Children and Adult Services,Head of Adults,Third Party Payments,478101,Purchase of Care,18-May-2016,3127995-1618830H,"1,100.76",ACCEPT CARE LTD.
Children and Adult Services,Head of Adults,Third Party Payments,478101,Purchase of Care,18-May-2016,3127995-1619243H,513.40,ACCEPT CARE LTD.
Children and Adult Services,Head of Adults,Third Party Payments,478101,Purchase of Care,18-May-2016,3127995-1619261H,608.92,ACCEPT CARE LTD.
Children and Adult Services,Head of Adults,Third Party Payments,472101,Purchase of Care,18-May-2016,3127995-1619915H,"1,570.44",ACCEPT CARE LTD.
Children and Adult Services,Head of Adults,Third Party Payments,478101,Purchase of Care,18-May-2016,3127995-1619935H,"1,043.64",ACCEPT CARE LTD.
Children and Adult Services,Head of Adults,Third Party Payments,478101,Purchase of Care,18-May-2016,3127995-1620402H,608.92,ACCEPT CARE LTD.
Children and Adult Services,Head of Adults,Transfer Payments,515201,Social Services Clients,18-May-2016,3127996-1614148H,655.76,REDACTED - PAYMENT TO INDIVIDUAL
Children and Adult Services,Head of Adults,Transfer Payments,515201,Social Services Clients,18-May-2016,3127998-1616694H,791.72,REDACTED - PAYMENT TO INDIVIDUAL
Children and Adult Services,Head of Adults,Transfer Payments,515201,Social Services Clients,18-May-2016,3127999-1615124H,874.64,REDACTED - PAYMENT TO INDIVIDUAL
Children and Adult Services,Head of Adults,Transfer Payments,515201,Social Services Clients,18-May-2016,3128000-1614795H,"1,187.36",REDACTED - PAYMENT TO INDIVIDUAL
Children and Adult Services,Head of Adults,Transfer Payments,515211,Social Services Clients,18-May-2016,3128002-1614994H,"3,829.92",REDACTED - PAYMENT TO INDIVIDUAL
Children and Adult Services,Childrens Services,Transfer Payments,515201,Social Services Clients,18-May-2016,3128003-1619781H,840.00,ACCOUNTABILITY CLIENT ACCOUNT NO 1.
Children and Adult Services,Head of Adults,Transfer Payments,515201,Social Services Clients,18-May-2016,3128006-1617371H,562.08,REDACTED - PAYMENT TO INDIVIDUAL
Children and Adult Services,Head of Adults,Transfer Payments,515201,Social Services Clients,18-May-2016,3128007-1615743H,"1,124.16",REDACTED - PAYMENT TO INDIVIDUAL
Children and Adult Services,Head of Adults,Transfer Payments,515201,Social Services Clients,18-May-2016,3128008-1617014H,829.40,REDACTED - PAYMENT TO INDIVIDUAL
Children and Adult Services,Head of Adults,Transfer Payments,515201,Social Services Clients,18-May-2016,3128009-1614064H,"1,266.00",REDACTED - PAYMENT TO INDIVIDUAL
Children and Adult Services,Head of Adults,Transfer Payments,515201,Social Services Clients,18-May-2016,3128010-1617324H,759.60,REDACTED - PAYMENT TO INDIVIDUAL
Children and Adult Services,Commissioning inc Supporting People,Transfer Payments,515210,Social Services Clients,18-May-2016,3128012-1619799H,"4,071.60",REDACTED - PAYMENT TO INDIVIDUAL
Children and Adult Services,Head of Adults,Transfer Payments,515201,Social Services Clients,18-May-2016,3128013-1618811H,506.40,REDACTED - PAYMENT TO INDIVIDUAL
Children and Adult Services,Childrens Services,Transfer Payments,515201,Social Services Clients,18-May-2016,3128014-1618992H,632.00,ACCOUNTABILITY CLIENT ACCOUNT NO 1.
Children and Adult Services,Head of Adults,Transfer Payments,515201,Social Services Clients,18-May-2016,3128015-1614069H,595.68,REDACTED - PAYMENT TO INDIVIDUAL
Children and Adult Services,Head of Adults,Transfer Payments,515201,Social Services Clients,18-May-2016,3128016-1617567H,562.08,REDACTED - PAYMENT TO INDIVIDUAL
Children and Adult Services,Childrens Services,Transfer Payments,515201,Social Services Clients,18-May-2016,3128018-1619397H,"2,220.00",ACCOUNTABILITY CLIENT ACCOUNT NO 1.
Children and Adult Services,Childrens Services,Transfer Payments,515201,Social Services Clients,18-May-2016,3128019-1617177H,692.00,ACCOUNTABILITY CLIENT ACCOUNT NO 1.
Children and Adult Services,Head of Adults,Transfer Payments,515201,Social Services Clients,18-May-2016,3128021-1615787H,687.44,REDACTED - PAYMENT TO INDIVIDUAL
Children and Adult Services,Head of Adults,Transfer Payments,515201,Social Services Clients,18-May-2016,3128022-1615660H,705.00,REDACTED - PAYMENT TO INDIVIDUAL
Children and Adult Services,Head of Adults,Transfer Payments,515201,Social Services Clients,18-May-2016,3128024-1620072H,"1,108.40",REDACTED - PAYMENT TO INDIVIDUAL
Children and Adult Services,Head of Adults,Transfer Payments,515201,Social Services Clients,18-May-2016,3128025-1619492H,723.84,REDACTED - PAYMENT TO INDIVIDUAL
Children and Adult Services,Childrens Services,Transfer Payments,515201,Social Services Clients,18-May-2016,3128028-1618895H,512.00,ACCOUNTABILITY CLIENT ACCOUNT NO 1.
Children and Adult Services,Commissioning inc Supporting People,Transfer Payments,515210,Social Services Clients,18-May-2016,3128031-1616447H,"2,273.32",REDACTED - PAYMENT TO INDIVIDUAL
Children and Adult Services,Head of Adults,Transfer Payments,515201,Social Services Clients,18-May-2016,3128032-1619693H,882.20,REDACTED - PAYMENT TO INDIVIDUAL
Children and Adult Services,Head of Adults,Transfer Payments,515201,Social Services Clients,18-May-2016,3128033-1619215H,"1,191.32",REDACTED - PAYMENT TO INDIVIDUAL
Children and Adult Services,Head of Adults,Transfer Payments,515201,Social Services Clients,18-May-2016,3128034-1619526H,675.20,REDACTED - PAYMENT TO INDIVIDUAL
Children and Adult Services,Head of Adults,Transfer Payments,515211,Social Services Clients,18-May-2016,3128036-1614432H,"1,222.32",REDACTED - PAYMENT TO INDIVIDUAL
Children and Adult Services,Head of Adults,Transfer Payments,515201,Social Services Clients,18-May-2016,3128037-1614164H,588.12,REDACTED - PAYMENT TO INDIVIDUAL
Children and Adult Services,Commissioning inc Supporting People,Transfer Payments,515210,Social Services Clients,18-May-2016,3128041-1616086H,"2,107.92",REDACTED - PAYMENT TO INDIVIDUAL
Children and Adult Services,Head of Adults,Transfer Payments,515201,Social Services Clients,18-May-2016,3128042-1618978H,"1,115.92",REDACTED - PAYMENT TO INDIVIDUAL
Children and Adult Services,Head of Adults,Transfer Payments,515201,Social Services Clients,18-May-2016,3128043-1619738H,542.88,REDACTED - PAYMENT TO INDIVIDUAL
Children and Adult Services,Head of Adults,Transfer Payments,515201,Social Services Clients,18-May-2016,3128044-1619803H,"2,307.24",REDACTED - PAYMENT TO INDIVIDUAL
Children and Adult Services,Head of Adults,Transfer Payments,515201,Social Services Clients,18-May-2016,3128045-1619717H,618.32,REDACTED - PAYMENT TO INDIVIDUAL
Children and Adult Services,Head of Adults,Transfer Payments,515211,Social Services Clients,18-May-2016,3128047-1615413H,998.80,REDACTED - PAYMENT TO INDIVIDUAL
Children and Adult Services,Head of Adults,Transfer Payments,515211,Social Services Clients,18-May-2016,3128048-1614673H,"1,031.88",REDACTED - PAYMENT TO INDIVIDUAL
Children and Adult Services,Head of Adults,Transfer Payments,515209,Social Services Clients,18-May-2016,3128049-1614717D,"1,364.00",REDACTED - PAYMENT TO INDIVIDUAL
Children and Adult Services,Head of Adults,Transfer Payments,515211,Social Services Clients,18-May-2016,3128049-1614717H,975.88,REDACTED - PAYMENT TO INDIVIDUAL
Children and Adult Services,Head of Adults,Transfer Payments,515211,Social Services Clients,18-May-2016,3128050-1615444H,522.00,REDACTED - PAYMENT TO INDIVIDUAL
Children and Adult Services,Head of Adults,Transfer Payments,515211,Social Services Clients,18-May-2016,3128051-1615452H,"2,214.40",REDACTED - PAYMENT TO INDIVIDUAL
Children and Adult Services,Commissioning inc Supporting People,Transfer Payments,515210,Social Services Clients,18-May-2016,3128052-1616045H,"1,402.44",REDACTED - PAYMENT TO INDIVIDUAL
Children and Adult Services,Head of Adults,Transfer Payments,515211,Social Services Clients,18-May-2016,3128054-1614970H,784.00,REDACTED - PAYMENT TO INDIVIDUAL
Children and Adult Services,Head of Adults,Transfer Payments,515211,Social Services Clients,18-May-2016,3128055-1614493H,"1,662.52",REDACTED - PAYMENT TO INDIVIDUAL
Children and Adult Services,Commissioning inc Supporting People,Transfer Payments,515210,Social Services Clients,18-May-2016,3128056-1616906H,"1,124.16",REDACTED - PAYMENT TO INDIVIDUAL
Children and Adult Services,Head of Adults,Transfer Payments,515201,Social Services Clients,18-May-2016,3128057-1620143H,"1,416.92",REDACTED - PAYMENT TO INDIVIDUAL
Children and Adult Services,Head of Adults,Transfer Payments,515211,Social Services Clients,18-May-2016,3128058-1615536H,"1,124.80",REDACTED - PAYMENT TO INDIVIDUAL
Children and Adult Services,Head of Adults,Transfer Payments,515201,Social Services Clients,18-May-2016,3128059-1616454H,788.48,REDACTED - PAYMENT TO INDIVIDUAL
Children and Adult Services,Childrens Services,Transfer Payments,515201,Social Services Clients,18-May-2016,3128061-1619509H,600.00,ACCOUNTABILITY CLIENT ACCOUNT NO 1.
Children and Adult Services,Head of Adults,Transfer Payments,515201,Social Services Clients,18-May-2016,3128062-1618663H,950.04,REDACTED - PAYMENT TO INDIVIDUAL
Children and Adult Services,Childrens Services,Transfer Payments,515201,Social Services Clients,18-May-2016,3128063-1620030H,"1,146.48",ACCOUNTABILITY CLIENT ACCOUNT NO 1.
Children and Adult Services,Head of Adults,Transfer Payments,515201,Social Services Clients,18-May-2016,3128067-1618509H,562.08,REDACTED - PAYMENT TO INDIVIDUAL
Children and Adult Services,Head of Adults,Transfer Payments,515211,Social Services Clients,18-May-2016,3128068-1614703H,"1,020.00",REDACTED - PAYMENT TO INDIVIDUAL
Children and Adult Services,Head of Adults,Transfer Payments,515211,Social Services Clients,18-May-2016,3128069-1613658H,"1,271.20",REDACTED - PAYMENT TO INDIVIDUAL
Children and Adult Services,Head of Adults,Transfer Payments,515211,Social Services Clients,18-May-2016,3128070-1615203H,609.00,REDACTED - PAYMENT TO INDIVIDUAL
Children and Adult Services,Head of Adults,Transfer Payments,515211,Social Services Clients,18-May-2016,3128071-1613660H,728.92,REDACTED - PAYMENT TO INDIVIDUAL
Children and Adult Services,Head of Adults,Transfer Payments,515211,Social Services Clients,18-May-2016,3128072-1613628H,656.00,REDACTED - PAYMENT TO INDIVIDUAL
Children and Adult Services,Childrens Services,Transfer Payments,515201,Social Services Clients,18-May-2016,3128074-1617564H,"3,132.00",ACCOUNTABILITY CLIENT ACCOUNT NO 1.
Children and Adult Services,Head of Adults,Transfer Payments,515211,Social Services Clients,18-May-2016,3128075-1614457H,696.52,REDACTED - PAYMENT TO INDIVIDUAL
Children and Adult Services,Head of Adults,Transfer Payments,515211,Social Services Clients,18-May-2016,3128076-1614979H,"1,160.24",REDACTED - PAYMENT TO INDIVIDUAL
Children and Adult Services,Head of Adults,Transfer Payments,515201,Social Services Clients,18-May-2016,3128077-1620595H,"1,229.16",REDACTED - PAYMENT TO INDIVIDUAL
Children and Adult Services,Head of Adults,Transfer Payments,515201,Social Services Clients,18-May-2016,3128080-1616679H,"3,114.88",REDACTED - PAYMENT TO INDIVIDUAL
Children and Adult Services,Head of Adults,Transfer Payments,515201,Social Services Clients,18-May-2016,3128080-1616680H,"4,291.72",REDACTED - PAYMENT TO INDIVIDUAL
Children and Adult Services,Head of Adults,Transfer Payments,515201,Social Services Clients,18-May-2016,3128081-1614124H,800.20,REDACTED - PAYMENT TO INDIVIDUAL
Children and Adult Services,Head of Adults,Transfer Payments,515201,Social Services Clients,18-May-2016,3128082-1620013H,655.76,REDACTED - PAYMENT TO INDIVIDUAL
Children and Adult Services,Head of Adults,Transfer Payments,515201,Social Services Clients,18-May-2016,3128087-1619418H,562.08,REDACTED - PAYMENT TO INDIVIDUAL
Children and Adult Services,Head of Adults,Transfer Payments,515201,Social Services Clients,18-May-2016,3128089-1620269H,519.16,REDACTED - PAYMENT TO INDIVIDUAL
Children and Adult Services,Head of Adults,Transfer Payments,515201,Social Services Clients,18-May-2016,3128090-1614837H,585.52,REDACTED - PAYMENT TO INDIVIDUAL
Children and Adult Services,Head of Adults,Transfer Payments,515201,Social Services Clients,18-May-2016,3128091-1616445H,702.60,REDACTED - PAYMENT TO INDIVIDUAL
Children and Adult Services,Head of Adults,Transfer Payments,515201,Social Services Clients,18-May-2016,3128092-1614444H,"1,498.88",REDACTED - PAYMENT TO INDIVIDUAL
Children and Adult Services,Head of Adults,Transfer Payments,515201,Social Services Clients,18-May-2016,3128094-1619480H,562.08,REDACTED - PAYMENT TO INDIVIDUAL
Children and Adult Services,Head of Adults,Transfer Payments,515201,Social Services Clients,18-May-2016,3128097-1616739H,726.04,REDACTED - PAYMENT TO INDIVIDUAL
Children and Adult Services,Head of Adults,Transfer Payments,515201,Social Services Clients,18-May-2016,3128098-1619253H,679.20,REDACTED - PAYMENT TO INDIVIDUAL
Children and Adult Services,Head of Adults,Transfer Payments,515201,Social Services Clients,18-May-2016,3128100-1614295H,562.08,REDACTED - PAYMENT TO INDIVIDUAL
Children and Adult Services,Head of Adults,Transfer Payments,515201,Social Services Clients,18-May-2016,3128101-1620175H,757.24,REDACTED - PAYMENT TO INDIVIDUAL
Children and Adult Services,Head of Adults,Transfer Payments,515201,Social Services Clients,18-May-2016,3128102-1614287H,"4,797.87",REDACTED - PAYMENT TO INDIVIDUAL
Children and Adult Services,Head of Adults,Transfer Payments,515209,Social Services Clients,18-May-2016,3128107-1616641D,520.00,REDACTED - PAYMENT TO INDIVIDUAL
Children and Adult Services,Head of Adults,Transfer Payments,515201,Social Services Clients,18-May-2016,3128108-1620246H,"2,142.60",REDACTED - PAYMENT TO INDIVIDUAL
Children and Adult Services,Head of Adults,Transfer Payments,515201,Social Services Clients,18-May-2016,3128111-1616790H,"1,217.84",REDACTED - PAYMENT TO INDIVIDUAL
Children and Adult Services,Head of Adults,Transfer Payments,515201,Social Services Clients,18-May-2016,3128112-1616654H,562.08,REDACTED - PAYMENT TO INDIVIDUAL
Children and Adult Services,Head of Adults,Transfer Payments,515201,Social Services Clients,18-May-2016,3128113-1619625H,515.24,REDACTED - PAYMENT TO INDIVIDUAL
Children and Adult Services,Head of Adults,Transfer Payments,515201,Social Services Clients,18-May-2016,3128116-1617402H,608.92,REDACTED - PAYMENT TO INDIVIDUAL
Children and Adult Services,Head of Adults,Transfer Payments,515201,Social Services Clients,18-May-2016,3128117-1616449H,772.88,REDACTED - PAYMENT TO INDIVIDUAL
Children and Adult Services,Head of Adults,Transfer Payments,515201,Social Services Clients,18-May-2016,3128118-1617311H,"1,323.24",REDACTED - PAYMENT TO INDIVIDUAL
Children and Adult Services,Head of Adults,Transfer Payments,515201,Social Services Clients,18-May-2016,3128121-1616676H,"1,069.52",REDACTED - PAYMENT TO INDIVIDUAL
Children and Adult Services,Childrens Services,Transfer Payments,515201,Social Services Clients,18-May-2016,3128122-1619269H,660.00,ACCOUNTABILITY CLIENT ACCOUNT NO 2.
Children and Adult Services,Head of Adults,Transfer Payments,515201,Social Services Clients,18-May-2016,3128125-1618896H,817.20,REDACTED - PAYMENT TO INDIVIDUAL
Children and Adult Services,Head of Adults,Transfer Payments,515201,Social Services Clients,18-May-2016,3128127-1618258H,513.84,REDACTED - PAYMENT TO INDIVIDUAL
Children and Adult Services,Head of Adults,Transfer Payments,515209,Social Services Clients,18-May-2016,3128128-1613928D,540.00,REDACTED - PAYMENT TO INDIVIDUAL
Children and Adult Services,Commissioning inc Supporting People,Transfer Payments,515210,Social Services Clients,18-May-2016,3128130-1618392H,"1,832.44",REDACTED - PAYMENT TO INDIVIDUAL
Children and Adult Services,Head of Adults,Transfer Payments,515201,Social Services Clients,18-May-2016,3128131-1618285H,515.24,REDACTED - PAYMENT TO INDIVIDUAL
Children and Adult Services,Head of Adults,Transfer Payments,515201,Social Services Clients,18-May-2016,3128133-1617243H,"4,320.00",REDACTED - PAYMENT TO INDIVIDUAL
Children and Adult Services,Head of Adults,Transfer Payments,515201,Social Services Clients,18-May-2016,3128135-1617060H,882.20,REDACTED - PAYMENT TO INDIVIDUAL
Children and Adult Services,Head of Adults,Transfer Payments,515201,Social Services Clients,18-May-2016,3128137-1617327H,611.92,REDACTED - PAYMENT TO INDIVIDUAL
Children and Adult Services,Childrens Services,Transfer Payments,515201,Social Services Clients,18-May-2016,3128138-1618653H,"1,328.00",REDACTED - PAYMENT TO INDIVIDUAL
Children and Adult Services,Head of Adults,Transfer Payments,515209,Social Services Clients,18-May-2016,3128140-1615517D,"1,500.00",REDACTED - PAYMENT TO INDIVIDUAL
Children and Adult Services,Head of Adults,Transfer Payments,515201,Social Services Clients,18-May-2016,3128140-1615517H,630.00,REDACTED - PAYMENT TO INDIVIDUAL
Children and Adult Services,Head of Adults,Transfer Payments,515201,Social Services Clients,18-May-2016,3128142-1614459H,"3,214.40",REDACTED - PAYMENT TO INDIVIDUAL
Children and Adult Services,Childrens Services,Transfer Payments,515201,Social Services Clients,18-May-2016,3128144-1617388H,978.00,REDACTED - PAYMENT TO INDIVIDUAL
Children and Adult Services,Head of Adults,Transfer Payments,515201,Social Services Clients,18-May-2016,3128145-1617448H,"1,266.00",REDACTED - PAYMENT TO INDIVIDUAL
Children and Adult Services,Head of Adults,Transfer Payments,515201,Social Services Clients,18-May-2016,3128147-1615716H,817.20,REDACTED - PAYMENT TO INDIVIDUAL
Children and Adult Services,Head of Adults,Transfer Payments,515211,Social Services Clients,18-May-2016,3128150-1614424H,753.16,REDACTED - PAYMENT TO INDIVIDUAL
Children and Adult Services,Head of Adults,Transfer Payments,515201,Social Services Clients,18-May-2016,3128151-1616925H,506.40,REDACTED - PAYMENT TO INDIVIDUAL
Children and Adult Services,Head of Adults,Transfer Payments,515201,Social Services Clients,18-May-2016,3128152-1614183H,"1,006.60",REDACTED - PAYMENT TO INDIVIDUAL
Children and Adult Services,Head of Adults,Transfer Payments,515201,Social Services Clients,18-May-2016,3128153-1614623H,585.52,REDACTED - PAYMENT TO INDIVIDUAL
Children and Adult Services,Head of Adults,Transfer Payments,515201,Social Services Clients,18-May-2016,3128154-1616074H,"5,191.28",REDACTED - PAYMENT TO INDIVIDUAL
Children and Adult Services,Head of Adults,Transfer Payments,515201,Social Services Clients,18-May-2016,3128155-1616891H,839.92,REDACTED - PAYMENT TO INDIVIDUAL
Children and Adult Services,Head of Adults,Transfer Payments,515201,Social Services Clients,18-May-2016,3128157-1616750H,721.32,REDACTED - PAYMENT TO INDIVIDUAL
Children and Adult Services,Head of Adults,Transfer Payments,515201,Social Services Clients,18-May-2016,3128158-1615894H,969.00,REDACTED - PAYMENT TO INDIVIDUAL
Children and Adult Services,Head of Adults,Transfer Payments,515201,Social Services Clients,18-May-2016,3128160-1614311H,"1,375.16",REDACTED - PAYMENT TO INDIVIDUAL
Children and Adult Services,Head of Adults,Transfer Payments,515201,Social Services Clients,18-May-2016,3128161-1615929H,516.96,REDACTED - PAYMENT TO INDIVIDUAL
Children and Adult Services,Childrens Services,Transfer Payments,515201,Social Services Clients,18-May-2016,3128163-1619612H,"1,440.00",REDACTED - PAYMENT TO INDIVIDUAL
Children and Adult Services,Childrens Services,Transfer Payments,515201,Social Services Clients,18-May-2016,3128164-1620004H,540.00,REDACTED - PAYMENT TO INDIVIDUAL
Children and Adult Services,Head of Adults,Transfer Payments,515201,Social Services Clients,18-May-2016,3128166-1616874H,675.20,REDACTED - PAYMENT TO INDIVIDUAL
Children and Adult Services,Head of Adults,Transfer Payments,515201,Social Services Clients,18-May-2016,3128167-1618325H,"1,046.08",REDACTED - PAYMENT TO INDIVIDUAL
Children and Adult Services,Head of Adults,Transfer Payments,515201,Social Services Clients,18-May-2016,3128168-1614981H,"1,929.64",REDACTED - PAYMENT TO INDIVIDUAL
Children and Adult Services,Head of Adults,Transfer Payments,515201,Social Services Clients,18-May-2016,3128170-1618906H,"2,533.44",REDACTED - PAYMENT TO INDIVIDUAL
Children and Adult Services,Commissioning inc Supporting People,Transfer Payments,515210,Social Services Clients,18-May-2016,3128171-1619732H,"2,132.28",REDACTED - PAYMENT TO INDIVIDUAL
Children and Adult Services,Head of Adults,Transfer Payments,515201,Social Services Clients,18-May-2016,3128174-1616206H,544.80,REDACTED - PAYMENT TO INDIVIDUAL
Children and Adult Services,Head of Adults,Transfer Payments,515201,Social Services Clients,18-May-2016,3128176-1620015H,554.20,REDACTED - PAYMENT TO INDIVIDUAL
Children and Adult Services,Head of Adults,Transfer Payments,515201,Social Services Clients,18-May-2016,3128178-1617466H,696.32,REDACTED - PAYMENT TO INDIVIDUAL
Children and Adult Services,Head of Adults,Transfer Payments,515201,Social Services Clients,18-May-2016,3128179-1619426H,981.16,REDACTED - PAYMENT TO INDIVIDUAL
Children and Adult Services,Head of Adults,Transfer Payments,515201,Social Services Clients,18-May-2016,3128182-1617318H,783.16,REDACTED - PAYMENT TO INDIVIDUAL
Children and Adult Services,Head of Adults,Transfer Payments,515201,Social Services Clients,18-May-2016,3128186-1615523H,562.08,REDACTED - PAYMENT TO INDIVIDUAL
Children and Adult Services,Head of Adults,Transfer Payments,515201,Social Services Clients,18-May-2016,3128187-1614465H,"1,360.96",REDACTED - PAYMENT TO INDIVIDUAL
Children and Adult Services,Head of Adults,Transfer Payments,515209,Social Services Clients,18-May-2016,3128189-1618024D,"2,520.00",REDACTED - PAYMENT TO INDIVIDUAL
Children and Adult Services,Head of Adults,Transfer Payments,515201,Social Services Clients,18-May-2016,3128189-1618024H,500.00,REDACTED - PAYMENT TO INDIVIDUAL
Children and Adult Services,Head of Adults,Transfer Payments,515201,Social Services Clients,18-May-2016,3128190-1616418H,"2,827.40",REDACTED - PAYMENT TO INDIVIDUAL
Children and Adult Services,Head of Adults,Transfer Payments,515201,Social Services Clients,18-May-2016,3128191-1614418H,"1,507.00",REDACTED - PAYMENT TO INDIVIDUAL
Children and Adult Services,Head of Adults,Transfer Payments,515201,Social Services Clients,18-May-2016,3128192-1615267H,"3,656.36",REDACTED - PAYMENT TO INDIVIDUAL
Children and Adult Services,Head of Adults,Transfer Payments,515201,Social Services Clients,18-May-2016,3128193-1615403H,"4,578.76",REDACTED - PAYMENT TO INDIVIDUAL
Children and Adult Services,Head of Adults,Transfer Payments,515201,Social Services Clients,18-May-2016,3128197-1620102H,640.92,REDACTED - PAYMENT TO INDIVIDUAL
Children and Adult Services,Commissioning inc Supporting People,Transfer Payments,515210,Social Services Clients,18-May-2016,3128200-1618246H,"4,517.20",REDACTED - PAYMENT TO INDIVIDUAL
Children and Adult Services,Head of Adults,Transfer Payments,515201,Social Services Clients,18-May-2016,3128205-1616135H,908.00,REDACTED - PAYMENT TO INDIVIDUAL
Children and Adult Services,Head of Adults,Transfer Payments,515201,Social Services Clients,18-May-2016,3128206-1618913H,865.04,REDACTED - PAYMENT TO INDIVIDUAL
Children and Adult Services,Childrens Services,Transfer Payments,515201,Social Services Clients,18-May-2016,3128207-1618485H,572.00,REDACTED - PAYMENT TO INDIVIDUAL
Children and Adult Services,Head of Adults,Transfer Payments,515201,Social Services Clients,18-May-2016,3128208-1614024H,662.40,REDACTED - PAYMENT TO INDIVIDUAL
Children and Adult Services,Head of Adults,Transfer Payments,515201,Social Services Clients,18-May-2016,3128209-1615347H,573.52,REDACTED - PAYMENT TO INDIVIDUAL
Children and Adult Services,Childrens Services,Transfer Payments,515201,Social Services Clients,18-May-2016,3128210-1617983H,572.00,REDACTED - PAYMENT TO INDIVIDUAL
Children and Adult Services,Head of Adults,Transfer Payments,515211,Social Services Clients,18-May-2016,3128211-1614936H,"3,207.84",REDACTED - PAYMENT TO INDIVIDUAL
Children and Adult Services,Head of Adults,Transfer Payments,515201,Social Services Clients,18-May-2016,3128214-1615947H,735.16,REDACTED - PAYMENT TO INDIVIDUAL
Children and Adult Services,Head of Adults,Transfer Payments,515201,Social Services Clients,18-May-2016,3128215-1615799H,"3,870.60",REDACTED - PAYMENT TO INDIVIDUAL
Children and Adult Services,Head of Adults,Transfer Payments,515201,Social Services Clients,18-May-2016,3128216-1614178H,"1,645.80",REDACTED - PAYMENT TO INDIVIDUAL
Children and Adult Services,Head of Adults,Transfer Payments,515201,Social Services Clients,18-May-2016,3128218-1613780H,509.88,REDACTED - PAYMENT TO INDIVIDUAL
Children and Adult Services,Head of Adults,Transfer Payments,515201,Social Services Clients,18-May-2016,3128221-1615587H,588.12,REDACTED - PAYMENT TO INDIVIDUAL
Children and Adult Services,Head of Adults,Transfer Payments,515201,Social Services Clients,18-May-2016,3128222-1618457H,630.00,REDACTED - PAYMENT TO INDIVIDUAL
Children and Adult Services,Head of Adults,Transfer Payments,515201,Social Services Clients,18-May-2016,3128224-1616752H,657.60,REDACTED - PAYMENT TO INDIVIDUAL
Children and Adult Services,Head of Adults,Transfer Payments,515201,Social Services Clients,18-May-2016,3128226-1614952H,843.12,REDACTED - PAYMENT TO INDIVIDUAL
Children and Adult Services,Head of Adults,Transfer Payments,515201,Social Services Clients,18-May-2016,3128227-1617106H,"1,405.12",REDACTED - PAYMENT TO INDIVIDUAL
Children and Adult Services,Head of Adults,Transfer Payments,515201,Social Services Clients,18-May-2016,3128228-1617250H,583.76,REDACTED - PAYMENT TO INDIVIDUAL
Children and Adult Services,Head of Adults,Transfer Payments,515201,Social Services Clients,18-May-2016,3128230-1615763H,618.92,REDACTED - PAYMENT TO INDIVIDUAL
Children and Adult Services,Head of Adults,Transfer Payments,515201,Social Services Clients,18-May-2016,3128232-1618908H,"1,053.92",REDACTED - PAYMENT TO INDIVIDUAL
Children and Adult Services,Head of Adults,Transfer Payments,515201,Social Services Clients,18-May-2016,3128233-1616382H,794.52,REDACTED - PAYMENT TO INDIVIDUAL
Children and Adult Services,Head of Adults,Transfer Payments,515201,Social Services Clients,18-May-2016,3128234-1618843H,594.00,REDACTED - PAYMENT TO INDIVIDUAL
Children and Adult Services,Head of Adults,Transfer Payments,515201,Social Services Clients,18-May-2016,3128236-1614316H,585.52,REDACTED - PAYMENT TO INDIVIDUAL
Children and Adult Services,Head of Adults,Transfer Payments,515201,Social Services Clients,18-May-2016,3128237-1617516H,717.40,REDACTED - PAYMENT TO INDIVIDUAL
Children and Adult Services,Head of Adults,Transfer Payments,515201,Social Services Clients,18-May-2016,3128238-1615218H,708.76,REDACTED - PAYMENT TO INDIVIDUAL
Children and Adult Services,Head of Adults,Transfer Payments,515201,Social Services Clients,18-May-2016,3128239-1615092H,"1,012.80",REDACTED - PAYMENT TO INDIVIDUAL
Children and Adult Services,Head of Adults,Transfer Payments,515201,Social Services Clients,18-May-2016,3128240-1616959H,633.00,REDACTED - PAYMENT TO INDIVIDUAL
Children and Adult Services,Head of Adults,Transfer Payments,515201,Social Services Clients,18-May-2016,3128241-1618938H,"2,940.60",REDACTED - PAYMENT TO INDIVIDUAL
Children and Adult Services,Head of Adults,Transfer Payments,515201,Social Services Clients,18-May-2016,3128243-1616140H,"1,055.00",REDACTED - PAYMENT TO INDIVIDUAL
Children and Adult Services,Head of Adults,Transfer Payments,515201,Social Services Clients,18-May-2016,3128244-1619902H,820.68,REDACTED - PAYMENT TO INDIVIDUAL
Children and Adult Services,Head of Adults,Transfer Payments,515201,Social Services Clients,18-May-2016,3128246-1615554H,833.44,REDACTED - PAYMENT TO INDIVIDUAL
Children and Adult Services,Head of Adults,Transfer Payments,515201,Social Services Clients,18-May-2016,3128248-1614009H,613.64,REDACTED - PAYMENT TO INDIVIDUAL
Children and Adult Services,Head of Adults,Transfer Payments,515201,Social Services Clients,18-May-2016,3128249-1617662H,766.64,REDACTED - PAYMENT TO INDIVIDUAL
Children and Adult Services,Head of Adults,Transfer Payments,515201,Social Services Clients,18-May-2016,3128251-1617850H,812.36,REDACTED - PAYMENT TO INDIVIDUAL
Children and Adult Services,Head of Adults,Transfer Payments,515201,Social Services Clients,18-May-2016,3128253-1618207H,"1,090.60",REDACTED - PAYMENT TO INDIVIDUAL
Children and Adult Services,Head of Adults,Transfer Payments,515201,Social Services Clients,18-May-2016,3128254-1619643H,510.16,REDACTED - PAYMENT TO INDIVIDUAL
Children and Adult Services,Head of Adults,Transfer Payments,515201,Social Services Clients,18-May-2016,3128255-1617302H,"1,120.00",REDACTED - PAYMENT TO INDIVIDUAL
Children and Adult Services,Childrens Services,Third Party Payments,440062,Other Third Party Payments,18-May-2016,3128256-1619859H,"1,008.00",REDACTED - PAYMENT TO INDIVIDUAL
Children and Adult Services,Childrens Services,Transfer Payments,515201,Social Services Clients,18-May-2016,3128256-1619860H,"1,260.00",REDACTED - PAYMENT TO INDIVIDUAL
Children and Adult Services,Head of Adults,Transfer Payments,515201,Social Services Clients,18-May-2016,3128257-1618840H,"2,317.80",REDACTED - PAYMENT TO INDIVIDUAL
Children and Adult Services,Head of Adults,Transfer Payments,515201,Social Services Clients,18-May-2016,3128259-1614944H,858.92,REDACTED - PAYMENT TO INDIVIDUAL
Children and Adult Services,Head of Adults,Transfer Payments,515201,Social Services Clients,18-May-2016,3128261-1619020H,862.60,REDACTED - PAYMENT TO INDIVIDUAL
Children and Adult Services,Childrens Services,Transfer Payments,515201,Social Services Clients,18-May-2016,3128263-1618472H,512.00,REDACTED - PAYMENT TO INDIVIDUAL
Children and Adult Services,Head of Adults,Transfer Payments,515201,Social Services Clients,18-May-2016,3128266-1618320H,"1,000.00",REDACTED - PAYMENT TO INDIVIDUAL
Children and Adult Services,Head of Adults,Transfer Payments,515201,Social Services Clients,18-May-2016,3128267-1615545H,804.08,REDACTED - PAYMENT TO INDIVIDUAL
Children and Adult Services,Head of Adults,Transfer Payments,515201,Social Services Clients,18-May-2016,3128268-1617176H,"1,944.00",REDACTED - PAYMENT TO INDIVIDUAL
Children and Adult Services,Head of Adults,Transfer Payments,515201,Social Services Clients,18-May-2016,3128269-1614630H,675.20,REDACTED - PAYMENT TO INDIVIDUAL
Children and Adult Services,Head of Adults,Transfer Payments,515201,Social Services Clients,18-May-2016,3128270-1613867H,854.56,REDACTED - PAYMENT TO INDIVIDUAL
Children and Adult Services,Head of Adults,Transfer Payments,515201,Social Services Clients,18-May-2016,3128270-1616900H,"1,399.64",REDACTED - PAYMENT TO INDIVIDUAL
Children and Adult Services,Head of Adults,Transfer Payments,515201,Social Services Clients,18-May-2016,3128271-1613835H,854.84,REDACTED - PAYMENT TO INDIVIDUAL
Children and Adult Services,Childrens Services,Transfer Payments,515201,Social Services Clients,18-May-2016,3128272-1617426H,720.00,REDACTED - PAYMENT TO INDIVIDUAL
Children and Adult Services,Head of Adults,Transfer Payments,515201,Social Services Clients,18-May-2016,3128273-1614547H,"1,020.00",REDACTED - PAYMENT TO INDIVIDUAL
Children and Adult Services,Head of Adults,Transfer Payments,515201,Social Services Clients,18-May-2016,3128274-1618692H,569.28,REDACTED - PAYMENT TO INDIVIDUAL
Children and Adult Services,Head of Adults,Transfer Payments,515209,Social Services Clients,18-May-2016,3128275-1620581D,800.00,REDACTED - PAYMENT TO INDIVIDUAL
Children and Adult Services,Head of Adults,Transfer Payments,515211,Social Services Clients,18-May-2016,3128275-1620581H,"1,566.32",REDACTED - PAYMENT TO INDIVIDUAL
Children and Adult Services,Head of Adults,Transfer Payments,515201,Social Services Clients,18-May-2016,3128276-1618600H,"1,899.00",REDACTED - PAYMENT TO INDIVIDUAL
Children and Adult Services,Head of Adults,Transfer Payments,515201,Social Services Clients,18-May-2016,3128277-1619616H,745.52,REDACTED - PAYMENT TO INDIVIDUAL
Children and Adult Services,Head of Adults,Transfer Payments,515201,Social Services Clients,18-May-2016,3128279-1615210H,908.00,REDACTED - PAYMENT TO INDIVIDUAL
Children and Adult Services,Head of Adults,Transfer Payments,515201,Social Services Clients,18-May-2016,3128281-1617927H,"1,038.76",REDACTED - PAYMENT TO INDIVIDUAL
Children and Adult Services,Head of Adults,Transfer Payments,515209,Social Services Clients,18-May-2016,3128284-1614927D,"1,416.60",REDACTED - PAYMENT TO INDIVIDUAL
Children and Adult Services,Head of Adults,Transfer Payments,515201,Social Services Clients,18-May-2016,3128284-1614927H,547.44,REDACTED - PAYMENT TO INDIVIDUAL
Children and Adult Services,Head of Adults,Transfer Payments,515201,Social Services Clients,18-May-2016,3128285-1619652H,590.80,REDACTED - PAYMENT TO INDIVIDUAL
Children and Adult Services,Head of Adults,Transfer Payments,515201,Social Services Clients,18-May-2016,3128288-1618146H,735.64,REDACTED - PAYMENT TO INDIVIDUAL
Children and Adult Services,Head of Adults,Transfer Payments,515201,Social Services Clients,18-May-2016,3128289-1618958H,"1,498.88",REDACTED - PAYMENT TO INDIVIDUAL
Children and Adult Services,Head of Adults,Transfer Payments,515201,Social Services Clients,18-May-2016,3128293-1618474H,"1,475.52",REDACTED - PAYMENT TO INDIVIDUAL
Children and Adult Services,Head of Adults,Transfer Payments,515201,Social Services Clients,18-May-2016,3128295-1616903H,"1,669.00",REDACTED - PAYMENT TO INDIVIDUAL
Children and Adult Services,Head of Adults,Transfer Payments,515201,Social Services Clients,18-May-2016,3128297-1614781H,500.00,REDACTED - PAYMENT TO INDIVIDUAL
Children and Adult Services,Head of Adults,Transfer Payments,515201,Social Services Clients,18-May-2016,3128299-1618431H,675.20,REDACTED - PAYMENT TO INDIVIDUAL
Children and Adult Services,Head of Adults,Transfer Payments,515201,Social Services Clients,18-May-2016,3128301-1614119H,543.40,REDACTED - PAYMENT TO INDIVIDUAL
Children and Adult Services,Head of Adults,Transfer Payments,515201,Social Services Clients,18-May-2016,3128303-1618493H,904.40,REDACTED - PAYMENT TO INDIVIDUAL
Children and Adult Services,Commissioning inc Supporting People,Transfer Payments,515210,Social Services Clients,18-May-2016,3128304-1616853H,"2,049.25",REDACTED - PAYMENT TO INDIVIDUAL
Children and Adult Services,Head of Adults,Transfer Payments,515201,Social Services Clients,18-May-2016,3128307-1618814H,"1,362.00",REDACTED - PAYMENT TO INDIVIDUAL
Children and Adult Services,Head of Adults,Transfer Payments,515201,Social Services Clients,18-May-2016,3128309-1618337H,"2,451.60",REDACTED - PAYMENT TO INDIVIDUAL
Children and Adult Services,Childrens Services,Transfer Payments,515201,Social Services Clients,18-May-2016,3128310-1617940H,692.00,REDACTED - PAYMENT TO INDIVIDUAL
Children and Adult Services,Head of Adults,Transfer Payments,515201,Social Services Clients,18-May-2016,3128311-1618686H,885.32,REDACTED - PAYMENT TO INDIVIDUAL
Children and Adult Services,Head of Adults,Transfer Payments,515201,Social Services Clients,18-May-2016,3128312-1613906H,761.16,REDACTED - PAYMENT TO INDIVIDUAL
Children and Adult Services,Head of Adults,Transfer Payments,515201,Social Services Clients,18-May-2016,3128313-1614239H,950.04,REDACTED - PAYMENT TO INDIVIDUAL
Children and Adult Services,Childrens Services,Transfer Payments,515201,Social Services Clients,18-May-2016,3128314-1617471H,"1,260.00",REDACTED - PAYMENT TO INDIVIDUAL
Children and Adult Services,Commissioning inc Supporting People,Transfer Payments,515210,Social Services Clients,18-May-2016,3128318-1619802H,"1,962.00",REDACTED - PAYMENT TO INDIVIDUAL
Children and Adult Services,Head of Adults,Transfer Payments,515201,Social Services Clients,18-May-2016,3128321-1618165H,840.48,REDACTED - PAYMENT TO INDIVIDUAL
Children and Adult Services,Head of Adults,Transfer Payments,515201,Social Services Clients,18-May-2016,3128322-1615075H,"1,223.80",REDACTED - PAYMENT TO INDIVIDUAL
Children and Adult Services,Childrens Services,Transfer Payments,515201,Social Services Clients,18-May-2016,3128325-1618554H,"1,992.00",REDACTED - PAYMENT TO INDIVIDUAL
Children and Adult Services,Head of Adults,Transfer Payments,515201,Social Services Clients,18-May-2016,3128326-1616341H,624.24,REDACTED - PAYMENT TO INDIVIDUAL
Children and Adult Services,Head of Adults,Transfer Payments,515201,Social Services Clients,18-May-2016,3128327-1620578H,554.15,REDACTED - PAYMENT TO INDIVIDUAL
Children and Adult Services,Head of Adults,Transfer Payments,515201,Social Services Clients,18-May-2016,3128328-1618687H,"1,210.17",REDACTED - PAYMENT TO INDIVIDUAL
Children and Adult Services,Commissioning inc Supporting People,Transfer Payments,515210,Social Services Clients,18-May-2016,3128329-1617635H,"2,311.48",REDACTED - PAYMENT TO INDIVIDUAL
Children and Adult Services,Head of Adults,Transfer Payments,515209,Social Services Clients,18-May-2016,3128330-1616984D,"1,920.00",REDACTED - PAYMENT TO INDIVIDUAL
Children and Adult Services,Head of Adults,Transfer Payments,515201,Social Services Clients,18-May-2016,3128330-1616984H,"1,304.44",REDACTED - PAYMENT TO INDIVIDUAL
Children and Adult Services,Head of Adults,Transfer Payments,515201,Social Services Clients,18-May-2016,3128332-1617126H,675.20,REDACTED - PAYMENT TO INDIVIDUAL
Children and Adult Services,Head of Adults,Transfer Payments,515201,Social Services Clients,18-May-2016,3128333-1614187D,923.04,REDACTED - PAYMENT TO INDIVIDUAL
Children and Adult Services,Head of Adults,Transfer Payments,515201,Social Services Clients,18-May-2016,3128335-1618124H,"1,475.52",REDACTED - PAYMENT TO INDIVIDUAL
Children and Adult Services,Head of Adults,Transfer Payments,515201,Social Services Clients,18-May-2016,3128336-1617329H,524.04,REDACTED - PAYMENT TO INDIVIDUAL
Children and Adult Services,Head of Adults,Transfer Payments,515201,Social Services Clients,18-May-2016,3128338-1616997H,538.04,REDACTED - PAYMENT TO INDIVIDUAL
Children and Adult Services,Head of Adults,Transfer Payments,515201,Social Services Clients,18-May-2016,3128339-1616253H,581.92,REDACTED - PAYMENT TO INDIVIDUAL
Children and Adult Services,Head of Adults,Transfer Payments,515201,Social Services Clients,18-May-2016,3128340-1617396H,646.92,REDACTED - PAYMENT TO INDIVIDUAL
Children and Adult Services,Head of Adults,Transfer Payments,515201,Social Services Clients,18-May-2016,3128341-1615965H,807.48,REDACTED - PAYMENT TO INDIVIDUAL
Children and Adult Services,Commissioning inc Supporting People,Transfer Payments,515210,Social Services Clients,18-May-2016,3128343-1614322H,"6,855.40",REDACTED - PAYMENT TO INDIVIDUAL
Children and Adult Services,Head of Adults,Transfer Payments,515201,Social Services Clients,18-May-2016,3128345-1616703H,"1,092.00",REDACTED - PAYMENT TO INDIVIDUAL
Children and Adult Services,Head of Adults,Transfer Payments,515201,Social Services Clients,18-May-2016,3128346-1618957H,731.48,REDACTED - PAYMENT TO INDIVIDUAL
Children and Adult Services,Head of Adults,Transfer Payments,515201,Social Services Clients,18-May-2016,3128349-1616962H,"2,565.12",REDACTED - PAYMENT TO INDIVIDUAL
Children and Adult Services,Head of Adults,Transfer Payments,515201,Social Services Clients,18-May-2016,3128350-1617335H,"2,932.09",REDACTED - PAYMENT TO INDIVIDUAL
Children and Adult Services,Childrens Services,Transfer Payments,515201,Social Services Clients,18-May-2016,3128350-1617336H,945.00,REDACTED - PAYMENT TO INDIVIDUAL
Children and Adult Services,Head of Adults,Transfer Payments,515201,Social Services Clients,18-May-2016,3128353-1613747H,"1,180.40",REDACTED - PAYMENT TO INDIVIDUAL
Children and Adult Services,Head of Adults,Transfer Payments,515201,Social Services Clients,18-May-2016,3128354-1613854H,"1,311.52",REDACTED - PAYMENT TO INDIVIDUAL
